{"text_format":"1","workbook":"xlsx","n_sheets":27,"sheets":["DATA","LIST","0","1","2","3","4","5","6","7","8","9","ППГ","Безопасность","Конструкция","Паруса","Управление","ППВВП","Навигация","Узлы","Теория","Метео","Сигналы","Цифры","Правила","Право дороги","Практика"],"not_rendered":{"charts":0,"images":33,"macros":1,"external_links":0,"defined_names":1,"comments":1,"pivot_tables":0},"unopened":[],"bounds":{"document_bytes":16777216,"sheet_cells":100000,"rows_first":2000,"rows_last":500,"rows_between":2000,"halvings":0,"cell_chars":16384,"cell_head_chars":4096},"cells_cut":0,"cells_raw":0,"read":"whole","date_system":"1900"}

{"sheet":"DATA","index":0,"n_rows":13339,"n_cols":19,"rows_kept":13339,"cut":false,"hidden":false,"merged":[]}
[]
[]
[]
[]
[]
[]
[]
[]
[null,null,"ID VFPS"]
[null,null,null,null,null,null,null,null,null,null,null,null,"Адрес","Паспорт","яхт-клуб","Приказ","с какого года занимается"]
[15072,"Sailing Boat Helmsman 22",null,"Борисенко Виктор","Викторович","BORISENKO VIKTOR","17.08.2000 Санк","SAINT PETERBURG","Россия/ RUS","2025-03-05","Квалификационная Комиссия ВФПС/СППС","ГБУ ДО СШОР\"ШВСМ по ВВС\"","г.Санкт Петербург ул.Г…..........","P RUS 40 28 123456","ШВСМ по ВВС","211/2025 КВ от 14.03.2025",2020]
[15073,"Sailing Boat Helmsman 22",null,"Ивановский Роман","Владиславович","IVANOVSKIY ROMAN","2000-08-18","SAINT PETERBURG","Россия/ RUS","2025-03-05","Квалификационная Комиссия ВФПС/СППС","ГБУ ДО СШОР\"ШВСМ по ВВС\"","г.Санкт Петербург пр.С…...........","P RUS 40 28 123457","ШВСМ по ВВС","211/2025 КВ от 14.03.2025",2020]
[" ","Sailing Boat Helmsman 22",null,"Попов Константин","Петрович","POPOV KONSTANTIN","2000-08-19","SAINT PETERBURG","Россия/ RUS","2025-03-05","Квалификационная Комиссия ВФПС/СППС","ГБУ ДО СШОР\"ШВСМ по ВВС\"","г.Санкт Петербург Приморский проспект","P RUS 40 28 123458","ШВСМ по ВВС","211/2025 КВ от 14.03.2025",2020]
[15075,"Sailing Boat Helmsman 22",null,"Фрейман Лев","Борисович","FREYMAN   LEV","2000-08-20","SAINT PETERBURG","Россия/ RUS","2025-03-05","Квалификационная Комиссия ВФПС/СППС","ГБУ ДО СШОР\"ШВСМ по ВВС\"","г.Санкт Петербург пр.К…........","P RUS 40 28 123459","ШВСМ по ВВС","211/2025 КВ от 14.03.2025",2020]
[15076,"Sailing Boat Helmsman 22",null,"Шагин Даниил","Иванович","SHAGIN DANIIL","2000-08-21","SAINT PETERBURG","Россия/ RUS","2025-03-05","Квалификационная Комиссия ВФПС/СППС","ГБУ ДО СШОР\"ШВСМ по ВВС\"","г.Санкт Петербург Акт////////","P RUS 40 28 123460","ШВСМ по ВВС","211/2025 КВ от 14.03.2025",2020]
[15077,"Sailing Boat Helmsman 22",null,"Черкасский Артём","Дмитриевич","CHERKASSKIY ARTEM","2000-08-22","SAINT PETERBURG","Россия/ RUS","2025-03-05","Квалификационная Комиссия ВФПС/СППС","ГБУ ДО СШОР\"ШВСМ по ВВС\"","г.Санкт Петербург ул.М…...........","P RUS 40 28 123461","ШВСМ по ВВС","211/2025 КВ от 14.03.2025",2020]
[15078]
[15079,"Добавить список на экзамен по образцу"]
[15080,"Sailing Boat Helmsman 22",4567,"ИВАНОВ ИВАН","ИВАНОВИЧ","IVAN IVANOV","01.01.2020 Москва","MOSCOW","Россия/ RUS","2025-03-05","Квалификационная Комиссия ФПС Самара","Школа Ветра","123098, Москва, ул.Ленина д1. кв1 ","P RUS 40 28 123461","Яхт-клуб КАНАТ",null,2021]
[15081,"Sailing Boat Helmsman 22",4568]
[15082,"Sailing Boat Helmsman 22"]
[15083,"Sailing Boat Helmsman 22"]
[15084,"Sailing Boat Helmsman 22"]
[15085,"Sailing Boat Helmsman 22"]
[15086,"Sailing Boat Helmsman 22"]
[15087,"Sailing Boat Helmsman 22"]
[15088,"Sailing Boat Helmsman 22"]
[15089,"Sailing Boat Helmsman 22"]
[15090,"Sailing Boat Helmsman 22"]
[15091,"Sailing Boat Helmsman 22"]
[15092,"Sailing Boat Helmsman 22"]
[15093,"Sailing Boat Helmsman 22"]
[15094,"Sailing Boat Helmsman 22"]
[15095,"Sailing Boat Helmsman 22"]
[15096,"Sailing Boat Helmsman 22"]
[15097,"Sailing Boat Helmsman 22"]
[15098,"Sailing Boat Helmsman 22"]
[15099,"Sailing Boat Helmsman 22"]
[15100,"Sailing Boat Helmsman 22"]
[15101,"Sailing Boat Helmsman 22"]
[15102,"Sailing Boat Helmsman 22"]
[15103,"Sailing Boat Helmsman 22"]
[15104,"Sailing Boat Helmsman 22"]
[15105,"Sailing Boat Helmsman 22"]
[15106,"Sailing Boat Helmsman 22"]
[15107,"Sailing Boat Helmsman 22"]
[15108,"Sailing Boat Helmsman 22"]
[15109,"Sailing Boat Helmsman 22"]
[]
[]
[]
[]
[]
[]
[]
[]
[]
[]
[]
[]
[]
[]
[]
[]
[]
[]
[]
[]
[]
[]
[]
[]
[]
[]
[]
[]
[]
[]
[]
[]
[]
[]
[]
[]
[]
[]
[]
[]
[]
[]
[]
[]
[]
[]
[]
[]
[]
[]
[]
[]
[]
[]
[]
[]
[]
[]
[]
[]
[]
[]
[]
[]
[]
[]
[]
[]
[]
[]
[]
[]
[]
[]
[]
[]
[]
[]
[]
[]
[]
[]
[]
[]
[]
[]
[]
[]
[]
[]
[]
[]
[]
[]
[]
[]
[]
[]
[]
[]
[]
[]
[]
[]
[]
[]
[]
[]
[]
[]
[]
[]
[]
[]
[]
[]
[]
[]
[]
[]
[]
[]
[]
[]
[]
[]
[]
[]
[]
[]
[]
[]
[]
[]
[]
[]
[]
[]
[]
[]
[]
[]
[]
[]
[]
[]
[]
[]
[]
[]
[]
[]
[]
[]
[]
[]
[]
[]
[]
[]
[]
[]
[]
[]
[]
[]
[]
[]
[]
[]
[]
[]
[]
[]
[]
[]
[]
[]
[]
[]
[]
[]
[]
[]
[]
[]
[]
[]
[]
[]
[]
[]
[]
[]
[]
[]
[]
[]
[]
[]
[]
[]
[]
[]
[]
[]
[]
[]
[]
[]
[]
[]
[]
[]
[]
[]
[]
[]
[]
[]
[]
[]
[]
[]
[]
[]
[]
[]
[]
[]
[]
[]
[]
[]
[]
[]
[]
[]
[]
[]
[]
[]
[]
[]
[]
[]
[]
[]
[]
[]
[]
[]
[]
[]
[]
[]
[]
[]
[]
[]
[]
[]
[]
[]
[]
[]
[]
[]
[]
[]
[]
[]
[]
[]
[]
[]
[]
[]
[]
[]
[]
[]
[]
[]
[]
[]
[]
[]
[]
[]
[]
[]
[]
[]
[]
[]
[]
[]
[]
[]
[]
[]
[]
[]
[]
[]
[]
[]
[]
[]
[]
[]
[]
[]
[]
[]
[]
[]
[]
[]
[]
[]
[]
[]
[]
[]
[]
[]
[]
[]
[]
[]
[]
[]
[]
[]
[]
[]
[]
[]
[]
[]
[]
[]
[]
[]
[]
[]
[]
[]
[]
[]
[]
[]
[]
[]
[]
[]
[]
[]
[]
[]
[]
[]
[]
[]
[]
[]
[]
[]
[]
[]
[]
[]
[]
[]
[]
[]
[]
[]
[]
[]
[]
[]
[]
[]
[]
[]
[]
[]
[]
[]
[]
[]
[]
[]
[]
[]
[]
[]
[]
[]
[]
[]
[]
[]
[]
[]
[]
[]
[]
[]
[]
[]
[]
[]
[]
[]
[]
[]
[]
[]
[]
[]
[]
[]
[]
[]
[]
[]
[]
[]
[]
[]
[]
[]
[]
[]
[]
[]
[]
[]
[]
[]
[]
[]
[]
[]
[]
[]
[]
[]
[]
[]
[]
[]
[]
[]
[]
[]
[]
[]
[]
[]
[]
[]
[]
[]
[]
[]
[]
[]
[]
[]
[]
[]
[]
[]
[]
[]
[]
[]
[]
[]
[]
[]
[]
[]
[]
[]
[]
[]
[]
[]
[]
[]
[]
[]
[]
[]
[]
[]
[]
[]
[]
[]
[]
[]
[]
[]
[]
[]
[]
[]
[]
[]
[]
[]
[]
[]
[]
[]
[]
[]
[]
[]
[]
[]
[]
[]
[]
[]
[]
[]
[]
[]
[]
[]
[]
[]
[]
[]
[]
[]
[]
[]
[]
[]
[]
[]
[]
[]
[]
[]
[]
[]
[]
[]
[]
[]
[]
[]
[]
[]
[]
[]
[]
[]
[]
[]
[]
[]
[]
[]
[]
[]
[]
[]
[]
[]
[]
[]
[]
[]
[]
[]
[]
[]
[]
[]
[]
[]
[]
[]
[]
[]
[]
[]
[]
[]
[]
[]
[]
[]
[]
[]
[]
[]
[]
[]
[]
[]
[]
[]
[]
[]
[]
[]
[]
[]
[]
[]
[]
[]
[]
[]
[]
[]
[]
[]
[]
[]
[]
[]
[]
[]
[]
[]
[]
[]
[]
[]
[]
[]
[]
[]
[]
[]
[]
[]
[]
[]
[]
[]
[]
[]
[]
[]
[]
[]
[]
[]
[]
[]
[]
[]
[]
[]
[]
[]
[]
[]
[]
[]
[]
[]
[]
[]
[]
[]
[]
[]
[]
[]
[]
[]
[]
[]
[]
[]
[]
[]
[]
[]
[]
[]
[]
[]
[]
[]
[]
[]
[]
[]
[]
[]
[]
[]
[]
[]
[]
[]
[]
[]
[]
[]
[]
[]
[]
[]
[]
[]
[]
[]
[]
[]
[]
[]
[]
[]
[]
[]
[]
[]
[]
[]
[]
[]
[]
[]
[]
[]
[]
[]
[]
[]
[]
[]
[]
[]
[]
[]
[]
[]
[]
[]
[]
[]
[]
[]
[]
[]
[]
[]
[]
[]
[]
[]
[]
[]
[]
[]
[]
[]
[]
[]
[]
[]
[]
[]
[]
[]
[]
[]
[]
[]
[]
[]
[]
[]
[]
[]
[]
[]
[]
[]
[]
[]
[]
[]
[]
[]
[]
[]
[]
[]
[]
[]
[]
[]
[]
[]
[]
[]
[]
[]
[]
[]
[]
[]
[]
[]
[]
[]
[]
[]
[]
[]
[]
[]
[]
[]
[]
[]
[]
[]
[]
[]
[]
[]
[]
[]
[]
[]
[]
[]
[]
[]
[]
[]
[]
[]
[]
[]
[]
[]
[]
[]
[]
[]
[]
[]
[]
[]
[]
[]
[]
[]
[]
[]
[]
[]
[]
[]
[]
[]
[]
[]
[]
[]
[]
[]
[]
[]
[]
[]
[]
[]
[]
[]
[]
[]
[]
[]
[]
[]
[]
[]
[]
[]
[]
[]
[]
[]
[]
[]
[]
[]
[]
[]
[]
[]
[]
[]
[]
[]
[]
[]
[]
[]
[]
[]
[]
[]
[]
[]
[]
[]
[]
[]
[]
[]
[]
[]
[]
[]
[]
[]
[]
[]
[]
[]
[]
[]
[]
[]
[]
[]
[]
[]
[]
[]
[]
[]
[]
[]
[]
[]
[]
[]
[]
[]
[]
[]
[]
[]
[]
[]
[]
[]
[]
[]
[]
[]
[]
[]
[]
[]
[]
[]
[]
[]
[]
[]
[]
[]
[]
[]
[]
[]
[]
[]
[]
[]
[]
[]
[]
[]
[]
[]
[]
[]
[]
[]
[]
[]
[]
[]
[]
[]
[]
[]
[]
[]
[]
[]
[]
[]
[]
[]
[]
[]
[]
[]
[]
[]
[]
[]
[]
[]
[]
[]
[]
[]
[]
[]
[]
[]
[]
[]
[]
[]
[]
[]
[]
[]
[]
[]
[]
[]
[]
[]
[]
[]
[]
[]
[]
[]
[]
[]
[]
[]
[]
[]
[]
[]
[]
[]
[]
[]
[]
[]
[]
[]
[]
[]
[]
[]
[]
[]
[]
[]
[]
[]
[]
[]
[]
[]
[]
[]
[]
[]
[]
[]
[]
[]
[]
[]
[]
[]
[]
[]
[]
[]
[]
[]
[]
[]
[]
[]
[]
[]
[]
[]
[]
[]
[]
[]
[]
[]
[]
[]
[]
[]
[]
[]
[]
[]
[]
[]
[]
[]
[]
[]
[]
[]
[]
[]
[]
[]
[]
[]
[]
[]
[]
[]
[]
[]
[]
[]
[]
[]
[]
[]
[]
[]
[]
[]
[]
[]
[]
[]
[]
[]
[]
[]
[]
[]
[]
[]
[]
[]
[]
[]
[]
[]
[]
[]
[]
[]
[]
[]
[]
[]
[]
[]
[]
[]
[]
[]
[]
[]
[]
[]
[]
[]
[]
[]
[]
[]
[]
[]
[]
[]
[]
[]
[]
[]
[]
[]
[]
[]
[]
[]
[]
[]
[]
[]
[]
[]
[]
[]
[]
[]
[]
[]
[]
[]
[]
[]
[]
[]
[]
[]
[]
[]
[]
[]
[]
[]
[]
[]
[]
[]
[]
[]
[]
[]
[]
[]
[]
[]
[]
[]
[]
[]
[]
[]
[]
[]
[]
[]
[]
[]
[]
[]
[]
[]
[]
[]
[]
[]
[]
[]
[]
[]
[]
[]
[]
[]
[]
[]
[]
[]
[]
[]
[]
[]
[]
[]
[]
[]
[]
[]
[]
[]
[]
[]
[]
[]
[]
[]
[]
[]
[]
[]
[]
[]
[]
[]
[]
[]
[]
[]
[]
[]
[]
[]
[]
[]
[]
[]
[]
[]
[]
[]
[]
[]
[]
[]
[]
[]
[]
[]
[]
[]
[]
[]
[]
[]
[]
[]
[]
[]
[]
[]
[]
[]
[]
[]
[]
[]
[]
[]
[]
[]
[]
[]
[]
[]
[]
[]
[]
[]
[]
[]
[]
[]
[]
[]
[]
[]
[]
[]
[]
[]
[]
[]
[]
[]
[]
[]
[]
[]
[]
[]
[]
[]
[]
[]
[]
[]
[]
[]
[]
[]
[]
[]
[]
[]
[]
[]
[]
[]
[]
[]
[]
[]
[]
[]
[]
[]
[]
[]
[]
[]
[]
[]
[]
[]
[]
[]
[]
[]
[]
[]
[]
[]
[]
[]
[]
[]
[]
[]
[]
[]
[]
[]
[]
[]
[]
[]
[]
[]
[]
[]
[]
[]
[]
[]
[]
[]
[]
[]
[]
[]
[]
[]
[]
[]
[]
[]
[]
[]
[]
[]
[]
[]
[]
[]
[]
[]
[]
[]
[]
[]
[]
[]
[]
[]
[]
[]
[]
[]
[]
[]
[]
[]
[]
[]
[]
[]
[]
[]
[]
[]
[]
[]
[]
[]
[]
[]
[]
[]
[]
[]
[]
[]
[]
[]
[]
[]
[]
[]
[]
[]
[]
[]
[]
[]
[]
[]
[]
[]
[]
[]
[]
[]
[]
[]
[]
[]
[]
[]
[]
[]
[]
[]
[]
[]
[]
[]
[]
[]
[]
[]
[]
[]
[]
[]
[]
[]
[]
[]
[]
[]
[]
[]
[]
[]
[]
[]
[]
[]
[]
[]
[]
[]
[]
[]
[]
[]
[]
[]
[]
[]
[]
[]
[]
[]
[]
[]
[]
[]
[]
[]
[]
[]
[]
[]
[]
[]
[]
[]
[]
[]
[]
[]
[]
[]
[]
[]
[]
[]
[]
[]
[]
[]
[]
[]
[]
[]
[]
[]
[]
[]
[]
[]
[]
[]
[]
[]
[]
[]
[]
[]
[]
[]
[]
[]
[]
[]
[]
[]
[]
[]
[]
[]
[]
[]
[]
[]
[]
[]
[]
[]
[]
[]
[]
[]
[]
[]
[]
[]
[]
[]
[]
[]
[]
[]
[]
[]
[]
[]
[]
[]
[]
[]
[]
[]
[]
[]
[]
[]
[]
[]
[]
[]
[]
[]
[]
[]
[]
[]
[]
[]
[]
[]
[]
[]
[]
[]
[]
[]
[]
[]
[]
[]
[]
[]
[]
[]
[]
[]
[]
[]
[]
[]
[]
[]
[]
[]
[]
[]
[]
[]
[]
[]
[]
[]
[]
[]
[]
[]
[]
[]
[]
[]
[]
[]
[]
[]
[]
[]
[]
[]
[]
[]
[]
[]
[]
[]
[]
[]
[]
[]
[]
[]
[]
[]
[]
[]
[]
[]
[]
[]
[]
[]
[]
[]
[]
[]
[]
[]
[]
[]
[]
[]
[]
[]
[]
[]
[]
[]
[]
[]
[]
[]
[]
[]
[]
[]
[]
[]
[]
[]
[]
[]
[]
[]
[]
[]
[]
[]
[]
[]
[]
[]
[]
[]
[]
[]
[]
[]
[]
[]
[]
[]
[]
[]
[]
[]
[]
[]
[]
[]
[]
[]
[]
[]
[]
[]
[]
[]
[]
[]
[]
[]
[]
[]
[]
[]
[]
[]
[]
[]
[]
[]
[]
[]
[]
[]
[]
[]
[]
[]
[]
[]
[]
[]
[]
[]
[]
[]
[]
[]
[]
[]
[]
[]
[]
[]
[]
[]
[]
[]
[]
[]
[]
[]
[]
[]
[]
[]
[]
[]
[]
[]
[]
[]
[]
[]
[]
[]
[]
[]
[]
[]
[]
[]
[]
[]
[]
[]
[]
[]
[]
[]
[]
[]
[]
[]
[]
[]
[]
[]
[]
[]
[]
[]
[]
[]
[]
[]
[]
[]
[]
[]
[]
[]
[]
[]
[]
[]
[]
[]
[]
[]
[]
[]
[]
[]
[]
[]
[]
[]
[]
[]
[]
[]
[]
[]
[]
[]
[]
[]
[]
[]
[]
[]
[]
[]
[]
[]
[]
[]
[]
[]
[]
[]
[]
[]
[]
[]
[]
[]
[]
[]
[]
[]
[]
[]
[]
[]
[]
[]
[]
[]
[]
[]
[]
[]
[]
[]
[]
[]
[]
[]
[]
[]
[]
[]
[]
[]
[]
[]
[]
[]
[]
[]
[]
[]
[]
[]
[]
[]
[]
[]
[]
[]
[]
[]
[]
[]
[]
[]
[]
[]
[]
[]
[]
[]
[]
[]
[]
[]
[]
[]
[]
[]
[]
[]
[]
[]
[]
[]
[]
[]
[]
[]
[]
[]
[]
[]
[]
[]
[]
[]
[]
[]
[]
[]
[]
[]
[]
[]
[]
[]
[]
[]
[]
[]
[]
[]
[]
[]
[]
[]
[]
[]
[]
[]
[]
[]
[]
[]
[]
[]
[]
[]
[]
[]
[]
[]
[]
[]
[]
[]
[]
[]
[]
[]
[]
[]
[]
[]
[]
[]
[]
[]
[]
[]
[]
[]
[]
[]
[]
[]
[]
[]
[]
[]
[]
[]
[]
[]
[]
[]
[]
[]
[]
[]
[]
[]
[]
[]
[]
[]
[]
[]
[]
[]
[]
[]
[]
[]
[]
[]
[]
[]
[]
[]
[]
[]
[]
[]
[]
[]
[]
[]
[]
[]
[]
[]
[]
[]
[]
[]
[]
[]
[]
[]
[]
[]
[]
[]
[]
[]
[]
[]
[]
[]
[]
[]
[]
[]
[]
[]
[]
[]
[]
[]
[]
[]
[]
[]
[]
[]
[]
[]
[]
[]
[]
[]
[]
[]
[]
[]
[]
[]
[]
[]
[]
[]
[]
[]
[]
[]
[]
[]
[]
[]
[]
[]
[]
[]
[]
[]
[]
[]
[]
[]
[]
[]
[]
[]
[]
[]
[]
[]
[]
[]
[]
[]
[]
[]
[]
[]
[]
[]
[]
[]
[]
[]
[]
[]
[]
[]
[]
[]
[]
[]
[]
[]
[]
[]
[]
[]
[]
[]
[]
[]
[]
[]
[]
[]
[]
[]
[]
[]
[]
[]
[]
[]
[]
[]
[]
[]
[]
[]
[]
[]
[]
[]
[]
[]
[]
[]
[]
[]
[]
[]
[]
[]
[]
[]
[]
[]
[]
[]
[]
[]
[]
[]
[]
[]
[]
[]
[]
[]
[]
[]
[]
[]
[]
[]
[]
[]
[]
[]
[]
[]
[]
[]
[]
[]
[]
[]
[]
[]
[]
[]
[]
[]
[]
[]
[]
[]
[]
[]
[]
[]
[]
[]
[]
[]
[]
[]
[]
[]
[]
[]
[]
[]
[]
[]
[]
[]
[]
[]
[]
[]
[]
[]
[]
[]
[]
[]
[]
[]
[]
[]
[]
[]
[]
[]
[]
[]
[]
[]
[]
[]
[]
[]
[]
[]
[]
[]
[]
[]
[]
[]
[]
[]
[]
[]
[]
[]
[]
[]
[]
[]
[]
[]
[]
[]
[]
[]
[]
[]
[]
[]
[]
[]
[]
[]
[]
[]
[]
[]
[]
[]
[]
[]
[]
[]
[]
[]
[]
[]
[]
[]
[]
[]
[]
[]
[]
[]
[]
[]
[]
[]
[]
[]
[]
[]
[]
[]
[]
[]
[]
[]
[]
[]
[]
[]
[]
[]
[]
[]
[]
[]
[]
[]
[]
[]
[]
[]
[]
[]
[]
[]
[]
[]
[]
[]
[]
[]
[]
[]
[]
[]
[]
[]
[]
[]
[]
[]
[]
[]
[]
[]
[]
[]
[]
[]
[]
[]
[]
[]
[]
[]
[]
[]
[]
[]
[]
[]
[]
[]
[]
[]
[]
[]
[]
[]
[]
[]
[]
[]
[]
[]
[]
[]
[]
[]
[]
[]
[]
[]
[]
[]
[]
[]
[]
[]
[]
[]
[]
[]
[]
[]
[]
[]
[]
[]
[]
[]
[]
[]
[]
[]
[]
[]
[]
[]
[]
[]
[]
[]
[]
[]
[]
[]
[]
[]
[]
[]
[]
[]
[]
[]
[]
[]
[]
[]
[]
[]
[]
[]
[]
[]
[]
[]
[]
[]
[]
[]
[]
[]
[]
[]
[]
[]
[]
[]
[]
[]
[]
[]
[]
[]
[]
[]
[]
[]
[]
[]
[]
[]
[]
[]
[]
[]
[]
[]
[]
[]
[]
[]
[]
[]
[]
[]
[]
[]
[]
[]
[]
[]
[]
[]
[]
[]
[]
[]
[]
[]
[]
[]
[]
[]
[]
[]
[]
[]
[]
[]
[]
[]
[]
[]
[]
[]
[]
[]
[]
[]
[]
[]
[]
[]
[]
[]
[]
[]
[]
[]
[]
[]
[]
[]
[]
[]
[]
[]
[]
[]
[]
[]
[]
[]
[]
[]
[]
[]
[]
[]
[]
[]
[]
[]
[]
[]
[]
[]
[]
[]
[]
[]
[]
[]
[]
[]
[]
[]
[]
[]
[]
[]
[]
[]
[]
[]
[]
[]
[]
[]
[]
[]
[]
[]
[]
[]
[]
[]
[]
[]
[]
[]
[]
[]
[]
[]
[]
[]
[]
[]
[]
[]
[]
[]
[]
[]
[]
[]
[]
[]
[]
[]
[]
[]
[]
[]
[]
[]
[]
[]
[]
[]
[]
[]
[]
[]
[]
[]
[]
[]
[]
[]
[]
[]
[]
[]
[]
[]
[]
[]
[]
[]
[]
[]
[]
[]
[]
[]
[]
[]
[]
[]
[]
[]
[]
[]
[]
[]
[]
[]
[]
[]
[]
[]
[]
[]
[]
[]
[]
[]
[]
[]
[]
[]
[]
[]
[]
[]
[]
[]
[]
[]
[]
[]
[]
[]
[]
[]
[]
[]
[]
[]
[]
[]
[]
[]
[]
[]
[]
[]
[]
[]
[]
[]
[]
[]
[]
[]
[]
[]
[]
[]
[]
[]
[]
[]
[]
[]
[]
[]
[]
[]
[]
[]
[]
[]
[]
[]
[]
[]
[]
[]
[]
[]
[]
[]
[]
[]
[]
[]
[]
[]
[]
[]
[]
[]
[]
[]
[]
[]
[]
[]
[]
[]
[]
[]
[]
[]
[]
[]
[]
[]
[]
[]
[]
[]
[]
[]
[]
[]
[]
[]
[]
[]
[]
[]
[]
[]
[]
[]
[]
[]
[]
[]
[]
[]
[]
[]
[]
[]
[]
[]
[]
[]
[]
[]
[]
[]
[]
[]
[]
[]
[]
[]
[]
[]
[]
[]
[]
[]
[]
[]
[]
[]
[]
[]
[]
[]
[]
[]
[]
[]
[]
[]
[]
[]
[]
[]
[]
[]
[]
[]
[]
[]
[]
[]
[]
[]
[]
[]
[]
[]
[]
[]
[]
[]
[]
[]
[]
[]
[]
[]
[]
[]
[]
[]
[]
[]
[]
[]
[]
[]
[]
[]
[]
[]
[]
[]
[]
[]
[]
[]
[]
[]
[]
[]
[]
[]
[]
[]
[]
[]
[]
[]
[]
[]
[]
[]
[]
[]
[]
[]
[]
[]
[]
[]
[]
[]
[]
[]
[]
[]
[]
[]
[]
[]
[]
[]
[]
[]
[]
[]
[]
[]
[]
[]
[]
[]
[]
[]
[]
[]
[]
[]
[]
[]
[]
[]
[]
[]
[]
[]
[]
[]
[]
[]
[]
[]
[]
[]
[]
[]
[]
[]
[]
[]
[]
[]
[]
[]
[]
[]
[]
[]
[]
[]
[]
[]
[]
[]
[]
[]
[]
[]
[]
[]
[]
[]
[]
[]
[]
[]
[]
[]
[]
[]
[]
[]
[]
[]
[]
[]
[]
[]
[]
[]
[]
[]
[]
[]
[]
[]
[]
[]
[]
[]
[]
[]
[]
[]
[]
[]
[]
[]
[]
[]
[]
[]
[]
[]
[]
[]
[]
[]
[]
[]
[]
[]
[]
[]
[]
[]
[]
[]
[]
[]
[]
[]
[]
[]
[]
[]
[]
[]
[]
[]
[]
[]
[]
[]
[]
[]
[]
[]
[]
[]
[]
[]
[]
[]
[]
[]
[]
[]
[]
[]
[]
[]
[]
[]
[]
[]
[]
[]
[]
[]
[]
[]
[]
[]
[]
[]
[]
[]
[]
[]
[]
[]
[]
[]
[]
[]
[]
[]
[]
[]
[]
[]
[]
[]
[]
[]
[]
[]
[]
[]
[]
[]
[]
[]
[]
[]
[]
[]
[]
[]
[]
[]
[]
[]
[]
[]
[]
[]
[]
[]
[]
[]
[]
[]
[]
[]
[]
[]
[]
[]
[]
[]
[]
[]
[]
[]
[]
[]
[]
[]
[]
[]
[]
[]
[]
[]
[]
[]
[]
[]
[]
[]
[]
[]
[]
[]
[]
[]
[]
[]
[]
[]
[]
[]
[]
[]
[]
[]
[]
[]
[]
[]
[]
[]
[]
[]
[]
[]
[]
[]
[]
[]
[]
[]
[]
[]
[]
[]
[]
[]
[]
[]
[]
[]
[]
[]
[]
[]
[]
[]
[]
[]
[]
[]
[]
[]
[]
[]
[]
[]
[]
[]
[]
[]
[]
[]
[]
[]
[]
[]
[]
[]
[]
[]
[]
[]
[]
[]
[]
[]
[]
[]
[]
[]
[]
[]
[]
[]
[]
[]
[]
[]
[]
[]
[]
[]
[]
[]
[]
[]
[]
[]
[]
[]
[]
[]
[]
[]
[]
[]
[]
[]
[]
[]
[]
[]
[]
[]
[]
[]
[]
[]
[]
[]
[]
[]
[]
[]
[]
[]
[]
[]
[]
[]
[]
[]
[]
[]
[]
[]
[]
[]
[]
[]
[]
[]
[]
[]
[]
[]
[]
[]
[]
[]
[]
[]
[]
[]
[]
[]
[]
[]
[]
[]
[]
[]
[]
[]
[]
[]
[]
[]
[]
[]
[]
[]
[]
[]
[]
[]
[]
[]
[]
[]
[]
[]
[]
[]
[]
[]
[]
[]
[]
[]
[]
[]
[]
[]
[]
[]
[]
[]
[]
[]
[]
[]
[]
[]
[]
[]
[]
[]
[]
[]
[]
[]
[]
[]
[]
[]
[]
[]
[]
[]
[]
[]
[]
[]
[]
[]
[]
[]
[]
[]
[]
[]
[]
[]
[]
[]
[]
[]
[]
[]
[]
[]
[]
[]
[]
[]
[]
[]
[]
[]
[]
[]
[]
[]
[]
[]
[]
[]
[]
[]
[]
[]
[]
[]
[]
[]
[]
[]
[]
[]
[]
[]
[]
[]
[]
[]
[]
[]
[]
[]
[]
[]
[]
[]
[]
[]
[]
[]
[]
[]
[]
[]
[]
[]
[]
[]
[]
[]
[]
[]
[]
[]
[]
[]
[]
[]
[]
[]
[]
[]
[]
[]
[]
[]
[]
[]
[]
[]
[]
[]
[]
[]
[]
[]
[]
[]
[]
[]
[]
[]
[]
[]
[]
[]
[]
[]
[]
[]
[]
[]
[]
[]
[]
[]
[]
[]
[]
[]
[]
[]
[]
[]
[]
[]
[]
[]
[]
[]
[]
[]
[]
[]
[]
[]
[]
[]
[]
[]
[]
[]
[]
[]
[]
[]
[]
[]
[]
[]
[]
[]
[]
[]
[]
[]
[]
[]
[]
[]
[]
[]
[]
[]
[]
[]
[]
[]
[]
[]
[]
[]
[]
[]
[]
[]
[]
[]
[]
[]
[]
[]
[]
[]
[]
[]
[]
[]
[]
[]
[]
[]
[]
[]
[]
[]
[]
[]
[]
[]
[]
[]
[]
[]
[]
[]
[]
[]
[]
[]
[]
[]
[]
[]
[]
[]
[]
[]
[]
[]
[]
[]
[]
[]
[]
[]
[]
[]
[]
[]
[]
[]
[]
[]
[]
[]
[]
[]
[]
[]
[]
[]
[]
[]
[]
[]
[]
[]
[]
[]
[]
[]
[]
[]
[]
[]
[]
[]
[]
[]
[]
[]
[]
[]
[]
[]
[]
[]
[]
[]
[]
[]
[]
[]
[]
[]
[]
[]
[]
[]
[]
[]
[]
[]
[]
[]
[]
[]
[]
[]
[]
[]
[]
[]
[]
[]
[]
[]
[]
[]
[]
[]
[]
[]
[]
[]
[]
[]
[]
[]
[]
[]
[]
[]
[]
[]
[]
[]
[]
[]
[]
[]
[]
[]
[]
[]
[]
[]
[]
[]
[]
[]
[]
[]
[]
[]
[]
[]
[]
[]
[]
[]
[]
[]
[]
[]
[]
[]
[]
[]
[]
[]
[]
[]
[]
[]
[]
[]
[]
[]
[]
[]
[]
[]
[]
[]
[]
[]
[]
[]
[]
[]
[]
[]
[]
[]
[]
[]
[]
[]
[]
[]
[]
[]
[]
[]
[]
[]
[]
[]
[]
[]
[]
[]
[]
[]
[]
[]
[]
[]
[]
[]
[]
[]
[]
[]
[]
[]
[]
[]
[]
[]
[]
[]
[]
[]
[]
[]
[]
[]
[]
[]
[]
[]
[]
[]
[]
[]
[]
[]
[]
[]
[]
[]
[]
[]
[]
[]
[]
[]
[]
[]
[]
[]
[]
[]
[]
[]
[]
[]
[]
[]
[]
[]
[]
[]
[]
[]
[]
[]
[]
[]
[]
[]
[]
[]
[]
[]
[]
[]
[]
[]
[]
[]
[]
[]
[]
[]
[]
[]
[]
[]
[]
[]
[]
[]
[]
[]
[]
[]
[]
[]
[]
[]
[]
[]
[]
[]
[]
[]
[]
[]
[]
[]
[]
[]
[]
[]
[]
[]
[]
[]
[]
[]
[]
[]
[]
[]
[]
[]
[]
[]
[]
[]
[]
[]
[]
[]
[]
[]
[]
[]
[]
[]
[]
[]
[]
[]
[]
[]
[]
[]
[]
[]
[]
[]
[]
[]
[]
[]
[]
[]
[]
[]
[]
[]
[]
[]
[]
[]
[]
[]
[]
[]
[]
[]
[]
[]
[]
[]
[]
[]
[]
[]
[]
[]
[]
[]
[]
[]
[]
[]
[]
[]
[]
[]
[]
[]
[]
[]
[]
[]
[]
[]
[]
[]
[]
[]
[]
[]
[]
[]
[]
[]
[]
[]
[]
[]
[]
[]
[]
[]
[]
[]
[]
[]
[]
[]
[]
[]
[]
[]
[]
[]
[]
[]
[]
[]
[]
[]
[]
[]
[]
[]
[]
[]
[]
[]
[]
[]
[]
[]
[]
[]
[]
[]
[]
[]
[]
[]
[]
[]
[]
[]
[]
[]
[]
[]
[]
[]
[]
[]
[]
[]
[]
[]
[]
[]
[]
[]
[]
[]
[]
[]
[]
[]
[]
[]
[]
[]
[]
[]
[]
[]
[]
[]
[]
[]
[]
[]
[]
[]
[]
[]
[]
[]
[]
[]
[]
[]
[]
[]
[]
[]
[]
[]
[]
[]
[]
[]
[]
[]
[]
[]
[]
[]
[]
[]
[]
[]
[]
[]
[]
[]
[]
[]
[]
[]
[]
[]
[]
[]
[]
[]
[]
[]
[]
[]
[]
[]
[]
[]
[]
[]
[]
[]
[]
[]
[]
[]
[]
[]
[]
[]
[]
[]
[]
[]
[]
[]
[]
[]
[]
[]
[]
[]
[]
[]
[]
[]
[]
[]
[]
[]
[]
[]
[]
[]
[]
[]
[]
[]
[]
[]
[]
[]
[]
[]
[]
[]
[]
[]
[]
[]
[]
[]
[]
[]
[]
[]
[]
[]
[]
[]
[]
[]
[]
[]
[]
[]
[]
[]
[]
[]
[]
[]
[]
[]
[]
[]
[]
[]
[]
[]
[]
[]
[]
[]
[]
[]
[]
[]
[]
[]
[]
[]
[]
[]
[]
[]
[]
[]
[]
[]
[]
[]
[]
[]
[]
[]
[]
[]
[]
[]
[]
[]
[]
[]
[]
[]
[]
[]
[]
[]
[]
[]
[]
[]
[]
[]
[]
[]
[]
[]
[]
[]
[]
[]
[]
[]
[]
[]
[]
[]
[]
[]
[]
[]
[]
[]
[]
[]
[]
[]
[]
[]
[]
[]
[]
[]
[]
[]
[]
[]
[]
[]
[]
[]
[]
[]
[]
[]
[]
[]
[]
[]
[]
[]
[]
[]
[]
[]
[]
[]
[]
[]
[]
[]
[]
[]
[]
[]
[]
[]
[]
[]
[]
[]
[]
[]
[]
[]
[]
[]
[]
[]
[]
[]
[]
[]
[]
[]
[]
[]
[]
[]
[]
[]
[]
[]
[]
[]
[]
[]
[]
[]
[]
[]
[]
[]
[]
[]
[]
[]
[]
[]
[]
[]
[]
[]
[]
[]
[]
[]
[]
[]
[]
[]
[]
[]
[]
[]
[]
[]
[]
[]
[]
[]
[]
[]
[]
[]
[]
[]
[]
[]
[]
[]
[]
[]
[]
[]
[]
[]
[]
[]
[]
[]
[]
[]
[]
[]
[]
[]
[]
[]
[]
[]
[]
[]
[]
[]
[]
[]
[]
[]
[]
[]
[]
[]
[]
[]
[]
[]
[]
[]
[]
[]
[]
[]
[]
[]
[]
[]
[]
[]
[]
[]
[]
[]
[]
[]
[]
[]
[]
[]
[]
[]
[]
[]
[]
[]
[]
[]
[]
[]
[]
[]
[]
[]
[]
[]
[]
[]
[]
[]
[]
[]
[]
[]
[]
[]
[]
[]
[]
[]
[]
[]
[]
[]
[]
[]
[]
[]
[]
[]
[]
[]
[]
[]
[]
[]
[]
[]
[]
[]
[]
[]
[]
[]
[]
[]
[]
[]
[]
[]
[]
[]
[]
[]
[]
[]
[]
[]
[]
[]
[]
[]
[]
[]
[]
[]
[]
[]
[]
[]
[]
[]
[]
[]
[]
[]
[]
[]
[]
[]
[]
[]
[]
[]
[]
[]
[]
[]
[]
[]
[]
[]
[]
[]
[]
[]
[]
[]
[]
[]
[]
[]
[]
[]
[]
[]
[]
[]
[]
[]
[]
[]
[]
[]
[]
[]
[]
[]
[]
[]
[]
[]
[]
[]
[]
[]
[]
[]
[]
[]
[]
[]
[]
[]
[]
[]
[]
[]
[]
[]
[]
[]
[]
[]
[]
[]
[]
[]
[]
[]
[]
[]
[]
[]
[]
[]
[]
[]
[]
[]
[]
[]
[]
[]
[]
[]
[]
[]
[]
[]
[]
[]
[]
[]
[]
[]
[]
[]
[]
[]
[]
[]
[]
[]
[]
[]
[]
[]
[]
[]
[]
[]
[]
[]
[]
[]
[]
[]
[]
[]
[]
[]
[]
[]
[]
[]
[]
[]
[]
[]
[]
[]
[]
[]
[]
[]
[]
[]
[]
[]
[]
[]
[]
[]
[]
[]
[]
[]
[]
[]
[]
[]
[]
[]
[]
[]
[]
[]
[]
[]
[]
[]
[]
[]
[]
[]
[]
[]
[]
[]
[]
[]
[]
[]
[]
[]
[]
[]
[]
[]
[]
[]
[]
[]
[]
[]
[]
[]
[]
[]
[]
[]
[]
[]
[]
[]
[]
[]
[]
[]
[]
[]
[]
[]
[]
[]
[]
[]
[]
[]
[]
[]
[]
[]
[]
[]
[]
[]
[]
[]
[]
[]
[]
[]
[]
[]
[]
[]
[]
[]
[]
[]
[]
[]
[]
[]
[]
[]
[]
[]
[]
[]
[]
[]
[]
[]
[]
[]
[]
[]
[]
[]
[]
[]
[]
[]
[]
[]
[]
[]
[]
[]
[]
[]
[]
[]
[]
[]
[]
[]
[]
[]
[]
[]
[]
[]
[]
[]
[]
[]
[]
[]
[]
[]
[]
[]
[]
[]
[]
[]
[]
[]
[]
[]
[]
[]
[]
[]
[]
[]
[]
[]
[]
[]
[]
[]
[]
[]
[]
[]
[]
[]
[]
[]
[]
[]
[]
[]
[]
[]
[]
[]
[]
[]
[]
[]
[]
[]
[]
[]
[]
[]
[]
[]
[]
[]
[]
[]
[]
[]
[]
[]
[]
[]
[]
[]
[]
[]
[]
[]
[]
[]
[]
[]
[]
[]
[]
[]
[]
[]
[]
[]
[]
[]
[]
[]
[]
[]
[]
[]
[]
[]
[]
[]
[]
[]
[]
[]
[]
[]
[]
[]
[]
[]
[]
[]
[]
[]
[]
[]
[]
[]
[]
[]
[]
[]
[]
[]
[]
[]
[]
[]
[]
[]
[]
[]
[]
[]
[]
[]
[]
[]
[]
[]
[]
[]
[]
[]
[]
[]
[]
[]
[]
[]
[]
[]
[]
[]
[]
[]
[]
[]
[]
[]
[]
[]
[]
[]
[]
[]
[]
[]
[]
[]
[]
[]
[]
[]
[]
[]
[]
[]
[]
[]
[]
[]
[]
[]
[]
[]
[]
[]
[]
[]
[]
[]
[]
[]
[]
[]
[]
[]
[]
[]
[]
[]
[]
[]
[]
[]
[]
[]
[]
[]
[]
[]
[]
[]
[]
[]
[]
[]
[]
[]
[]
[]
[]
[]
[]
[]
[]
[]
[]
[]
[]
[]
[]
[]
[]
[]
[]
[]
[]
[]
[]
[]
[]
[]
[]
[]
[]
[]
[]
[]
[]
[]
[]
[]
[]
[]
[]
[]
[]
[]
[]
[]
[]
[]
[]
[]
[]
[]
[]
[]
[]
[]
[]
[]
[]
[]
[]
[]
[]
[]
[]
[]
[]
[]
[]
[]
[]
[]
[]
[]
[]
[]
[]
[]
[]
[]
[]
[]
[]
[]
[]
[]
[]
[]
[]
[]
[]
[]
[]
[]
[]
[]
[]
[]
[]
[]
[]
[]
[]
[]
[]
[]
[]
[]
[]
[]
[]
[]
[]
[]
[]
[]
[]
[]
[]
[]
[]
[]
[]
[]
[]
[]
[]
[]
[]
[]
[]
[]
[]
[]
[]
[]
[]
[]
[]
[]
[]
[]
[]
[]
[]
[]
[]
[]
[]
[]
[]
[]
[]
[]
[]
[]
[]
[]
[]
[]
[]
[]
[]
[]
[]
[]
[]
[]
[]
[]
[]
[]
[]
[]
[]
[]
[]
[]
[]
[]
[]
[]
[]
[]
[]
[]
[]
[]
[]
[]
[]
[]
[]
[]
[]
[]
[]
[]
[]
[]
[]
[]
[]
[]
[]
[]
[]
[]
[]
[]
[]
[]
[]
[]
[]
[]
[]
[]
[]
[]
[]
[]
[]
[]
[]
[]
[]
[]
[]
[]
[]
[]
[]
[]
[]
[]
[]
[]
[]
[]
[]
[]
[]
[]
[]
[]
[]
[]
[]
[]
[]
[]
[]
[]
[]
[]
[]
[]
[]
[]
[]
[]
[]
[]
[]
[]
[]
[]
[]
[]
[]
[]
[]
[]
[]
[]
[]
[]
[]
[]
[]
[]
[]
[]
[]
[]
[]
[]
[]
[]
[]
[]
[]
[]
[]
[]
[]
[]
[]
[]
[]
[]
[]
[]
[]
[]
[]
[]
[]
[]
[]
[]
[]
[]
[]
[]
[]
[]
[]
[]
[]
[]
[]
[]
[]
[]
[]
[]
[]
[]
[]
[]
[]
[]
[]
[]
[]
[]
[]
[]
[]
[]
[]
[]
[]
[]
[]
[]
[]
[]
[]
[]
[]
[]
[]
[]
[]
[]
[]
[]
[]
[]
[]
[]
[]
[]
[]
[]
[]
[]
[]
[]
[]
[]
[]
[]
[]
[]
[]
[]
[]
[]
[]
[]
[]
[]
[]
[]
[]
[]
[]
[]
[]
[]
[]
[]
[]
[]
[]
[]
[]
[]
[]
[]
[]
[]
[]
[]
[]
[]
[]
[]
[]
[]
[]
[]
[]
[]
[]
[]
[]
[]
[]
[]
[]
[]
[]
[]
[]
[]
[]
[]
[]
[]
[]
[]
[]
[]
[]
[]
[]
[]
[]
[]
[]
[]
[]
[]
[]
[]
[]
[]
[]
[]
[]
[]
[]
[]
[]
[]
[]
[]
[]
[]
[]
[]
[]
[]
[]
[]
[]
[]
[]
[]
[]
[]
[]
[]
[]
[]
[]
[]
[]
[]
[]
[]
[]
[]
[]
[]
[]
[]
[]
[]
[]
[]
[]
[]
[]
[]
[]
[]
[]
[]
[]
[]
[]
[]
[]
[]
[]
[]
[]
[]
[]
[]
[]
[]
[]
[]
[]
[]
[]
[]
[]
[]
[]
[]
[]
[]
[]
[]
[]
[]
[]
[]
[]
[]
[]
[]
[]
[]
[]
[]
[]
[]
[]
[]
[]
[]
[]
[]
[]
[]
[]
[]
[]
[]
[]
[]
[]
[]
[]
[]
[]
[]
[]
[]
[]
[]
[]
[]
[]
[]
[]
[]
[]
[]
[]
[]
[]
[]
[]
[]
[]
[]
[]
[]
[]
[]
[]
[]
[]
[]
[]
[]
[]
[]
[]
[]
[]
[]
[]
[]
[]
[]
[]
[]
[]
[]
[]
[]
[]
[]
[]
[]
[]
[]
[]
[]
[]
[]
[]
[]
[]
[]
[]
[]
[]
[]
[]
[]
[]
[]
[]
[]
[]
[]
[]
[]
[]
[]
[]
[]
[]
[]
[]
[]
[]
[]
[]
[]
[]
[]
[]
[]
[]
[]
[]
[]
[]
[]
[]
[]
[]
[]
[]
[]
[]
[]
[]
[]
[]
[]
[]
[]
[]
[]
[]
[]
[]
[]
[]
[]
[]
[]
[]
[]
[]
[]
[]
[]
[]
[]
[]
[]
[]
[]
[]
[]
[]
[]
[]
[]
[]
[]
[]
[]
[]
[]
[]
[]
[]
[]
[]
[]
[]
[]
[]
[]
[]
[]
[]
[]
[]
[]
[]
[]
[]
[]
[]
[]
[]
[]
[]
[]
[]
[]
[]
[]
[]
[]
[]
[]
[]
[]
[]
[]
[]
[]
[]
[]
[]
[]
[]
[]
[]
[]
[]
[]
[]
[]
[]
[]
[]
[]
[]
[]
[]
[]
[]
[]
[]
[]
[]
[]
[]
[]
[]
[]
[]
[]
[]
[]
[]
[]
[]
[]
[]
[]
[]
[]
[]
[]
[]
[]
[]
[]
[]
[]
[]
[]
[]
[]
[]
[]
[]
[]
[]
[]
[]
[]
[]
[]
[]
[]
[]
[]
[]
[]
[]
[]
[]
[]
[]
[]
[]
[]
[]
[]
[]
[]
[]
[]
[]
[]
[]
[]
[]
[]
[]
[]
[]
[]
[]
[]
[]
[]
[]
[]
[]
[]
[]
[]
[]
[]
[]
[]
[]
[]
[]
[]
[]
[]
[]
[]
[]
[]
[]
[]
[]
[]
[]
[]
[]
[]
[]
[]
[]
[]
[]
[]
[]
[]
[]
[]
[]
[]
[]
[]
[]
[]
[]
[]
[]
[]
[]
[]
[]
[]
[]
[]
[]
[]
[]
[]
[]
[]
[]
[]
[]
[]
[]
[]
[]
[]
[]
[]
[]
[]
[]
[]
[]
[]
[]
[]
[]
[]
[]
[]
[]
[]
[]
[]
[]
[]
[]
[]
[]
[]
[]
[]
[]
[]
[]
[]
[]
[]
[]
[]
[]
[]
[]
[]
[]
[]
[]
[]
[]
[]
[]
[]
[]
[]
[]
[]
[]
[]
[]
[]
[]
[]
[]
[]
[]
[]
[]
[]
[]
[]
[]
[]
[]
[]
[]
[]
[]
[]
[]
[]
[]
[]
[]
[]
[]
[]
[]
[]
[]
[]
[]
[]
[]
[]
[]
[]
[]
[]
[]
[]
[]
[]
[]
[]
[]
[]
[]
[]
[]
[]
[]
[]
[]
[]
[]
[]
[]
[]
[]
[]
[]
[]
[]
[]
[]
[]
[]
[]
[]
[]
[]
[]
[]
[]
[]
[]
[]
[]
[]
[]
[]
[]
[]
[]
[]
[]
[]
[]
[]
[]
[]
[]
[]
[]
[]
[]
[]
[]
[]
[]
[]
[]
[]
[]
[]
[]
[]
[]
[]
[]
[]
[]
[]
[]
[]
[]
[]
[]
[]
[]
[]
[]
[]
[]
[]
[]
[]
[]
[]
[]
[]
[]
[]
[]
[]
[]
[]
[]
[]
[]
[]
[]
[]
[]
[]
[]
[]
[]
[]
[]
[]
[]
[]
[]
[]
[]
[]
[]
[]
[]
[]
[]
[]
[]
[]
[]
[]
[]
[]
[]
[]
[]
[]
[]
[]
[]
[]
[]
[]
[]
[]
[]
[]
[]
[]
[]
[]
[]
[]
[]
[]
[]
[]
[]
[]
[]
[]
[]
[]
[]
[]
[]
[]
[]
[]
[]
[]
[]
[]
[]
[]
[]
[]
[]
[]
[]
[]
[]
[]
[]
[]
[]
[]
[]
[]
[]
[]
[]
[]
[]
[]
[]
[]
[]
[]
[]
[]
[]
[]
[]
[]
[]
[]
[]
[]
[]
[]
[]
[]
[]
[]
[]
[]
[]
[]
[]
[]
[]
[]
[]
[]
[]
[]
[]
[]
[]
[]
[]
[]
[]
[]
[]
[]
[]
[]
[]
[]
[]
[]
[]
[]
[]
[]
[]
[]
[]
[]
[]
[]
[]
[]
[]
[]
[]
[]
[]
[]
[]
[]
[]
[]
[]
[]
[]
[]
[]
[]
[]
[]
[]
[]
[]
[]
[]
[]
[]
[]
[]
[]
[]
[]
[]
[]
[]
[]
[]
[]
[]
[]
[]
[]
[]
[]
[]
[]
[]
[]
[]
[]
[]
[]
[]
[]
[]
[]
[]
[]
[]
[]
[]
[]
[]
[]
[]
[]
[]
[]
[]
[]
[]
[]
[]
[]
[]
[]
[]
[]
[]
[]
[]
[]
[]
[]
[]
[]
[]
[]
[]
[]
[]
[]
[]
[]
[]
[]
[]
[]
[]
[]
[]
[]
[]
[]
[]
[]
[]
[]
[]
[]
[]
[]
[]
[]
[]
[]
[]
[]
[]
[]
[]
[]
[]
[]
[]
[]
[]
[]
[]
[]
[]
[]
[]
[]
[]
[]
[]
[]
[]
[]
[]
[]
[]
[]
[]
[]
[]
[]
[]
[]
[]
[]
[]
[]
[]
[]
[]
[]
[]
[]
[]
[]
[]
[]
[]
[]
[]
[]
[]
[]
[]
[]
[]
[]
[]
[]
[]
[]
[]
[]
[]
[]
[]
[]
[]
[]
[]
[]
[]
[]
[]
[]
[]
[]
[]
[]
[]
[]
[]
[]
[]
[]
[]
[]
[]
[]
[]
[]
[]
[]
[]
[]
[]
[]
[]
[]
[]
[]
[]
[]
[]
[]
[]
[]
[]
[]
[]
[]
[]
[]
[]
[]
[]
[]
[]
[]
[]
[]
[]
[]
[]
[]
[]
[]
[]
[]
[]
[]
[]
[]
[]
[]
[]
[]
[]
[]
[]
[]
[]
[]
[]
[]
[]
[]
[]
[]
[]
[]
[]
[]
[]
[]
[]
[]
[]
[]
[]
[]
[]
[]
[]
[]
[]
[]
[]
[]
[]
[]
[]
[]
[]
[]
[]
[]
[]
[]
[]
[]
[]
[]
[]
[]
[]
[]
[]
[]
[]
[]
[]
[]
[]
[]
[]
[]
[]
[]
[]
[]
[]
[]
[]
[]
[]
[]
[]
[]
[]
[]
[]
[]
[]
[]
[]
[]
[]
[]
[]
[]
[]
[]
[]
[]
[]
[]
[]
[]
[]
[]
[]
[]
[]
[]
[]
[]
[]
[]
[]
[]
[]
[]
[]
[]
[]
[]
[]
[]
[]
[]
[]
[]
[]
[]
[]
[]
[]
[]
[]
[]
[]
[]
[]
[]
[]
[]
[]
[]
[]
[]
[]
[]
[]
[]
[]
[]
[]
[]
[]
[]
[]
[]
[]
[]
[]
[]
[]
[]
[]
[]
[]
[]
[]
[]
[]
[]
[]
[]
[]
[]
[]
[]
[]
[]
[]
[]
[]
[]
[]
[]
[]
[]
[]
[]
[]
[]
[]
[]
[]
[]
[]
[]
[]
[]
[]
[]
[]
[]
[]
[]
[]
[]
[]
[]
[]
[]
[]
[]
[]
[]
[]
[]
[]
[]
[]
[]
[]
[]
[]
[]
[]
[]
[]
[]
[]
[]
[]
[]
[]
[]
[]
[]
[]
[]
[]
[]
[]
[]
[]
[]
[]
[]
[]
[]
[]
[]
[]
[]
[]
[]
[]
[]
[]
[]
[]
[]
[]
[]
[]
[]
[]
[]
[]
[]
[]
[]
[]
[]
[]
[]
[]
[]
[]
[]
[]
[]
[]
[]
[]
[]
[]
[]
[]
[]
[]
[]
[]
[]
[]
[]
[]
[]
[]
[]
[]
[]
[]
[]
[]
[]
[]
[]
[]
[]
[]
[]
[]
[]
[]
[]
[]
[]
[]
[]
[]
[]
[]
[]
[]
[]
[]
[]
[]
[]
[]
[]
[]
[]
[]
[]
[]
[]
[]
[]
[]
[]
[]
[]
[]
[]
[]
[]
[]
[]
[]
[]
[]
[]
[]
[]
[]
[]
[]
[]
[]
[]
[]
[]
[]
[]
[]
[]
[]
[]
[]
[]
[]
[]
[]
[]
[]
[]
[]
[]
[]
[]
[]
[]
[]
[]
[]
[]
[]
[]
[]
[]
[]
[]
[]
[]
[]
[]
[]
[]
[]
[]
[]
[]
[]
[]
[]
[]
[]
[]
[]
[]
[]
[]
[]
[]
[]
[]
[]
[]
[]
[]
[]
[]
[]
[]
[]
[]
[]
[]
[]
[]
[]
[]
[]
[]
[]
[]
[]
[]
[]
[]
[]
[]
[]
[]
[]
[]
[]
[]
[]
[]
[]
[]
[]
[]
[]
[]
[]
[]
[]
[]
[]
[]
[]
[]
[]
[]
[]
[]
[]
[]
[]
[]
[]
[]
[]
[]
[]
[]
[]
[]
[]
[]
[]
[]
[]
[]
[]
[]
[]
[]
[]
[]
[]
[]
[]
[]
[]
[]
[]
[]
[]
[]
[]
[]
[]
[]
[]
[]
[]
[]
[]
[]
[]
[]
[]
[]
[]
[]
[]
[]
[]
[]
[]
[]
[]
[]
[]
[]
[]
[]
[]
[]
[]
[]
[]
[]
[]
[]
[]
[]
[]
[]
[]
[]
[]
[]
[]
[]
[]
[]
[]
[]
[]
[]
[]
[]
[]
[]
[]
[]
[]
[]
[]
[]
[]
[]
[]
[]
[]
[]
[]
[]
[]
[]
[]
[]
[]
[]
[]
[]
[]
[]
[]
[]
[]
[]
[]
[]
[]
[]
[]
[]
[]
[]
[]
[]
[]
[]
[]
[]
[]
[]
[]
[]
[]
[]
[]
[]
[]
[]
[]
[]
[]
[]
[]
[]
[]
[]
[]
[]
[]
[]
[]
[]
[]
[]
[]
[]
[]
[]
[]
[]
[]
[]
[]
[]
[]
[]
[]
[]
[]
[]
[]
[]
[]
[]
[]
[]
[]
[]
[]
[]
[]
[]
[]
[]
[]
[]
[]
[]
[]
[]
[]
[]
[]
[]
[]
[]
[]
[]
[]
[]
[]
[]
[]
[]
[]
[]
[]
[]
[]
[]
[]
[]
[]
[]
[]
[]
[]
[]
[]
[]
[]
[]
[]
[]
[]
[]
[]
[]
[]
[]
[]
[]
[]
[]
[]
[]
[]
[]
[]
[]
[]
[]
[]
[]
[]
[]
[]
[]
[]
[]
[]
[]
[]
[]
[]
[]
[]
[]
[]
[]
[]
[]
[]
[]
[]
[]
[]
[]
[]
[]
[]
[]
[]
[]
[]
[]
[]
[]
[]
[]
[]
[]
[]
[]
[]
[]
[]
[]
[]
[]
[]
[]
[]
[]
[]
[]
[]
[]
[]
[]
[]
[]
[]
[]
[]
[]
[]
[]
[]
[]
[]
[]
[]
[]
[]
[]
[]
[]
[]
[]
[]
[]
[]
[]
[]
[]
[]
[]
[]
[]
[]
[]
[]
[]
[]
[]
[]
[]
[]
[]
[]
[]
[]
[]
[]
[]
[]
[]
[]
[]
[]
[]
[]
[]
[]
[]
[]
[]
[]
[]
[]
[]
[]
[]
[]
[]
[]
[]
[]
[]
[]
[]
[]
[]
[]
[]
[]
[]
[]
[]
[]
[]
[]
[]
[]
[]
[]
[]
[]
[]
[]
[]
[]
[]
[]
[]
[]
[]
[]
[]
[]
[]
[]
[]
[]
[]
[]
[]
[]
[]
[]
[]
[]
[]
[]
[]
[]
[]
[]
[]
[]
[]
[]
[]
[]
[]
[]
[]
[]
[]
[]
[]
[]
[]
[]
[]
[]
[]
[]
[]
[]
[]
[]
[]
[]
[]
[]
[]
[]
[]
[]
[]
[]
[]
[]
[]
[]
[]
[]
[]
[]
[]
[]
[]
[]
[]
[]
[]
[]
[]
[]
[]
[]
[]
[]
[]
[]
[]
[]
[]
[]
[]
[]
[]
[]
[]
[]
[]
[]
[]
[]
[]
[]
[]
[]
[]
[]
[]
[]
[]
[]
[]
[]
[]
[]
[]
[]
[]
[]
[]
[]
[]
[]
[]
[]
[]
[]
[]
[]
[]
[]
[]
[]
[]
[]
[]
[]
[]
[]
[]
[]
[]
[]
[]
[]
[]
[]
[]
[]
[]
[]
[]
[]
[]
[]
[]
[]
[]
[]
[]
[]
[]
[]
[]
[]
[]
[]
[]
[]
[]
[]
[]
[]
[]
[]
[]
[]
[]
[]
[]
[]
[]
[]
[]
[]
[]
[]
[]
[]
[]
[]
[]
[]
[]
[]
[]
[]
[]
[]
[]
[]
[]
[]
[]
[]
[]
[]
[]
[]
[]
[]
[]
[]
[]
[]
[]
[]
[]
[]
[]
[]
[]
[]
[]
[]
[]
[]
[]
[]
[]
[]
[]
[]
[]
[]
[]
[]
[]
[]
[]
[]
[]
[]
[]
[]
[]
[]
[]
[]
[]
[]
[]
[]
[]
[]
[]
[]
[]
[]
[]
[]
[]
[]
[]
[]
[]
[]
[]
[]
[]
[]
[]
[]
[]
[]
[]
[]
[]
[]
[]
[]
[]
[]
[]
[]
[]
[]
[]
[]
[]
[]
[]
[]
[]
[]
[]
[]
[]
[]
[]
[]
[]
[]
[]
[]
[]
[]
[]
[]
[]
[]
[]
[]
[]
[]
[]
[]
[]
[]
[]
[]
[]
[]
[]
[]
[]
[]
[]
[]
[]
[]
[]
[]
[]
[]
[]
[]
[]
[]
[]
[]
[]
[]
[]
[]
[]
[]
[]
[]
[]
[]
[]
[]
[]
[]
[]
[]
[]
[]
[]
[]
[]
[]
[]
[]
[]
[]
[]
[]
[]
[]
[]
[]
[]
[]
[]
[]
[]
[]
[]
[]
[]
[]
[]
[]
[]
[]
[]
[]
[]
[]
[]
[]
[]
[]
[]
[]
[]
[]
[]
[]
[]
[]
[]
[]
[]
[]
[]
[]
[]
[]
[]
[]
[]
[]
[]
[]
[]
[]
[]
[]
[]
[]
[]
[]
[]
[]
[]
[]
[]
[]
[]
[]
[]
[]
[]
[]
[]
[]
[]
[]
[]
[]
[]
[]
[]
[]
[]
[]
[]
[]
[]
[]
[]
[]
[]
[]
[]
[]
[]
[]
[]
[]
[]
[]
[]
[]
[]
[]
[]
[]
[]
[]
[]
[]
[]
[]
[]
[]
[]
[]
[]
[]
[]
[]
[]
[]
[]
[]
[]
[]
[]
[]
[]
[]
[]
[]
[]
[]
[]
[]
[]
[]
[]
[]
[]
[]
[]
[]
[]
[]
[]
[]
[]
[]
[]
[]
[]
[]
[]
[]
[]
[]
[]
[]
[]
[]
[]
[]
[]
[]
[]
[]
[]
[]
[]
[]
[]
[]
[]
[]
[]
[]
[]
[]
[]
[]
[]
[]
[]
[]
[]
[]
[]
[]
[]
[]
[]
[]
[]
[]
[]
[]
[]
[]
[]
[]
[]
[]
[]
[]
[]
[]
[]
[]
[]
[]
[]
[]
[]
[]
[]
[]
[]
[]
[]
[]
[]
[]
[]
[]
[]
[]
[]
[]
[]
[]
[]
[]
[]
[]
[]
[]
[]
[]
[]
[]
[]
[]
[]
[]
[]
[]
[]
[]
[]
[]
[]
[]
[]
[]
[]
[]
[]
[]
[]
[]
[]
[]
[]
[]
[]
[]
[]
[]
[]
[]
[]
[]
[]
[]
[]
[]
[]
[]
[]
[]
[]
[]
[]
[]
[]
[]
[]
[]
[]
[]
[]
[]
[]
[]
[]
[]
[]
[]
[]
[]
[]
[]
[]
[]
[]
[]
[]
[]
[]
[]
[]
[]
[]
[]
[]
[]
[]
[]
[]
[]
[]
[]
[]
[]
[]
[]
[]
[]
[]
[]
[]
[]
[]
[]
[]
[]
[]
[]
[]
[]
[]
[]
[]
[]
[]
[]
[]
[]
[]
[]
[]
[]
[]
[]
[]
[]
[]
[]
[]
[]
[]
[]
[]
[]
[]
[]
[]
[]
[]
[]
[]
[]
[]
[]
[]
[]
[]
[]
[]
[]
[]
[]
[]
[]
[]
[]
[]
[]
[]
[]
[]
[]
[]
[]
[]
[]
[]
[]
[]
[]
[]
[]
[]
[]
[]
[]
[]
[]
[]
[]
[]
[]
[]
[]
[]
[]
[]
[]
[]
[]
[]
[]
[]
[]
[]
[]
[]
[]
[]
[]
[]
[]
[]
[]
[]
[]
[]
[]
[]
[]
[]
[]
[]
[]
[]
[]
[]
[]
[]
[]
[]
[]
[]
[]
[]
[]
[]
[]
[]
[]
[]
[]
[]
[]
[]
[]
[]
[]
[]
[]
[]
[]
[]
[]
[]
[]
[]
[]
[]
[]
[]
[]
[]
[]
[]
[]
[]
[]
[]
[]
[]
[]
[]
[]
[]
[]
[]
[]
[]
[]
[]
[]
[]
[]
[]
[]
[]
[]
[]
[]
[]
[]
[]
[]
[]
[]
[]
[]
[]
[]
[]
[]
[]
[]
[]
[]
[]
[]
[]
[]
[]
[]
[]
[]
[]
[]
[]
[]
[]
[]
[]
[]
[]
[]
[]
[]
[]
[]
[]
[]
[]
[]
[]
[]
[]
[]
[]
[]
[]
[]
[]
[]
[]
[]
[]
[]
[]
[]
[]
[]
[]
[]
[]
[]
[]
[]
[]
[]
[]
[]
[]
[]
[]
[]
[]
[]
[]
[]
[]
[]
[]
[]
[]
[]
[]
[]
[]
[]
[]
[]
[]
[]
[]
[]
[]
[]
[]
[]
[]
[]
[]
[]
[]
[]
[]
[]
[]
[]
[]
[]
[]
[]
[]
[]
[]
[]
[]
[]
[]
[]
[]
[]
[]
[]
[]
[]
[]
[]
[]
[]
[]
[]
[]
[]
[]
[]
[]
[]
[]
[]
[]
[]
[]
[]
[]
[]
[]
[]
[]
[]
[]
[]
[]
[]
[]
[]
[]
[]
[]
[]
[]
[]
[]
[]
[]
[]
[]
[]
[]
[]
[]
[]
[]
[]
[]
[]
[]
[]
[]
[]
[]
[]
[]
[]
[]
[]
[]
[]
[]
[]
[]
[]
[]
[]
[]
[]
[]
[]
[]
[]
[]
[]
[]
[]
[]
[]
[]
[]
[]
[]
[]
[]
[]
[]
[]
[]
[]
[]
[]
[]
[]
[]
[]
[]
[]
[]
[]
[]
[]
[]
[]
[]
[]
[]
[]
[]
[]
[]
[]
[]
[]
[]
[]
[]
[]
[]
[]
[]
[]
[]
[]
[]
[]
[]
[]
[]
[]
[]
[]
[]
[]
[]
[]
[]
[]
[]
[]
[]
[]
[]
[]
[]
[]
[]
[]
[]
[]
[]
[]
[]
[]
[]
[]
[]
[]
[]
[]
[]
[]
[]
[]
[]
[]
[]
[]
[]
[]
[]
[]
[]
[]
[]
[]
[]
[]
[]
[]
[]
[]
[]
[]
[]
[]
[]
[]
[]
[]
[]
[]
[]
[]
[]
[]
[]
[]
[]
[]
[]
[]
[]
[]
[]
[]
[]
[]
[]
[]
[]
[]
[]
[]
[]
[]
[]
[]
[]
[]
[]
[]
[]
[]
[]
[]
[]
[]
[]
[]
[]
[]
[]
[]
[]
[]
[]
[]
[]
[]
[]
[]
[]
[]
[]
[]
[]
[]
[]
[]
[]
[]
[]
[]
[]
[]
[]
[]
[]
[]
[]
[]
[]
[]
[]
[]
[]
[]
[]
[]
[]
[]
[]
[]
[]
[]
[]
[]
[]
[]
[]
[]
[]
[]
[]
[]
[]
[]
[]
[]
[]
[]
[]
[]
[]
[]
[]
[]
[]
[]
[]
[]
[]
[]
[]
[]
[]
[]
[]
[]
[]
[]
[]
[]
[]
[]
[]
[]
[]
[]
[]
[]
[]
[]
[]
[]
[]
[]
[]
[]
[]
[]
[]
[]
[]
[]
[]
[]
[]
[]
[]
[]
[]
[]
[]
[]
[]
[]
[]
[]
[]
[]
[]
[]
[]
[]
[]
[]
[]
[]
[]
[]
[]
[]
[]
[]
[]
[]
[]
[]
[]
[]
[]
[]
[]
[]
[]
[]
[]
[]
[]
[]
[]
[]
[]
[]
[]
[]
[]
[]
[]
[]
[]
[]
[]
[]
[]
[]
[]
[]
[]
[]
[]
[]
[]
[]
[]
[]
[]
[]
[]
[]
[]
[]
[]
[]
[]
[]
[]
[]
[]
[]
[]
[]
[]
[]
[]
[]
[]
[]
[]
[]
[]
[]
[]
[]
[]
[]
[]
[]
[]
[]
[]
[]
[]
[]
[]
[]
[]
[]
[]
[]
[]
[]
[]
[]
[]
[]
[]
[]
[]
[]
[]
[]
[]
[]
[]
[]
[]
[]
[]
[]
[]
[]
[]
[]
[]
[]
[]
[]
[]
[]
[]
[]
[]
[]
[]
[]
[]
[]
[]
[]
[]
[]
[]
[]
[]
[]
[]
[]
[]
[]
[]
[]
[]
[]
[]
[]
[]
[]
[]
[]
[]
[]
[]
[]
[]
[]
[]
[]
[]
[]
[]
[]
[]
[]
[]
[]
[]
[]
[]
[]
[]
[]
[]
[]
[]
[]
[]
[]
[]
[]
[]
[]
[]
[]
[]
[]
[]
[]
[]
[]
[]
[]
[]
[]
[]
[]
[]
[]
[]
[]
[]
[]
[]
[]
[]
[]
[]
[]
[]
[]
[]
[]
[]
[]
[]
[]
[]
[]
[]
[]
[]
[]
[]
[]
[]
[]
[]
[]
[]
[]
[]
[]
[]
[]
[]
[]
[]
[]
[]
[]
[]
[]
[]
[]
[]
[]
[]
[]
[]
[]
[]
[]
[]
[]
[]
[]
[]
[]
[]
[]
[]
[]
[]
[]
[]
[]
[]
[]
[]
[]
[]
[]
[]
[]
[]
[]
[]
[]
[]
[]
[]
[]
[]
[]
[]
[]
[]
[]
[]
[]
[]
[]
[]
[]
[]
[]
[]
[]
[]
[]
[]
[]
[]
[]
[]
[]
[]
[]
[]
[]
[]
[]
[]
[]
[]
[]
[]
[]
[]
[]
[]
[]
[]
[]
[]
[]
[]
[]
[]
[]
[]
[]
[]
[]
[]
[]
[]
[]
[]
[]
[]
[]
[]
[]
[]
[]
[]
[]
[]
[]
[]
[]
[]
[]
[]
[]
[]
[]
[]
[]
[]
[]
[]
[]
[]
[]
[]
[]
[]
[]
[]
[]
[]
[]
[]
[]
[]
[]
[]
[]
[]
[]
[]
[]
[]
[]
[]
[]
[]
[]
[]
[]
[]
[]
[]
[]
[]
[]
[]
[]
[]
[]
[]
[]
[]
[]
[]
[]
[]
[]
[]
[]
[]
[]
[]
[]
[]
[]
[]
[]
[]
[]
[]
[]
[]
[]
[]
[]
[]
[]
[]
[]
[]
[]
[]
[]
[]
[]
[]
[]
[]
[]
[]
[]
[]
[]
[]
[]
[]
[]
[]
[]
[]
[]
[]
[]
[]
[]
[]
[]
[]
[]
[]
[]
[]
[]
[]
[]
[]
[]
[]
[]
[]
[]
[]
[]
[]
[]
[]
[]
[]
[]
[]
[]
[]
[]
[]
[]
[]
[]
[]
[]
[]
[]
[]
[]
[]
[]
[]
[]
[]
[]
[]
[]
[]
[]
[]
[]
[]
[]
[]
[]
[]
[]
[]
[]
[]
[]
[]
[]
[]
[]
[]
[]
[]
[]
[]
[]
[]
[]
[]
[]
[]
[]
[]
[]
[]
[]
[]
[]
[]
[]
[]
[]
[]
[]
[]
[]
[]
[]
[]
[]
[]
[]
[]
[]
[]
[]
[]
[]
[]
[]
[]
[]
[]
[]
[]
[]
[]
[]
[]
[]
[]
[]
[]
[]
[]
[]
[]
[]
[]
[]
[]
[]
[]
[]
[]
[]
[]
[]
[]
[]
[]
[]
[]
[]
[]
[]
[]
[]
[]
[]
[]
[]
[]
[]
[]
[]
[]
[]
[]
[]
[]
[]
[]
[]
[]
[]
[]
[]
[]
[]
[]
[]
[]
[]
[]
[]
[]
[]
[]
[]
[]
[]
[]
[]
[]
[]
[]
[]
[]
[]
[]
[]
[]
[]
[]
[]
[]
[]
[]
[]
[]
[]
[]
[]
[]
[]
[]
[]
[]
[]
[]
[]
[]
[]
[]
[]
[]
[]
[]
[]
[]
[]
[]
[]
[]
[]
[]
[]
[]
[]
[]
[]
[]
[]
[]
[]
[]
[]
[]
[]
[]
[]
[]
[]
[]
[]
[]
[]
[]
[]
[]
[]
[]
[]
[]
[]
[]
[]
[]
[]
[]
[]
[]
[]
[]
[]
[]
[]
[]
[]
[]
[]
[]
[]
[]
[]
[]
[]
[]
[]
[]
[]
[]
[]
[]
[]
[]
[]
[]
[]
[]
[]
[]
[]
[]
[]
[]
[]
[]
[]
[]
[]
[]
[]
[]
[]
[]
[]
[]
[]
[]
[]
[]
[]
[]
[]
[]
[]
[]
[]
[]
[]
[]
[]
[]
[]
[]
[]
[]
[]
[]
[]
[]
[]
[]
[]
[]
[]
[]
[]
[]
[]
[]
[]
[]
[]
[]
[]
[]
[]
[]
[]
[]
[]
[]
[]
[]
[]
[]
[]
[]
[]
[]
[]
[]
[]
[]
[]
[]
[]
[]
[]
[]
[]
[]
[]
[]
[]
[]
[]
[]
[]
[]
[]
[]
[]
[]
[]
[]
[]
[]
[]
[]
[]
[]
[]
[]
[]
[]
[]
[]
[]
[]
[]
[]
[]
[]
[]
[]
[]
[]
[]
[]
[]
[]
[]
[]
[]
[]
[]
[]
[]
[]
[]
[]
[]
[]
[]
[]
[]
[]
[]
[]
[]
[]
[]
[]
[]
[]
[]
[]
[]
[]
[]
[]
[]
[]
[]
[]
[]
[]
[]
[]
[]
[]
[]
[]
[]
[]
[]
[]
[]
[]
[]
[]
[]
[]
[]
[]
[]
[]
[]
[]
[]
[]
[]
[]
[]
[]
[]
[]
[]
[]
[]
[]
[]
[]
[]
[]
[]
[]
[]
[]
[]
[]
[]
[]
[]
[]
[]
[]
[]
[]
[]
[]
[]
[]
[]
[]
[]
[]
[]
[]
[]
[]
[]
[]
[]
[]
[]
[]
[]
[]
[]
[]
[]
[]
[]
[]
[]
[]
[]
[]
[]
[]
[]
[]
[]
[]
[]
[]
[]
[]
[]
[]
[]
[]
[]
[]
[]
[]
[]
[]
[]
[]
[]
[]
[]
[]
[]
[]
[]
[]
[]
[]
[]
[]
[]
[]
[]
[]
[]
[]
[]
[]
[]
[]
[]
[]
[]
[]
[]
[]
[]
[]
[]
[]
[]
[]
[]
[]
[]
[]
[]
[]
[]
[]
[]
[]
[]
[]
[]
[]
[]
[]
[]
[]
[]
[]
[]
[]
[]
[]
[]
[]
[]
[]
[]
[]
[]
[]
[]
[]
[]
[]
[]
[]
[]
[]
[]
[]
[]
[]
[]
[]
[]
[]
[]
[]
[]
[]
[]
[]
[]
[]
[]
[]
[]
[]
[]
[]
[]
[]
[]
[]
[]
[]
[]
[]
[]
[]
[]
[]
[]
[]
[]
[]
[]
[]
[]
[]
[]
[]
[]
[]
[]
[]
[]
[]
[]
[]
[]
[]
[]
[]
[]
[]
[]
[]
[]
[]
[]
[]
[]
[]
[]
[]
[]
[]
[]
[]
[]
[]
[]
[]
[]
[]
[]
[]
[]
[]
[]
[]
[]
[]
[]
[]
[]
[]
[]
[]
[]
[]
[]
[]
[]
[]
[]
[]
[]
[]
[]
[]
[]
[]
[]
[]
[]
[]
[]
[]
[]
[]
[]
[]
[]
[]
[]
[]
[]
[]
[]
[]
[]
[]
[]
[]
[]
[]
[]
[]
[]
[]
[]
[]
[]
[]
[]
[]
[]
[]
[]
[]
[]
[]
[]
[]
[]
[]
[]
[]
[]
[]
[]
[]
[]
[]
[]
[]
[]
[]
[]
[]
[]
[]
[]
[]
[]
[]
[]
[]
[]
[]
[]
[]
[]
[]
[]
[]
[]
[]
[]
[]
[]
[]
[]
[]
[]
[]
[]
[]
[]
[]
[]
[]
[]
[]
[]
[]
[]
[]
[]
[]
[]
[]
[]
[]
[]
[]
[]
[]
[]
[]
[]
[]
[]
[]
[]
[]
[]
[]
[]
[]
[]
[]
[]
[]
[]
[]
[]
[]
[]
[]
[]
[]
[]
[]
[]
[]
[]
[]
[]
[]
[]
[]
[]
[]
[]
[]
[]
[]
[]
[]
[]
[]
[]
[]
[]
[]
[]
[]
[]
[]
[]
[]
[]
[]
[]
[]
[]
[]
[]
[]
[]
[]
[]
[]
[]
[]
[]
[]
[]
[]
[]
[]
[]
[]
[]
[]
[]
[]
[]
[]
[]
[]
[]
[]
[]
[]
[]
[]
[]
[]
[]
[]
[]
[]
[]
[]
[]
[]
[]
[]
[]
[]
[]
[]
[]
[]
[]
[]
[]
[]
[]
[]
[]
[]
[]
[]
[]
[]
[]
[]
[]
[]
[]
[]
[]
[]
[]
[]
[]
[]
[]
[]
[]
[]
[]
[]
[]
[]
[]
[]
[]
[]
[]
[]
[]
[]
[]
[]
[]
[]
[]
[]
[]
[]
[]
[]
[]
[]
[]
[]
[]
[]
[]
[]
[]
[]
[]
[]
[]
[]
[]
[]
[]
[]
[]
[]
[]
[]
[]
[]
[]
[]
[]
[]
[]
[]
[]
[]
[]
[]
[]
[]
[]
[]
[]
[]
[]
[]
[]
[]
[]
[]
[]
[]
[]
[]
[]
[]
[]
[]
[]
[]
[]
[]
[]
[]
[]
[]
[]
[]
[]
[]
[]
[]
[]
[]
[]
[]
[]
[]
[]
[]
[]
[]
[]
[]
[]
[]
[]
[]
[]
[]
[]
[]
[]
[]
[]
[]
[]
[]
[]
[]
[]
[]
[]
[]
[]
[]
[]
[]
[]
[]
[]
[]
[]
[]
[]
[]
[]
[]
[]
[]
[]
[]
[]
[]
[]
[]
[]
[]
[]
[]
[]
[]
[]
[]
[]
[]
[]
[]
[]
[]
[]
[]
[]
[]
[]
[]
[]
[]
[]
[]
[]
[]
[]
[]
[]
[]
[]
[]
[]
[]
[]
[]
[]
[]
[]
[]
[]
[]
[]
[]
[]
[]
[]
[]
[]
[]
[]
[]
[]
[]
[]
[]
[]
[]
[]
[]
[]
[]
[]
[]
[]
[]
[]
[]
[]
[]
[]
[]
[]
[]
[]
[]
[]
[]
[]
[]
[]
[]
[]
[]
[]
[]
[]
[]
[]
[]
[]
[]
[]
[]
[]
[]
[]
[]
[]
[]
[]
[]
[]
[]
[]
[]
[]
[]
[]
[]
[]
[]
[]
[]
[]
[]
[]
[]
[]
[]
[]
[]
[]
[]
[]
[]
[]
[]
[]
[]
[]
[]
[]
[]
[]
[]
[]
[]
[]
[]
[]
[]
[]
[]
[]
[]
[]
[]
[]
[]
[]
[]
[]
[]
[]
[]
[]
[]
[]
[]
[]
[]
[]
[]
[]
[]
[]
[]
[]
[]
[]
[]
[]
[]
[]
[]
[]
[]
[]
[]
[]
[]
[]
[]
[]
[]
[]
[]
[]
[]
[]
[]
[]
[]
[]
[]
[]
[]
[]
[]
[]
[]
[]
[]
[]
[]
[]
[]
[]
[]
[]
[]
[]
[]
[]
[]
[]
[]
[]
[]
[]
[]
[]
[]
[]
[]
[]
[]
[]
[]
[]
[]
[]
[]
[]
[]
[]
[]
[]
[]
[]
[]
[]
[]
[]
[]
[]
[]
[]
[]
[]
[]
[]
[]
[]
[]
[]
[]
[]
[]
[]
[]
[]
[]
[]
[]
[]
[]
[]
[]
[]
[]
[]
[]
[]
[]
[]
[]
[]
[]
[]
[]
[]
[]
[]
[]
[]
[]
[]
[]
[]
[]
[]
[]
[]
[]
[]
[]
[]
[]
[]
[]
[]
[]
[]
[]
[]
[]
[]
[]
[]
[]
[]
[]
[]
[]
[]
[]
[]
[]
[]
[]
[]
[]
[]
[]
[]
[]
[]
[]
[]
[]
[]
[]
[]
[]
[]
[]
[]
[]
[]
[]
[]
[]
[]
[]
[]
[]
[]
[]
[]
[]
[]
[]
[]
[]
[]
[]
[]
[]
[]
[]
[]
[]
[]
[]
[]
[]
[]
[]
[]
[]
[]
[]
[]
[]
[]
[]
[]
[]
[]
[]
[]
[]
[]
[]
[]
[]
[]
[]
[]
[]
[]
[]
[]
[]
[]
[]
[]
[]
[]
[]
[]
[]
[]
[]
[]
[]
[]
[]
[]
[]
[]
[]
[]
[]
[]
[]
[]
[]
[]
[]
[]
[]
[]
[]
[]
[]
[]
[]
[]
[]
[]
[]
[]
[]
[]
[]
[]
[]
[]
[]
[]
[]
[]
[]
[]
[]
[]
[]
[]
[]
[]
[]
[]
[]
[]
[]
[]
[]
[]
[]
[]
[]
[]
[]
[]
[]
[]
[]
[]
[]
[]
[]
[]
[]
[]
[]
[]
[]
[]
[]
[]
[]
[]
[]
[]
[]
[]
[]
[]
[]
[]
[]
[]
[]
[]
[]
[]
[]
[]
[]
[]
[]
[]
[]
[]
[]
[]
[]
[]
[]
[]
[]
[]
[]
[]
[]
[]
[]
[]
[]
[]
[]
[]
[]
[]
[]
[]
[]
[]
[]
[]
[]
[]
[]
[]
[]
[]
[]
[]
[]
[]
[]
[]
[]
[]
[]
[]
[]
[]
[]
[]
[]
[]
[]
[]
[]
[]
[]
[]
[]
[]
[]
[]
[]
[]
[]
[]
[]
[]
[]
[]
[]
[]
[]
[]
[]
[]
[]
[]
[]
[]
[]
[]
[]
[]
[]
[]
[]
[]
[]
[]
[]
[]
[]
[]
[]
[]
[]
[]
[]
[]
[]
[]
[]
[]
[]
[]
[]
[]
[]
[]
[]
[]
[]
[]
[]
[]
[]
[]
[]
[]
[]
[]
[]
[]
[]
[]
[]
[]
[]
[]
[]
[]
[]
[]
[]
[]
[]
[]
[]
[]
[]
[]
[]
[]
[]
[]
[]
[]
[]
[]
[]
[]
[]
[]
[]
[]
[]
[]
[]
[]
[]
[]
[]
[]
[]
[]
[]
[]
[]
[]
[]
[]
[]
[]
[]
[]
[]
[]
[]
[]
[]
[]
[]
[]
[]
[]
[]
[]
[]
[]
[]
[]
[]
[]
[]
[]
[]
[]
[]
[]
[]
[]
[]
[]
[]
[]
[]
[]
[]
[]
[]
[]
[]
[]
[]
[]
[]
[]
[]
[]
[]
[]
[]
[]
[]
[]
[]
[]
[]
[]
[]
[]
[]
[]
[]
[]
[]
[]
[]
[]
[]
[]
[]
[]
[]
[]
[]
[]
[]
[]
[]
[]
[]
[]
[]
[]
[]
[]
[]
[]
[]
[]
[]
[]
[]
[]
[]
[]
[]
[]
[]
[]
[]
[]
[]
[]
[]
[]
[]
[]
[]
[]
[]
[]
[]
[]
[]
[]
[]
[]
[]
[]
[]
[]
[]
[]
[]
[]
[]
[]
[]
[]
[]
[]
[]
[]
[]
[]
[]
[]
[]
[]
[]
[]
[]
[]
[]
[]
[]
[]
[]
[]
[]
[]
[]
[]
[]
[]
[]
[]
[]
[]
[]
[]
[]
[]
[]
[]
[]
[]
[]
[]
[]
[]
[]
[]
[]
[]
[]
[]
[]
[]
[]
[]
[]
[]
[]
[]
[]
[]
[]
[]
[]
[]
[]
[]
[]
[]
[]
[]
[]
[]
[]
[]
[]
[]
[]
[]
[]
[]
[]
[]
[]
[]
[]
[]
[]
[]
[]
[]
[]
[]
[]
[]
[]
[]
[]
[]
[]
[]
[]
[]
[]
[]
[]
[]
[]
[]
[]
[]
[]
[]
[]
[]
[]
[]
[]
[]
[]
[]
[]
[]
[]
[]
[]
[]
[]
[]
[]
[]
[]
[]
[]
[]
[]
[]
[]
[]
[]
[]
[]
[]
[]
[]
[]
[]
[]
[]
[]
[]
[]
[]
[]
[]
[]
[]
[]
[]
[]
[]
[]
[]
[]
[]
[]
[]
[]
[]
[]
[]
[]
[]
[]
[]
[]
[]
[]
[]
[]
[]
[]
[]
[]
[]
[]
[]
[]
[]
[]
[]
[]
[]
[]
[]
[]
[]
[]
[]
[]
[]
[]
[]
[]
[]
[]
[]
[]
[]
[]
[]
[]
[]
[]
[]
[]
[]
[]
[]
[]
[]
[]
[]
[]
[]
[]
[]
[]
[]
[]
[]
[]
[]
[]
[]
[]
[]
[]
[]
[]
[]
[]
[]
[]
[]
[]
[]
[]
[]
[]
[]
[]
[]
[]
[]
[]
[]
[]
[]
[]
[]
[]
[]
[]
[]
[]
[]
[]
[]
[]
[]
[]
[]
[]
[]
[]
[]
[]
[]
[]
[]
[]
[]
[]
[]
[]
[]
[]
[]
[]
[]
[]
[]
[]
[]
[]
[]
[]
[]
[]
[]
[]
[]
[]
[]
[]
[]
[]
[]
[]
[]
[]
[]
[]
[]
[]
[]
[]
[]
[]
[]
[]
[]
[]
[]
[]
[]
[]
[]
[]
[]
[]
[]
[]
[]
[]
[]
[]
[]
[]
[]
[]
[]
[]
[]
[]
[]
[]
[]
[]
[]
[]
[]
[]
[]
[]
[]
[]
[]
[]
[]
[]
[]
[]
[]
[]
[]
[]
[]
[]
[]
[]
[]
[]
[]
[]
[]
[]
[]
[]
[]
[]
[]
[]
[]
[]
[]
[]
[]
[]
[]
[]
[]
[]
[]
[]
[]
[]
[]
[]
[]
[]
[]
[]
[]
[]
[]
[]
[]
[]
[]
[]
[]
[]
[]
[]
[]
[]
[]
[]
[]
[]
[]
[]
[]
[]
[]
[]
[]
[]
[]
[]
[]
[]
[]
[]
[]
[]
[]
[]
[]
[]
[]
[]
[]
[]
[]
[]
[]
[]
[]
[]
[]
[]
[]
[]
[]
[]
[]
[]
[]
[]
[]
[]
[]
[]
[]
[]
[]
[]
[]
[]
[]
[]
[]
[]
[]
[]
[]
[]
[]
[]
[]
[]
[]
[]
[]
[]
[]
[]
[]
[]
[]
[]
[]
[]
[]
[]
[]
[]
[]
[]
[]
[]
[]
[]
[]
[]
[]
[]
[]
[]
[]
[]
[]
[]
[]
[]
[]
[]
[]
[]
[]
[]
[]
[]
[]
[]
[]
[]
[]
[]
[]
[]
[]
[]
[]
[]
[]
[]
[]
[]
[]
[]
[]
[]
[]
[]
[]
[]
[]
[]
[]
[]
[]
[]
[]
[]
[]
[]
[]
[]
[]
[]
[]
[]
[]
[]
[]
[]
[]
[]
[]
[]
[]
[]
[]
[]
[]
[]
[]
[]
[]
[]
[]
[]
[]
[]
[]
[]
[]
[]
[]
[]
[]
[]
[]
[]
[]
[]
[]
[]
[]
[]
[]
[]
[]
[]
[]
[]
[]
[]
[]
[]
[]
[]
[]
[]
[]
[]
[]
[]
[]
[]
[]
[]
[]
[]
[]
[]
[]
[]
[]
[]
[]
[]
[]
[]
[]
[]
[]
[]
[]
[]
[]
[]
[]
[]
[]
[]
[]
[]
[]
[]
[]
[]
[]
[]
[]
[]
[]
[]
[]
[]
[]
[]
[]
[]
[]
[]
[]
[]
[]
[]
[]
[]
[]
[]
[]
[]
[]
[]
[]
[]
[]
[]
[]
[]
[]
[]
[]
[]
[]
[]
[]
[]
[]
[]
[]
[]
[]
[]
[]
[]
[]
[]
[]
[]
[]
[]
[]
[]
[]
[]
[]
[]
[]
[]
[]
[]
[]
[]
[]
[]
[]
[]
[]
[]
[]
[]
[]
[]
[]
[]
[]
[]
[]
[]
[]
[]
[]
[]
[]
[]
[]
[]
[]
[]
[]
[]
[]
[]
[]
[]
[]
[]
[]
[]
[]
[]
[]
[]
[]
[]
[]
[]
[]
[]
[]
[]
[]
[]
[]
[]
[]
[]
[]
[]
[]
[]
[]
[]
[]
[]
[]
[]
[]
[]
[]
[]
[]
[]
[]
[]
[]
[]
[]
[]
[]
[]
[]
[]
[]
[]
[]
[]
[]
[]
[]
[]
[]
[]
[]
[]
[]
[]
[]
[]
[]
[]
[]
[]
[]
[]
[]
[]
[]
[]
[]
[]
[]
[]
[]
[]
[]
[]
[]
[]
[]
[]
[]
[]
[]
[]
[]
[]
[]
[]
[]
[]
[]
[]
[]
[]
[]
[]
[]
[]
[]
[]
[]
[]
[]
[]
[]
[]
[]
[]
[]
[]
[]
[]
[]
[]
[]
[]
[]
[]
[]
[]
[]
[]
[]
[]
[]
[]
[]
[]
[]
[]
[]
[]
[]
[]
[]
[]
[]
[]
[]
[]
[]
[]
[]
[]
[]
[]
[]
[]
[]
[]
[]
[]
[]
[]
[]
[]
[]
[]
[]
[]
[]
[]
[]
[]
[]
[]
[]
[]
[]
[]
[]
[]
[]
[]
[]
[]
[]
[]
[]
[]
[]
[]
[]
[]
[]
[]
[]
[]
[]
[]
[]
[]
[]
[]
[]
[]
[]
[]
[]
[]
[]
[]
[]
[]
[]
[]
[]
[]
[]
[]
[]
[]
[]
[]
[]
[]
[]
[]
[]
[]
[]
[]
[]
[]
[]
[]
[]
[]
[]
[]
[]
[]
[]
[]
[]
[]
[]
[]
[]
[]
[]
[]
[]
[]
[]
[]
[]
[]
[]
[]
[]
[]
[]
[]
[]
[]
[]
[]
[]
[]
[]
[]
[]
[]
[]
[]
[]
[]
[]
[]
[]
[]
[]
[]
[]
[]
[]
[]
[]
[]
[]
[]
[]
[]
[]
[]
[]
[]
[]
[]
[]
[]
[]
[]
[]
[]
[]
[]
[]
[]
[]
[]
[]
[]
[]
[]
[]
[]
[]
[]
[]
[]
[]
[]
[]
[]
[]
[]
[]
[]
[]
[]
[]
[]
[]
[]
[]
[]
[]
[]
[]
[]
[]
[]
[]
[]
[]
[]
[]
[]
[]
[]
[]
[]
[]
[]
[]
[]
[]
[]
[]
[]
[]
[]
[]
[]
[]
[]
[]
[]
[]
[]
[]
[]
[]
[]
[]
[]
[]
[]
[]
[]
[]
[]
[]
[]
[]
[]
[]
[]
[]
[]
[]
[]
[]
[]
[]
[]
[]
[]
[]
[]
[]
[]
[]
[]
[]
[]
[]
[]
[]
[]
[]
[]
[]
[]
[]
[]
[]
[]
[]
[]
[]
[]
[]
[]
[]
[]
[]
[]
[]
[]
[]
[]
[]
[]
[]
[]
[]
[]
[]
[]
[]
[]
[]
[]
[]
[]
[]
[]
[]
[]
[]
[]
[]
[]
[]
[]
[]
[]
[]
[]
[]
[]
[]
[]
[]
[]
[]
[]
[]
[]
[]
[]
[]
[]
[]
[]
[]
[]
[]
[]
[]
[]
[]
[]
[]
[]
[]
[]
[]
[]
[]
[]
[]
[]
[]
[]
[]
[]
[]
[]
[]
[]
[]
[]
[]
[]
[]
[]
[]
[]
[]
[]
[]
[]
[]
[]
[]
[]
[]
[]
[]
[]
[]
[]
[]
[]
[]
[]
[]
[]
[]
[]
[]
[]
[]
[]
[]
[]
[]
[]
[]
[]
[]
[]
[]
[]
[]
[]
[]
[]
[]
[]
[]
[]
[]
[]
[]
[]
[]
[]
[]
[]
[]
[]
[]
[]
[]
[]
[]
[]
[]
[]
[]
[]
[]
[]
[]
[]
[]
[]
[]
[]
[]
[]
[]
[]
[]
[]
[]
[]
[]
[]
[]
[]
[]
[]
[]
[]
[]
[]
[]
[]
[]
[]
[]
[]
[]
[]
[]
[]
[]
[]
[]
[]
[]
[]
[]
[]
[]
[]
[]
[]
[]
[]
[]
[]
[]
[]
[]
[]
[]
[]
[]
[]
[]
[]
[]
[]
[]
[]
[]
[]
[]
[]
[]
[]
[]
[]
[]
[]
[]
[]
[]
[]
[]
[]
[]
[]
[]
[]
[]
[]
[]
[]
[]
[]
[]
[]
[]
[]
[]
[]
[]
[]
[]
[]
[]
[]
[]
[]
[]
[]
[]
[]
[]
[]
[]
[]
[]
[]
[]
[]
[]
[]
[]
[]
[]
[]
[]
[]
[]
[]
[]
[]
[]
[]
[]
[]
[]
[]
[]
[]
[]
[]
[]
[]
[]
[]
[]
[]
[]
[]
[]
[]
[]
[]
[]
[]
[]
[]
[]
[]
[]
[]
[]
[]
[]
[]
[]
[]
[]
[]
[]
[]
[]
[]
[]
[]
[]
[]
[]
[]
[]
[]
[]
[]
[]
[]
[]
[]
[]
[]
[]
[]
[]
[]
[]
[]
[]
[]
[]
[]
[]
[]
[]
[]
[]
[]
[]
[]
[]
[]
[]
[]
[]
[]
[]
[]
[]
[]
[]
[]
[]
[]
[]
[]
[]
[]
[]
[]
[]
[]
[]
[]
[]
[]
[]
[]
[]
[]
[]
[]
[]
[]
[]
[]
[]
[]
[]
[]
[]
[]
[]
[]
[]
[]
[]
[]
[]
[]
[]
[]
[]
[]
[]
[]
[]
[]
[]
[]
[]
[]
[]
[]
[]
[]
[]
[]
[]
[]
[]
[]
[]
[]
[]
[]
[]
[]
[]
[]
[]
[]
[]
[]
[]
[]
[]
[]
[]
[]
[]
[]
[]
[]
[]
[]
[]
[]
[]
[]
[]
[]
[]
[]
[]
[]
[]
[]
[]
[]
[]
[]
[]
[]
[]
[]
[]
[]
[]
[]
[]
[]
[]
[]
[]
[]
[]
[]
[]
[]
[]
[]
[]
[]
[]
[]
[]
[]
[]
[]
[]
[]
[]
[]
[]
[]
[]
[]
[]
[]
[]
[]
[]
[]
[]
[]
[]
[]
[]
[]
[]
[]
[]
[]
[]
[]
[]
[]
[]
[]
[]
[]
[]
[]
[]
[]
[]
[]
[]
[]
[]
[]
[]
[]
[]
[]
[]
[]
[]
[]
[]
[]
[]
[]
[]
[]
[]
[]
[]
[]
[]
[]
[]
[]
[]
[]
[]
[]
[]
[]
[]
[]
[]
[]
[]
[]
[]
[]
[]
[]
[]
[]
[]
[]
[]
[]
[]
[]
[]
[]
[]
[]
[]
[]
[]
[]
[]
[]
[]
[]
[]
[]
[]
[]
[]
[]
[]
[]
[]
[]
[]
[]
[]
[]
[]
[]
[]
[]
[]
[]
[]
[]
[]
[]
[]
[]
[]
[]
[]
[]
[]
[]
[]
[]
[]
[]
[]
[]
[]
[]
[]
[]
[]
[]
[]
[]
[]
[]
[]
[]
[]
[]
[]
[]
[]
[]
[]
[]
[]
[]
[]
[]
[]
[]
[]
[]
[]
[]
[]
[]
[]
[]
[]
[]
[]
[]
[]
[]
[]
[]
[]
[]
[]
[]
[]
[]
[]
[]
[]
[]
[]
[]
[]
[]
[]
[]
[]
[]
[]
[]
[]
[]
[]
[]
[]
[]
[]
[]
[]
[]
[]
[]
[]
[]
[]
[]
[]
[]
[]
[]
[]
[]
[]
[]
[]
[]
[]
[]
[]
[]
[]
[]
[]
[]
[]
[]
[]
[]
[]
[]
[]
[]
[]
[]
[]
[]
[]
[]
[]
[]
[]
[]
[]
[]
[]
[]
[]
[]
[]
[]
[]
[]
[]
[]
[]
[]
[]
[]
[]
[]
[]
[]
[]
[]
[]
[]
[]
[]
[]
[]
[]
[]
[]
[]
[]
[]
[]
[]
[]
[]
[]
[]
[]
[]
[]
[]
[]
[]
[]
[]
[]
[]
[]
[]
[]
[]
[]
[]
[]
[]
[]
[]
[]
[]
[]
[]
[]
[]
[]
[]
[]
[]
[]
[]
[]
[]
[]
[]
[]
[]
[]
[]
[]
[]
[]
[]
[]
[]
[]
[]
[]
[]
[]
[]
[]
[]
[]
[null,null,null,null,null,null,null,null,null,null,null,null,null,null,null,null,null,null,"Kirill.s.Saulin@ya.ru"]
[null,null,null,null,null,null,null,null,null,null,null,null,null,null,null,null,null,null,"eldar.akchurin2018@gmail.com"]
[null,null,null,null,null,null,null,null,null,null,null,null,null,null,null,null,null,null,"pingul@mail.ru"]
[null,null,null,null,null,null,null,null,null,null,null,null,null,null,null,null,null,null,"katununtzev201yandex.ru"]

{"sheet":"LIST","index":1,"n_rows":69,"n_cols":9,"rows_kept":69,"cut":false,"hidden":false,"merged":[[44,1,44,4],[29,0,29,1],[31,5,31,8],[0,7,0,8],[37,1,37,4],[38,3,38,7]]}
[null,{"$f":"\" ЭКЗАМЕНАЦИОННЫЙ ЛИСТ №  \"&VLOOKUP($A$7,DATA!$A$10:$S$100294,1,TRUE)&\"/\"&VLOOKUP($A$7,DATA!$A$10:$S$100294,3,TRUE)","v":" ЭКЗАМЕНАЦИОННЫЙ ЛИСТ №  15077/"},null,"                                           ЭКЗАМЕНАЦИОННАЯ ВЕДОМОСТЬ",12393,null,12402,{"$f":"VLOOKUP($A$7,DATA!$A$10:$S$100294,10,TRUE)","v":"2025-03-05"}]
[null,"     ",null,"                          Результаты квалификационных испытаний "]
[null,{"$f":"\" Имя    \"&VLOOKUP($A$7,DATA!$A$10:$S$100294,4,TRUE)","v":" Имя    Черкасский Артём"},null,"                                     по теоретической подготовке ",null,null,"Билет №",{"$f":"RIGHT(A7)","v":"7"}]
["Место",null,12393,null,"Наименование дисциплины ","часов","Оценка ","Дата ","фамилия "]
["для ",{"$f":"\" Отчество                \"&VLOOKUP($A$7,DATA!$A$10:$S$100294,5,TRUE)","v":" Отчество                Дмитриевич"},null,"№ ",null,null,null,null,"экзаменатора"]
["фото","    ",null,"  1.","Теория и устройство парусной яхты.",8,"хор",{"$f":"VLOOKUP($A$7,DATA!$A$10:$S$100294,10,TRUE)","v":"2025-03-05"}]
[15077,{"$f":"\" Name                  \"&VLOOKUP($A$7,DATA!$A$10:$S$100294,6,TRUE)","v":" Name                  CHERKASSKIY ARTEM"},null,"  2.","Судовождение.",2,"отл",{"$f":"VLOOKUP($A$7,DATA!$A$10:$S$100294,10,TRUE)","v":"2025-03-05"}]
[null,"                                 Фамилия, имя  на английском языке",null,null," Лоция и Навигация.",4,"отл",{"$f":"VLOOKUP($A$7,DATA!$A$10:$S$100294,10,TRUE)","v":"2025-03-05"}]
[null,null,null,"  3.","Управление парусной яхтой",8,"хор",{"$f":"VLOOKUP($A$7,DATA!$A$10:$S$100294,10,TRUE)","v":"2025-03-05"}]
[{"$f":"\"Год, дата рождения и место рождения   \"&VLOOKUP($A$7,DATA!$A$10:$S$100294,7,TRUE)&\" / \"&VLOOKUP($A$7,DATA!$A$10:$S$100294,8,TRUE)","v":"Год, дата рождения и место рождения   36760 / SAINT PETERBURG"},null,null,"  4.","Эксплуатация яхты.",2,"отл",{"$f":"VLOOKUP($A$7,DATA!$A$10:$S$100294,10,TRUE)","v":"2025-03-05"}]
[{"$f":"\"Индекс, домашний адрес :    \"","v":"Индекс, домашний адрес :    "},null,null,null,"Такелажное дело",4,"отл",{"$f":"VLOOKUP($A$7,DATA!$A$10:$S$100294,10,TRUE)","v":"2025-03-05"}]
[{"$f":"VLOOKUP($A$7,DATA!$A$10:$S$100294,13,TRUE)","v":"г.Санкт Петербург ул.М…..........."},null,null,"  5.","Правила плавания.",2,"хор",{"$f":"VLOOKUP($A$7,DATA!$A$10:$S$100294,10,TRUE)","v":"2025-03-05"}]
[{"$f":"\"Тел:  \"&VLOOKUP($A$7,DATA!$A$10:$S$100294,19,TRUE)","v":"Тел:  "},{"$f":"\"эл.почта     \"&VLOOKUP($A$7,DATA!$A$10:$S$100294,18,TRUE)","v":"эл.почта     "},null,null," МППСС и  ППВВП",2,"отл",{"$f":"VLOOKUP($A$7,DATA!$A$10:$S$100294,10,TRUE)","v":"2025-03-05"}]
[{"$f":"\"Паспорт, серия,  №,  дата выдачи,  кем, и где выдан \"","v":"Паспорт, серия,  №,  дата выдачи,  кем, и где выдан "},null,null,"  6.","Гидрометеорология",3,"отл",{"$f":"VLOOKUP($A$7,DATA!$A$10:$S$100294,10,TRUE)","v":"2025-03-05"}]
[{"$f":"VLOOKUP($A$7,DATA!$A$10:$S$100294,14,TRUE)","v":"P RUS 40 28 123461"},null,null,"  7.","Сигнализация и связь",2,"хор",{"$f":"VLOOKUP($A$7,DATA!$A$10:$S$100294,10,TRUE)","v":"2025-03-05"}]
[null,null,null,"  8.","Курс выживания и спасения на море",4,"отл",{"$f":"VLOOKUP($A$7,DATA!$A$10:$S$100294,10,TRUE)","v":"2025-03-05"}]
[null,null,null,"  9.","Способы личного выживания \nи оказания первой помощи",4,"отл",{"$f":"VLOOKUP($A$7,DATA!$A$10:$S$100294,10,TRUE)","v":"2025-03-05"}]
["Личная подпись   __________",null,null," 10.","Правила парусных соревнований",12,"хор",{"$f":"VLOOKUP($A$7,DATA!$A$10:$S$100294,10,TRUE)","v":"2025-03-05"}]
[null,null,null,"*11","Английский язык - термины в правилах парусных соревнований и морской практике",2,"отл",{"$f":"VLOOKUP($A$7,DATA!$A$10:$S$100294,10,TRUE)","v":"2025-03-05"}]
["Отметка врача о допуске к занятиям парусным спортом:",null,null,"       Заключение по результатам квалификационных испытаний "]
["______________________________________________________",null,null,{"$f":"\"по теоретической подготовке\"","v":"по теоретической подготовке"},null,null,{"$f":"B26","v":"   ЯХТЕННЫЙ РУЛЕВОЙ 22 м.кв"},{"$f":"IF(VLOOKUP($A$7,DATA!$A$10:$S$100294,2,TRUE)=\"YSC\",\"ПРИБРЕЖНОГО  ПЛАВАНИЯ \",\"\")","v":""},{"$f":"IF(VLOOKUP($A$7,DATA!$A$10:$S$100294,2,TRUE)=\"DS\",\"ДНЕВНОГО   ПЛАВАНИЯ \",\"\")","v":""}]
["Отметка о плавательной (судоводительской) практике:",null,null,{"$f":"\"Председателя экзаменационной комиссии  г.Москвы  _________           \"","v":"Председателя экзаменационной комиссии  г.Москвы  _________           "},null,null,null,null," Маслов А.О."]
[{"$f":"\"   \"&VLOOKUP($A$7,DATA!$A$10:$S$100294,4,TRUE)&\"   \"&VLOOKUP($A$7,DATA!$A$10:$S$100294,5,TRUE)","v":"   Черкасский Артём   Дмитриевич"},null,null,"                                                                 ( подпись, фамилия, дата)",null,null,null,null,{"$f":"VLOOKUP($A$7,DATA!$A$10:$S$100294,10,TRUE)","v":"2025-03-05"}]
["                                       ( фамилия, имя, отчество )                                                   ",null,null,"                            Результаты квалификационных испытаний "]
["Практические навыки по управлению яхтой получил(а) ",null,null,"                                      по практической подготовке:       "]
[" в качестве -",{"$f":"IF(VLOOKUP($A$7,DATA!$A$10:$S$100294,2,TRUE)=\"Sailing Boat Helmsman 22\",\"   ЯХТЕННЫЙ РУЛЕВОЙ 22 м.кв\",\"ЯХТЕННЫЙ РУЛЕВОЙ 12 м.кв\")","v":"   ЯХТЕННЫЙ РУЛЕВОЙ 22 м.кв"},null,{"$f":"\"Дата/Акватория \"","v":"Дата/Акватория "},null,null,null,null,{"$f":"\"  \"&VLOOKUP($A$7,DATA!$A$10:$S$100294,11,TRUE)","v":"  Квалификационная Комиссия ВФПС/СППС"}]
[{"$f":"\" уч.центр     \"&VLOOKUP($A$7,DATA!$A$10:$S$100294,12,TRUE)","v":" уч.центр     ГБУ ДО СШОР\"ШВСМ по ВВС\""},null,null,{"$f":"\" Гидрометеорологические условия:  \"","v":" Гидрометеорологические условия:  "},null,{"$f":"\"   \"&VLOOKUP($A$7,DATA!$A$10:$S$100294,12,TRUE)","v":"   ГБУ ДО СШОР\"ШВСМ по ВВС\""}]
[" ( должность в команде яхты )",null,"Рулевой"," Заключение по результатам квалификационных испытаний:"]
[{"$f":"\"   \"&VLOOKUP($A$7,DATA!$A$10:$S$100294,11,TRUE)","v":"   Квалификационная Комиссия ВФПС/СППС"},null,null,"         Подпись экзаменатора: ________________         Маслов А.О.          ",null,null,null,null,{"$f":"VLOOKUP($A$7,DATA!$A$10:$S$100294,10,TRUE)","v":"2025-03-05"}]
["(Дата / акватория/  тип судна / длина яхты/ )",null,null,"    председателя экзаменационной комиссии г. Москвы         (подпись, фамилия, дата)"]
["и  овладел необходимыми навыками и рекомендуется к сдаче экзаменов",null,null,"                       Отметка о присвоении квалификационного звания:"]
["на звание яхтенного рулевого парусной яхты.",null,null,null,{"$f":"IF(VLOOKUP($A$7,DATA!$A$10:$S$100294,2,TRUE)=\"SBH6\",\"ЯХТЕННЫЙ РУЛЕВОЙ 6 м.кв\",\"ЯХТЕННЫЙ РУЛЕВОЙ 12 м.кв\")","v":"ЯХТЕННЫЙ РУЛЕВОЙ 12 м.кв"}]
["Приложение ( Копия судовой роли,  диплома об окончании курса …и.т.п.)",null,null,null,null,"Протокол   (№  и дата)   ",{"$f":"VLOOKUP($A$7,DATA!$A$10:$S$100294,16,TRUE)","v":"211/2025 КВ от 14.03.2025"}]
["Рулевой–инструктор _________________( подпись, фамилия, дата) "]
[{"$f":" VLOOKUP($A$7,DATA!$A$10:$S$100294,12,TRUE)","v":"ГБУ ДО СШОР\"ШВСМ по ВВС\""},null,null,"Подпись Председателя Квалификационной комиссии  ВФПС :                 "]
[" место печати школы     /подпись руководителя яхт-клуба (школы) фамилия, дата/"]
[null,"Экзаменационные вопросы  - РУЛЕВОЙ  ПАРУСНОЙ ЯХТЫ Базовый курс",null,null,null,null,{"$f":"I29","v":"2025-03-05"}]
[null,"КВАЛИФИКАЦИОННЫЕ ТРЕБОВАНИЯ ПОДГОТОВКИ РУЛЕВЫХ И КАПИТАНОВ ПАРУСНЫХ ЯХТ"]
[null,"Экзаменатор  - Маслов А.О.",null,{"$f":"\"Испытуемый  \"&LIST!B39","v":"Испытуемый  Экзаменатор  - Маслов А.О."}]
[null,"Билет  ",null,"РУЛЕВОЙ ПАРУСНОЙ ЯХТЫ",{"$f":"A23","v":"   Черкасский Артём   Дмитриевич"}]
[null,"Дисциплина",null,"Практика"]
[]
[null,"ПРАКТИКА"]
[]
[null,"Практика  РУЛЕВОЙ ПАРУСНОЙ ЯХТЫ 22 кв.м. составляет 48 часов. В ходе практики обучаемый должен освоить и выполнять самостоятельно перечисленные в списке ниже действия и упражнения на яхте с экипажем:"]
[null,null,null,"Оценка","Экзаменатор"]
[null,"1.      Подготовка яхты к выходу на воду."]
[null,"2.      Оценка метеоусловий перед выходом на воду."]
[null,"3.      Проверка яхты по безопасности перед выходом."]
[null,"4.      Отход от причала при различных направлениях ветра."]
[null,"5.      Выход из гавани."]
[null,"6.      Повороты оверштаг, фордевинд."]
[null,"7.  Постановка, Уборка спинакера, генакера"]
[null,"8.      Поворот фордевинд спинакер, генакер"]
[null,"9.      Задний ход, управление яхтой на заднем ходе."]
[null,"10.      Лечь в дрейф, выход из дрейфа."]
[null,"11.   Опрокидывание яхты. Восстановление яхты после оверкиля."]
[null,"12.   Маневрирование в ситуации «Человек за бортом»."]
[null,"13.   Подход к бую для швартовки."]
[null,"1.   Подход к причалу при различных направлениях ветра."]
[]
[]
[null,"                            Результаты квалификационных испытаний "]
[null,"                                      по практической подготовке:       "]
[null,{"$f":"\"Дата/Акватория \"","v":"Дата/Акватория "}]
[null,{"$f":"\" Гидрометеорологические условия:  \"","v":" Гидрометеорологические условия:  "}]
[null," Заключение по результатам квалификационных испытаний:"]
[null,"         Подпись экзаменатора: ________________         Маслов А.О.          "]
[null,"    председателя экзаменационной комиссии г. Москвы         (подпись, фамилия, дата)"]

{"sheet":"0","index":2,"n_rows":34,"n_cols":8,"rows_kept":34,"cut":false,"hidden":false,"merged":[[28,3,28,7],[32,3,32,7],[33,3,33,7],[18,3,18,7],[20,3,20,7],[21,3,21,7],[22,3,22,7],[24,3,24,5],[27,3,27,7],[17,3,17,7],[1,1,1,4],[2,3,2,7],[7,3,7,7],[10,3,10,7],[13,3,13,7]]}
[null,"Экзаменационные вопросы  - РУЛЕВОЙ  ПАРУСНОЙ ЯХТЫ Базовый курс",null,null,{"$f":"LIST!H1:I1","v":"2025-03-05"},0]
[null,"КВАЛИФИКАЦИОННЫЕ ТРЕБОВАНИЯ ПОДГОТОВКИ РУЛЕВЫХ И КАПИТАНОВ ПАРУСНЫХ ЯХТ"]
[null,"Экзаменатор  - Маслов А.О.",null,{"$f":"\"Испытуемый  \"&LIST!B3","v":"Испытуемый   Имя    Черкасский Артём"}]
[null,"Билет  ",null,"РУЛЕВОЙ ПАРУСНОЙ ЯХТЫ",{"$f":"LIST!H3","v":"7"}]
[null,"Дисциплина",null,"Правила парусных Гонок"]
[]
[null,"1. Две минуты до стартового сигнала. Желтая яхта идет параллельным курсом с Синей. В позиции 1 Желтая яхта начинает уваливаться, а затем резко приводится. В позиции 3 происходит контакт между яхтами без повреждений. Синяя яхта все время сохраняла свой курс. Обе яхты имели возможность избежать контакта."]
[null,null,null,"1.   Какое правило (правила)  нарушила Желтая яхта?"]
[null,null,null,"a","b","c","d","e"]
[null,null,null,11,12,14,15,"Никакое"]
[null,null,null,"2.Какое правило (правила)   нарушила Синяя яхта?"]
[null,null,null,"a","b","c","d","e"]
[null,null,null,11,12,14,15,"Никакое"]
[null,null,null,"3.       Какая яхта (яхты) должна быть наказана?"]
[null,null,null,"a","b","c"]
[null,null,null,"Синяя","Жёлтая","Никакая"]
[]
[{"$f":"VLOOKUP(IF(($E$4+RANDBETWEEN(1,20))<20,RANDBETWEEN(1,20),RANDBETWEEN(1,20)),ППГ!A1:C20,1,FALSE)","v":8},{"$f":"\" ответить на вопрос:           \"&CHAR(10)&VLOOKUP(A18,ППГ!A1:C20,2,)&CHAR(10)&\"                                                  Да \"&\" или НЕТ (подчеркнуть)              \"","v":" ответить на вопрос:           \nИмеет ли право Прoтестовый Комитет прекратить гонку? \n                                                  Да  или НЕТ (подчеркнуть)              "},{"$f":"VLOOKUP(IF(($E$4+RANDBETWEEN(41,60))<20,RANDBETWEEN(41,60),RANDBETWEEN(41,60)),ППГ!A41:C60,1,FALSE)","v":48},{"$f":"\" ответить на вопрос:          \"&CHAR(10)&VLOOKUP(C18,ППГ!A41:C60,2,FALSE)&CHAR(10)&\"                                                                  Да \"&\" или НЕТ (подчеркнуть)\"","v":" ответить на вопрос:          \nНарушает ли правила яхта левого галса, умышленно делающая оклик «Правый галс!»?\n                                                                  Да  или НЕТ (подчеркнуть)"}]
[{"$f":"VLOOKUP(IF(($E$4+RANDBETWEEN(21,40))<20,RANDBETWEEN(21,40),RANDBETWEEN(21,40)),ППГ!A21:C40,1,FALSE)","v":33},{"$f":"VLOOKUP(A19,ППГ!A21:C40,2,)&CHAR(10)&\"                                            Да \"&\" или НЕТ (подчеркнуть) \"","v":"Может ли Прoтестовый Комитет являться стороной в рассмотрении? \n                                            Да  или НЕТ (подчеркнуть) "},{"$f":"VLOOKUP(IF(($E$4+RANDBETWEEN(61,100))<20,RANDBETWEEN(61,100),RANDBETWEEN(61,100)),ППГ!A60:C99,1,FALSE)","v":75},{"$f":"\" ответить на вопрос:          \"\n&CHAR(10)&VLOOKUP(C19,ППГ!A60:C99,2,FALSE)&CHAR(10)&\"                                           Да \"&\" или НЕТ (подчеркнуть)  \"","v":" ответить на вопрос:          \nЕсли яхта запрашивает окликом место для поворота оверштаг от препятствия, не имея на это права, то окликнутая яхта имеет право не реагировать на такой оклик?\n                                           Да  или НЕТ (подчеркнуть)  "}]
[null,"Дисциплина",null,"Безопасность, Лоция, Навигация"]
[null,{"$f":"\"ответить на вопрос           \"     &  CHAR(10) &  CHAR(10) &          VLOOKUP(IF(($E$4+RANDBETWEEN(1,20))<20,RANDBETWEEN(1,20),RANDBETWEEN(1,20)),Безопасность!A1:C20,2,FALSE)","v":"ответить на вопрос           \n\nПонятие о Специальных правилах  World Sailing. Подготовка  экипажа по безопасности."},{"$f":"VLOOKUP(IF(($E$4+RANDBETWEEN(1,20))<20,RANDBETWEEN(1,20),RANDBETWEEN(1,20)),Безопасность!A1:C20,1,FALSE)","v":1},{"$f":"\"ответить на вопрос           \"     &  CHAR(10) &  CHAR(10) &          VLOOKUP(C21,Безопасность!A1:C20,2,FALSE)","v":"ответить на вопрос           \n\nФакторы, влияющие на безопасность яхты в море."}]
[{"$f":" VLOOKUP(IF(($E$4+RANDBETWEEN(1,20))<20,RANDBETWEEN(1,20),RANDBETWEEN(1,20)),Навигация!A1:B20,1,FALSE)","v":20},{"$f":"\"            ответить на вопрос           \"     &  CHAR(10) &           VLOOKUP(A22,Навигация!A1:B20,2,FALSE)","v":"            ответить на вопрос           \nЧто такое латеральная  система ограждения навигационных опасностей? "},{"$f":"VLOOKUP(IF(($E$4+RANDBETWEEN(1,20))<20,RANDBETWEEN(1,20),RANDBETWEEN(1,20)),Безопасность!A1:C20,1,FALSE)","v":16},{"$f":"\"ответить на вопрос           \"     &  CHAR(10) &  CHAR(10) &          VLOOKUP(C22,ППВВП!A1:C20,2,FALSE)","v":"ответить на вопрос           \n\nПравила Плавания по Внутренним водным путям.\nЧто означает в соответствии с ППВВП термин 'Минимальная скорость'?"}]
[null,"Подписать  - что означают эти знаки",null,"На каком из пяти изображений показан осевой знак — знак оси судового хода?"]
[null,"Дисциплина",null,"Такелажное дело"]
[{"$f":" VLOOKUP(IF(($E$4+RANDBETWEEN(1,20))<20,RANDBETWEEN(1,20),RANDBETWEEN(1,20)),Узлы!A1:C20,1,FALSE)","v":11},{"$f":"\"            Завязать узел или выполнить задание           \"     &  CHAR(10) &           VLOOKUP(A25,Узлы!A1:C20,2,FALSE)","v":"            Завязать узел или выполнить задание           \nБухтование"},null,"Перечислить инструмент для такелажных работ"]
[{"$f":" VLOOKUP(IF(($E$4+RANDBETWEEN(1,20))<20,RANDBETWEEN(1,20),RANDBETWEEN(1,20)),Узлы!D1:E20,1,FALSE)","v":18},{"$f":"\"        Пояснить определение           \"     &  CHAR(10) &           VLOOKUP(A26,Узлы!D1:E20,2,FALSE)","v":"        Пояснить определение           \nФал"}]
[null,"Дисциплина",null,"Теория движения и управления яхтой, Метеорология"]
[{"$f":" VLOOKUP(IF(($E$4+RANDBETWEEN(1,20))<20,RANDBETWEEN(1,20),RANDBETWEEN(1,20)),Теория!A1:C20,1,FALSE)","v":10},{"$f":"\"            ответить на вопрос           \"     &  CHAR(10) &           VLOOKUP(A28,Теория!A1:C20,2,FALSE)","v":"            ответить на вопрос           \nДвижение яхты против ветра"},null,{"$f":"\"            ответить на вопрос           \"     &  CHAR(10) &           VLOOKUP(IF(($E$4+RANDBETWEEN(1,20))<20,RANDBETWEEN(1,20),RANDBETWEEN(1,20)),Управление!D1:E20,2,FALSE)&CHAR(10) &CHAR(10) &CHAR(10) &\"Подписать силы действующие на яхту\"","v":"            ответить на вопрос           \n12.Особенности управления яхтой на лавировке?\n\n\nПодписать силы действующие на яхту"}]
[null,{"$f":"\"Практические навыки  управление яхтой. Напишите что вы делаете при:     \"     &  CHAR(10) &  CHAR(10)&           VLOOKUP(IF(($E$4+RANDBETWEEN(1,20))<20,RANDBETWEEN(1,20),RANDBETWEEN(1,20)),Практика!A1:B21,2,FALSE)","v":"Практические навыки  управление яхтой. Напишите что вы делаете при:     \n\nШвартовка килевой яхты в гавани для разных причальных сооруженияй"},null,{"$f":"\"            ответить на вопрос           \"     &  CHAR(10) &           VLOOKUP(IF(($E$4+RANDBETWEEN(1,20))<20,RANDBETWEEN(1,20),RANDBETWEEN(1,20)),Метео!A1:B20,2,FALSE)","v":"            ответить на вопрос           \nМестные ветры: бризы, вертикальная подоблачная циркуляция воздушных масс, термики."}]
[]
[null,"Дисциплина",null,"Конструкция Яхты и парусного вооружения"]
[null,"Подписать части яхты"]
[null,null,null,{"$f":"\"            ответить на вопрос           \"     &  CHAR(10) &          VLOOKUP(IF(($E$4+RANDBETWEEN(1,25))<25,RANDBETWEEN(1,25),RANDBETWEEN(1,25)),Конструкция!A1:C25,2,FALSE)","v":"            ответить на вопрос           \nРелинги, леера."}]
[null,{"$f":"\"            ответить на вопрос           \"     &  CHAR(10) &           VLOOKUP(IF(($E$4+RANDBETWEEN(1,20))<20,RANDBETWEEN(1,20),RANDBETWEEN(1,20)),Паруса!A1:C20,2,FALSE)","v":"            ответить на вопрос           \nПаруса, Основные, Дополнительные, Штормовые."},null,"подписать части\n паруса"]

{"sheet":"1","index":3,"n_rows":34,"n_cols":8,"rows_kept":34,"cut":false,"hidden":false,"merged":[[24,3,24,5],[27,3,27,7],[28,3,28,7],[32,3,32,7],[33,3,33,7],[7,3,7,7],[10,3,10,7],[2,3,2,7],[17,3,17,7],[1,1,1,4],[20,3,20,7],[18,3,18,7],[21,3,21,7],[22,3,22,7],[13,3,13,7]]}
[null,"Экзаменационные вопросы  - РУЛЕВОЙ  ПАРУСНОЙ ЯХТЫ Базовый курс",null,null,{"$f":"LIST!H1:I1","v":"2025-03-05"},0]
[null,"КВАЛИФИКАЦИОННЫЕ ТРЕБОВАНИЯ ПОДГОТОВКИ РУЛЕВЫХ И КАПИТАНОВ ПАРУСНЫХ ЯХТ"]
[null,"Экзаменатор  - Маслов А.О.",null,{"$f":"\"Испытуемый  \"&LIST!B3","v":"Испытуемый   Имя    Черкасский Артём"}]
[null,"Билет  ",null,"РУЛЕВОЙ ПАРУСНОЙ ЯХТЫ",{"$f":"LIST!H3","v":"7"}]
[null,"Дисциплина",null,"Правила парусных Гонок"]
[]
[null,"1. Две минуты до стартового сигнала. Желтая яхта идет параллельным курсом с Синей. В позиции 1 Желтая яхта начинает уваливаться, а затем резко приводится. В позиции 3 происходит контакт между яхтами без повреждений. Синяя яхта все время сохраняла свой курс. Обе яхты имели возможность избежать контакта."]
[null,null,null,"1.   Какое правило (правила)  нарушила Желтая яхта?"]
[null,null,null,"a","b","c","d","e"]
[null,null,null,11,12,14,15,"Никакое"]
[null,null,null,"2.Какое правило (правила)   нарушила Синяя яхта?"]
[null,null,null,"a","b","c","d","e"]
[null,null,null,11,12,14,15,"Никакое"]
[null,null,null,"3.       Какая яхта (яхты) должна быть наказана?"]
[null,null,null,"a","b","c"]
[null,null,null,"Синяя","Жёлтая","Никакая"]
[]
[{"$f":"VLOOKUP(IF(($E$4+RANDBETWEEN(1,20))<20,RANDBETWEEN(1,20),RANDBETWEEN(1,20)),ППГ!A1:C20,1,FALSE)","v":10},{"$f":"\" ответить на вопрос:           \"&CHAR(10)&VLOOKUP(A18,ППГ!A1:C20,2,)&CHAR(10)&\"                                                  Да \"&\" или НЕТ (подчеркнуть)              \"","v":" ответить на вопрос:           \nТермин связаны применяется к яхтам, идущим полным курсом на разных галсах, только в том случае, когда применяются правила 18 и 19?\n                                                  Да  или НЕТ (подчеркнуть)              "},{"$f":"VLOOKUP(IF(($E$4+RANDBETWEEN(41,60))<20,RANDBETWEEN(41,60),RANDBETWEEN(41,60)),ППГ!A41:C60,1,FALSE)","v":55},{"$f":"\" ответить на вопрос:          \"&CHAR(10)&VLOOKUP(C18,ППГ!A41:C60,2,FALSE)&CHAR(10)&\"                                                                       Да \"&\" или НЕТ (подчеркнуть)\"","v":" ответить на вопрос:          \nДолжна ли соблюдать правила Части 2 ППГ финишировавшая яхта, возвращающаяся в яхт-клуб через зону гонок?\n                                                                       Да  или НЕТ (подчеркнуть)"}]
[{"$f":"VLOOKUP(IF(($E$4+RANDBETWEEN(21,40))<20,RANDBETWEEN(21,40),RANDBETWEEN(21,40)),ППГ!A21:C40,1,FALSE)","v":31},{"$f":"VLOOKUP(A19,ППГ!A21:C40,2,)&CHAR(10)&\"                                            Да \"&\" или НЕТ (подчеркнуть) \"","v":"Подан сигнал «Старт», но яхта еще не стартовала. Есть ли у нее надлежащий курс? \n                                            Да  или НЕТ (подчеркнуть) "},{"$f":"VLOOKUP(IF(($E$4+RANDBETWEEN(61,100))<20,RANDBETWEEN(61,100),RANDBETWEEN(61,100)),ППГ!A60:C99,1,FALSE)","v":97},{"$f":"\" ответить на вопрос:          \"\n&CHAR(10)&VLOOKUP(C19,ППГ!A60:C99,2,FALSE)&CHAR(10)&\"                                           Да \"&\" или НЕТ (подчеркнуть)  \"","v":" ответить на вопрос:          \nЕсли применялось правило «Черный флаг», и гонка не была отложена или прекращена, то сразу после старта должен ли Гон-й Комитет выставить номера всех яхт, нарушивших это правило?\n                                           Да  или НЕТ (подчеркнуть)  "}]
[null,"Дисциплина",null,"Безопасность, Лоция, Навигация"]
[null,{"$f":"\"ответить на вопрос           \"     &  CHAR(10) &  CHAR(10) &          VLOOKUP(IF(($E$4+RANDBETWEEN(1,20))<20,RANDBETWEEN(1,20),RANDBETWEEN(1,20)),Безопасность!A1:C20,2,FALSE)","v":"ответить на вопрос           \n\nГипотермия. Что нельзя делать и что нужно делать при гипотермии."},{"$f":"VLOOKUP(IF(($E$4+RANDBETWEEN(1,20))<20,RANDBETWEEN(1,20),RANDBETWEEN(1,20)),Безопасность!A1:C20,1,FALSE)","v":6},{"$f":"\"ответить на вопрос           \"     &  CHAR(10) &  CHAR(10) &          VLOOKUP(C21,Безопасность!A1:C20,2,FALSE)","v":"ответить на вопрос           \n\nСпасательное оборудование яхты."}]
[{"$f":" VLOOKUP(IF(($E$4+RANDBETWEEN(1,20))<20,RANDBETWEEN(1,20),RANDBETWEEN(1,20)),Навигация!A1:B20,1,FALSE)","v":5},{"$f":"\"            ответить на вопрос           \"     &  CHAR(10) &           VLOOKUP(A22,Навигация!A1:B20,2,FALSE)","v":"            ответить на вопрос           \nОсмотр и проверка мотора перед запуском"},{"$f":"VLOOKUP(IF(($E$4+RANDBETWEEN(1,20))<20,RANDBETWEEN(1,20),RANDBETWEEN(1,20)),Безопасность!A1:C20,1,FALSE)","v":8},{"$f":"\"ответить на вопрос           \"     &  CHAR(10) &  CHAR(10) &          VLOOKUP(C22,ППВВП!A1:C20,2,FALSE)","v":"ответить на вопрос           \n\nПравила Плавания по Внутренним водным путям.\nЛатеральная и Кардинальная системы ограждения опасностей. \nОсновные особенности и отличия"}]
[null,"Подписать  - что означают эти знаки",null,"На каком из пяти изображений показан осевой знак — знак оси судового хода?"]
[null,"Дисциплина",null,"Такелажное дело"]
[{"$f":" VLOOKUP(IF(($E$4+RANDBETWEEN(1,20))<20,RANDBETWEEN(1,20),RANDBETWEEN(1,20)),Узлы!A1:C20,1,FALSE)","v":4},{"$f":"\"            Завязать узел или выполнить задание           \"     &  CHAR(10) &           VLOOKUP(A25,Узлы!A1:C20,2,FALSE)","v":"            Завязать узел или выполнить задание           \nБеседочный ( булинь)"},null,"Перечислить инструмент для такелажных работ"]
[{"$f":" VLOOKUP(IF(($E$4+RANDBETWEEN(1,20))<20,RANDBETWEEN(1,20),RANDBETWEEN(1,20)),Узлы!D1:E20,1,FALSE)","v":8},{"$f":"\"        Пояснить определение           \"     &  CHAR(10) &           VLOOKUP(A26,Узлы!D1:E20,2,FALSE)","v":"        Пояснить определение           \nСтропка "}]
[null,"Дисциплина",null,"Теория движения и управления яхтой, Метеорология"]
[{"$f":" VLOOKUP(IF(($E$4+RANDBETWEEN(1,20))<20,RANDBETWEEN(1,20),RANDBETWEEN(1,20)),Теория!A1:C20,1,FALSE)","v":17},{"$f":"\"            ответить на вопрос           \"     &  CHAR(10) &           VLOOKUP(A28,Теория!A1:C20,2,FALSE)","v":"            ответить на вопрос           \nПлавучесть и непотопляемость. Общие понятия  и принципы обеспечения непотопляемости"},null,{"$f":"\"            ответить на вопрос           \"     &  CHAR(10) &           VLOOKUP(IF(($E$4+RANDBETWEEN(1,20))<20,RANDBETWEEN(1,20),RANDBETWEEN(1,20)),Управление!D1:E20,2,FALSE)&CHAR(10) &CHAR(10) &CHAR(10) &\"Подписать силы действующие на яхту\"","v":"            ответить на вопрос           \n10. Что такое левый галс?\n\n\nПодписать силы действующие на яхту"}]
[null,{"$f":"\"Практические навыки  управление яхтой. Напишите что вы делаете при:     \"     &  CHAR(10) &  CHAR(10)&           VLOOKUP(IF(($E$4+RANDBETWEEN(1,20))<20,RANDBETWEEN(1,20),RANDBETWEEN(1,20)),Практика!A1:B21,2,FALSE)","v":"Практические навыки  управление яхтой. Напишите что вы делаете при:     \n\nПомощь опрокинувшимся швертботам и катамаранам.\nОписать Ваши действия и действия команды"},null,{"$f":"\"            ответить на вопрос           \"     &  CHAR(10) &           VLOOKUP(IF(($E$4+RANDBETWEEN(1,20))<20,RANDBETWEEN(1,20),RANDBETWEEN(1,20)),Метео!A1:B20,2,FALSE)","v":"            ответить на вопрос           \nПризнаки устойчивой хорошей погоды. "}]
[]
[null,"Дисциплина",null,"Конструкция Яхты и парусного вооружения"]
[null,"Подписать части яхты"]
[null,null,null,{"$f":"\"            ответить на вопрос           \"     &  CHAR(10) &          VLOOKUP(IF(($E$4+RANDBETWEEN(1,25))<25,RANDBETWEEN(1,25),RANDBETWEEN(1,25)),Конструкция!A1:C25,2,FALSE)","v":"            ответить на вопрос           \nШверт. Устройство швертового колодца"}]
[null,{"$f":"\"            ответить на вопрос           \"     &  CHAR(10) &           VLOOKUP(IF(($E$4+RANDBETWEEN(1,20))<20,RANDBETWEEN(1,20),RANDBETWEEN(1,20)),Паруса!A1:C20,2,FALSE)","v":"            ответить на вопрос           \nПаруса, Основные, Дополнительные, Штормовые."},null,"подписать части\n паруса"]

{"sheet":"2","index":4,"n_rows":35,"n_cols":8,"rows_kept":35,"cut":false,"hidden":false,"merged":[[1,1,1,4],[2,3,2,7],[18,3,18,7],[33,3,33,7],[6,3,6,7],[9,3,9,7],[12,3,12,7],[15,3,15,7],[34,3,34,7],[19,3,19,7],[21,3,21,7],[22,3,22,7],[23,3,23,7],[25,3,25,5],[28,3,28,7],[26,3,26,5],[29,3,29,7]]}
[null,"Экзаменационные вопросы  - РУЛЕВОЙ  ПАРУСНОЙ ЯХТЫ Базовый курс",null,null,{"$f":"LIST!H1:I1","v":"2025-03-05"},0]
[null,"КВАЛИФИКАЦИОННЫЕ ТРЕБОВАНИЯ ПОДГОТОВКИ РУЛЕВЫХ И КАПИТАНОВ ПАРУСНЫХ ЯХТ"]
[null,"Экзаменатор  - Маслов А.О.",null,{"$f":"\"Испытуемый  \"&LIST!B3","v":"Испытуемый   Имя    Черкасский Артём"}]
[null,"Билет  ",null,"РУЛЕВОЙ ПАРУСНОЙ ЯХТЫ",{"$f":"LIST!H3","v":"7"}]
[null,"Дисциплина",null,"Правила парусных Гонок"]
[]
[null," 6 Синяя и Жёлтая яхты,  связанные, идут на левом галсе пересекающимися курсами с Красной яхтой. В позиции 2 Жёлтая яхта окликом запрашивает место для поворота от препятствия. Синяя яхта, чуть позже, в позиции 3, также требует место, как внутренняя яхта. После этого она уваливается под корму Красной яхты,  Жёлтая также вынуждена увалиться, чтобы избежать Синей.",null,"24. Какая яхта имеет право дороги по отношению  к другой яхте?   "]
[null,null,null,"a","b","c","d","e"]
[null,null,null,"Синяя к Жёлт","Жёлт к Синей","Крас к Синей","Красн к Жёлт","Синк красy"]
[null,null,null,"25.    Какое правилонарушила Желтая яхта?"]
[null,null,null,"a","b","c","d","e"]
[null,null,null,10,14," 19.2"," 20.01","Никакое"]
[null,null,null,"26.    Какое правило нарушила Синяя яхта?"]
[null,null,null,"a","b","c","d","e"]
[null,null,null,11,14," 19.2"," 20.02","Никакое"]
[null,null,null,"27.    Какая яхта (яхты) должна быть наказана?"]
[null,null,null,"a","b","c","d"]
[null,null,null,"Синяя","Жёлт","Красн","Никакая "]
[{"$f":"VLOOKUP(IF(($E$4+RANDBETWEEN(1,20))<20,RANDBETWEEN(1,20),RANDBETWEEN(1,20)),ППГ!A1:C20,1,FALSE)","v":19},{"$f":"\" ответить на вопрос:           \"&CHAR(10)&VLOOKUP(A19,ППГ!A1:C20,2,)&CHAR(10)&\"                                                  Да \"&\" или НЕТ (подчеркнуть)              \"","v":" ответить на вопрос:           \nЕсли яхта пересекла финишную линию со стороны дистанции, но она продолжает проходить еще один круг, чтобы закончить дистанцию, то она финишировала?\n                                                  Да  или НЕТ (подчеркнуть)              "},{"$f":"VLOOKUP(IF(($E$4+RANDBETWEEN(41,60))<20,RANDBETWEEN(41,60),RANDBETWEEN(41,60)),ППГ!A41:C60,1,FALSE)","v":45},{"$f":"\" ответить на вопрос:          \"&CHAR(10)&VLOOKUP(C19,ППГ!A41:C60,2,FALSE)&CHAR(10)&\"                                                                       Да \"&\" или НЕТ (подчеркнуть)\"","v":" ответить на вопрос:          \nЗона – это пространство вокруг знака в переделах трех длин корпуса яхты, имеющей большую длину?\n                                                                       Да  или НЕТ (подчеркнуть)"}]
[{"$f":"VLOOKUP(IF(($E$4+RANDBETWEEN(21,40))<20,RANDBETWEEN(21,40),RANDBETWEEN(21,40)),ППГ!A21:C40,1,FALSE)","v":33},{"$f":"VLOOKUP(A20,ППГ!A21:C40,2,)&CHAR(10)&\"                                            Да \"&\" или НЕТ (подчеркнуть) \"","v":"Может ли Прoтестовый Комитет являться стороной в рассмотрении? \n                                            Да  или НЕТ (подчеркнуть) "},{"$f":"VLOOKUP(IF(($E$4+RANDBETWEEN(61,100))<20,RANDBETWEEN(61,100),RANDBETWEEN(61,100)),ППГ!A60:C99,1,FALSE)","v":86},{"$f":"\" ответить на вопрос:          \"\n&CHAR(10)&VLOOKUP(C20,ППГ!A60:C99,2,FALSE)&CHAR(10)&\"                                           Да \"&\" или НЕТ (подчеркнуть)  \"","v":" ответить на вопрос:          \nПоследний старт стартовой процедуры. После сигнала «Старт» подан сигнал индивидуального отзыва. Фальстартовавшая яхта явно  не собирается возвращаться на предстартовую сторону. Должен ли в таком случае флаг «Х» оставаться поднятым 4 минуты?\n                                           Да  или НЕТ (подчеркнуть)  "}]
[null,"Дисциплина",null,"Безопасность, Лоция, Навигация"]
[null,{"$f":"\"ответить на вопрос           \"     &  CHAR(10) &  CHAR(10) &          VLOOKUP(IF(($E$4+RANDBETWEEN(1,20))<20,RANDBETWEEN(1,20),RANDBETWEEN(1,20)),Безопасность!A1:C20,2,FALSE)","v":"ответить на вопрос           \n\nНаиболее вероятные аварийные ситуации, действия в аварийных ситуациях."},{"$f":"VLOOKUP(IF(($E$4+RANDBETWEEN(1,20))<20,RANDBETWEEN(1,20),RANDBETWEEN(1,20)),Безопасность!A1:C20,1,FALSE)","v":2},{"$f":"\"ответить на вопрос           \"     &  CHAR(10) &  CHAR(10) &          VLOOKUP(C22,Безопасность!A1:C20,2,FALSE)","v":"ответить на вопрос           \n\nИсточники прогноза погоды.\n Признаки подхода шквала."}]
[{"$f":" VLOOKUP(IF(($E$4+RANDBETWEEN(1,20))<20,RANDBETWEEN(1,20),RANDBETWEEN(1,20)),Навигация!A1:B20,1,FALSE)","v":3},{"$f":"\"            ответить на вопрос           \"     &  CHAR(10) &           VLOOKUP(A23,Навигация!A1:B20,2,FALSE)","v":"            ответить на вопрос           \nГеннакер ушел под воду и намотался на перо руля, ваши действия?"},{"$f":"VLOOKUP(IF(($E$4+RANDBETWEEN(1,20))<20,RANDBETWEEN(1,20),RANDBETWEEN(1,20)),Безопасность!A1:C20,1,FALSE)","v":15},{"$f":"\"ответить на вопрос           \"     &  CHAR(10) &  CHAR(10) &          VLOOKUP(C23,ППВВП!A1:C20,2,FALSE)","v":"ответить на вопрос           \n\nПравила Плавания по Внутренним водным путям.\nЧто означает в соответствии с ППВВП термин \n'Судно на ходу'?"}]
[null,"Подписать  - что означают эти знаки",null,"На каком из пяти изображений показан осевой знак — знак оси судового хода?"]
[null,"Дисциплина",null,"Такелажное дело"]
[{"$f":" VLOOKUP(IF(($E$4+RANDBETWEEN(1,20))<20,RANDBETWEEN(1,20),RANDBETWEEN(1,20)),Узлы!A1:C20,1,FALSE)","v":16},{"$f":"\"            Завязать узел или выполнить задание           \"     &  CHAR(10) &           VLOOKUP(A26,Узлы!A1:C20,2,FALSE)","v":"            Завязать узел или выполнить задание           \nВыбленочный"},null,"Перечислить инструмент для такелажных работ"]
[{"$f":" VLOOKUP(IF(($E$4+RANDBETWEEN(1,20))<20,RANDBETWEEN(1,20),RANDBETWEEN(1,20)),Узлы!D1:E20,1,FALSE)","v":10},{"$f":"\"        Пояснить определение           \"     &  CHAR(10) &           VLOOKUP(A27,Узлы!D1:E20,2,FALSE)","v":"        Пояснить определение           \nТрос"},null,"Подписать название узлов"]
[null,"Дисциплина",null,"Теория движения и управления яхтой, Метеорология"]
[{"$f":" VLOOKUP(IF(($E$4+RANDBETWEEN(1,20))<20,RANDBETWEEN(1,20),RANDBETWEEN(1,20)),Теория!A1:C20,1,FALSE)","v":3},{"$f":"\"            ответить на вопрос           \"     &  CHAR(10) &           VLOOKUP(A29,Теория!A1:C20,2,FALSE)","v":"            ответить на вопрос           \nостойчивость (поперечная и продольная) килевых яхт. Схема "},null,{"$f":"\"            ответить на вопрос           \"     &  CHAR(10) &           VLOOKUP(IF(($E$4+RANDBETWEEN(1,20))<20,RANDBETWEEN(1,20),RANDBETWEEN(1,20)),Управление!D1:E20,2,FALSE)&CHAR(10) &CHAR(10) &CHAR(10) &\"Пояснить диаграмму ????? ( как называется?)\"","v":"            ответить на вопрос           \n9.Что такое правый галс?\n\n\nПояснить диаграмму ????? ( как называется?)"}]
[null,{"$f":"\"Практические навыки  управление яхтой. Напишите что вы делаете при:     \"     &  CHAR(10) &  CHAR(10)&           VLOOKUP(IF(($E$4+RANDBETWEEN(1,20))<20,RANDBETWEEN(1,20),RANDBETWEEN(1,20)),Практика!A1:B21,2,FALSE)","v":"Практические навыки  управление яхтой. Напишите что вы делаете при:     \n\nВыполнение поворота фордевинд со спинакером на килевой яхтеПоворот, фордевинд."},null,{"$f":"\"            ответить на вопрос           \"     &  CHAR(10) &           VLOOKUP(IF(($E$4+RANDBETWEEN(1,20))<20,RANDBETWEEN(1,20),RANDBETWEEN(1,20)),Метео!A1:B20,2,FALSE)","v":"            ответить на вопрос           \nТипы облаков. "}]
[]
[null,"Дисциплина",null,"Конструкция Яхты и парусного вооружения"]
[null,"Подписать части яхты"]
[null,null,null,{"$f":"\"            ответить на вопрос           \"     &  CHAR(10) &          VLOOKUP(IF(($E$4+RANDBETWEEN(1,25))<25,RANDBETWEEN(1,25),RANDBETWEEN(1,25)),Конструкция!A1:C25,2,FALSE)","v":"            ответить на вопрос           \nБуксировка яхты. Буксирное устройство, буксирные концы."}]
[null,{"$f":"\"            ответить на вопрос           \"     &  CHAR(10) &           VLOOKUP(IF(($E$4+RANDBETWEEN(1,20))<20,RANDBETWEEN(1,20),RANDBETWEEN(1,20)),Паруса!A1:C20,2,FALSE)","v":"            ответить на вопрос           \nКрепление их к мачте и к корпусу судна: путенсы, талрепы, рычажные устройства, лебёдки."},null,"подписать части\n паруса"]

{"sheet":"3","index":5,"n_rows":34,"n_cols":8,"rows_kept":34,"cut":false,"hidden":false,"merged":[[28,3,28,7],[32,3,32,7],[33,3,33,7],[18,3,18,7],[20,3,20,7],[21,3,21,7],[22,3,22,7],[24,3,24,5],[27,3,27,7],[17,3,17,7],[1,1,1,4],[2,3,2,7],[7,3,7,7],[10,3,10,7],[13,3,13,7]]}
[null,"Экзаменационные вопросы  - РУЛЕВОЙ  ПАРУСНОЙ ЯХТЫ Базовый курс",null,null,{"$f":"LIST!H1:I1","v":"2025-03-05"},0]
[null,"КВАЛИФИКАЦИОННЫЕ ТРЕБОВАНИЯ ПОДГОТОВКИ РУЛЕВЫХ И КАПИТАНОВ ПАРУСНЫХ ЯХТ"]
[null,"Экзаменатор  - Маслов А.О.",null,{"$f":"\"Испытуемый  \"&LIST!B3","v":"Испытуемый   Имя    Черкасский Артём"}]
[null,"Билет  ",null,"РУЛЕВОЙ ПАРУСНОЙ ЯХТЫ",{"$f":"LIST!H3","v":"7"}]
[null,"Дисциплина",null,"Правила парусных Гонок"]
[]
[null," 7 Синяя и Жёлтая яхты идут полным курсом. Жёлтая яхта догоняет Синюю и связывается с ней. Пока Синяя яхта имеет проблемы с несением спинакера, Жёлтая отходит в сторону, на расстояние меньше двух длин корпуса, после этого делает поворот фордевинд, и приводится в сторону Синей яхты. В позиции 6 Жёлтая резко уваливается, избегая Синей яхты, но происходит контакт парусами без повреждений."]
[null,null,null,"28.Какое правило (правила) нарушила Синяя яхта? "]
[null,null,null,"a","b","c","d","e"]
[null,null,null,11,14,16,17,"Никакое"]
[null,null,null,"29.    Какое правило (правила) нарушила Жёлтая яхта? "]
[null,null,null,"a","b","c","d","e"]
[null,null,null,11,14,16,17,"Никакое"]
[null,null,null,"30.    Какая яхта (яхты) должна быть наказана?"]
[null,null,null,"a","b","c"]
[null,null,null,"Синяя","Жёлт","Никакая"]
[]
[{"$f":"VLOOKUP(IF(($E$4+RANDBETWEEN(1,20))<20,RANDBETWEEN(1,20),RANDBETWEEN(1,20)),ППГ!A1:C20,1,FALSE)","v":14},{"$f":"\" ответить на вопрос:           \"&CHAR(10)&VLOOKUP(A18,ППГ!A1:C20,2,)&CHAR(10)&\"                                                  Да \"&\" или НЕТ (подчеркнуть)              \"","v":" ответить на вопрос:           \nЯхты находится на разных галсах в зоне знака. Одна их них идет в бейдевинд, а другая в бакштаг. Яхты связаны?\n                                                  Да  или НЕТ (подчеркнуть)              "},{"$f":"VLOOKUP(IF(($E$4+RANDBETWEEN(41,60))<20,RANDBETWEEN(41,60),RANDBETWEEN(41,60)),ППГ!A41:C60,1,FALSE)","v":55},{"$f":"\" ответить на вопрос:          \"&CHAR(10)&VLOOKUP(C18,ППГ!A41:C60,2,FALSE)&CHAR(10)&\"                                                                       Да \"&\" или НЕТ (подчеркнуть)\"","v":" ответить на вопрос:          \nДолжна ли соблюдать правила Части 2 ППГ финишировавшая яхта, возвращающаяся в яхт-клуб через зону гонок?\n                                                                       Да  или НЕТ (подчеркнуть)"}]
[{"$f":"VLOOKUP(IF(($E$4+RANDBETWEEN(21,40))<20,RANDBETWEEN(21,40),RANDBETWEEN(21,40)),ППГ!A21:C40,1,FALSE)","v":24},{"$f":"VLOOKUP(A19,ППГ!A21:C40,2,)&CHAR(10)&\"                                            Да \"&\" или НЕТ (подчеркнуть) \"","v":"Имеет ли право синяя яхта синяя яхта на место для поворота оверштаг? \n                                            Да  или НЕТ (подчеркнуть) "},{"$f":"VLOOKUP(IF(($E$4+RANDBETWEEN(61,100))<20,RANDBETWEEN(61,100),RANDBETWEEN(61,100)),ППГ!A60:C99,1,FALSE)","v":61},{"$f":"\" ответить на вопрос:          \"\n&CHAR(10)&VLOOKUP(C19,ППГ!A60:C99,2,FALSE)&CHAR(10)&\"                                           Да \"&\" или НЕТ (подчеркнуть)  \"","v":" ответить на вопрос:          \nДве яхты делают одновременно поворот. Яхта, которая делает поворот на левый галс, должна сторониться?\n                                           Да  или НЕТ (подчеркнуть)  "}]
[null,"Дисциплина",null,"Безопасность, Лоция, Навигация"]
[null,{"$f":"\"ответить на вопрос           \"     &  CHAR(10) &  CHAR(10) &          VLOOKUP(IF(($E$4+RANDBETWEEN(1,20))<20,RANDBETWEEN(1,20),RANDBETWEEN(1,20)),Безопасность!A1:C20,2,FALSE)","v":"ответить на вопрос           \n\nСпасательное оборудование яхты."},{"$f":"VLOOKUP(IF(($E$4+RANDBETWEEN(1,20))<20,RANDBETWEEN(1,20),RANDBETWEEN(1,20)),Безопасность!A1:C20,1,FALSE)","v":11},{"$f":"\"ответить на вопрос           \"     &  CHAR(10) &  CHAR(10) &          VLOOKUP(C21,Безопасность!A1:C20,2,FALSE)","v":"ответить на вопрос           \n\nДействия при падении человека за борт. Поиск, средства обнаружения и спасения человека за бортом."}]
[{"$f":" VLOOKUP(IF(($E$4+RANDBETWEEN(1,20))<20,RANDBETWEEN(1,20),RANDBETWEEN(1,20)),Навигация!A1:B20,1,FALSE)","v":3},{"$f":"\"            ответить на вопрос           \"     &  CHAR(10) &           VLOOKUP(A22,Навигация!A1:B20,2,FALSE)","v":"            ответить на вопрос           \nГеннакер ушел под воду и намотался на перо руля, ваши действия?"},{"$f":"VLOOKUP(IF(($E$4+RANDBETWEEN(1,20))<20,RANDBETWEEN(1,20),RANDBETWEEN(1,20)),Безопасность!A1:C20,1,FALSE)","v":15},{"$f":"\"ответить на вопрос           \"     &  CHAR(10) &  CHAR(10) &          VLOOKUP(C22,ППВВП!A1:C20,2,FALSE)","v":"ответить на вопрос           \n\nПравила Плавания по Внутренним водным путям.\nЧто означает в соответствии с ППВВП термин \n'Судно на ходу'?"}]
[null,"Подписать  - что означают эти знаки",null,"На каком из пяти изображений показан осевой знак — знак оси судового хода?"]
[null,"Дисциплина",null,"Такелажное дело"]
[{"$f":" VLOOKUP(IF(($E$4+RANDBETWEEN(1,20))<20,RANDBETWEEN(1,20),RANDBETWEEN(1,20)),Узлы!A1:C20,1,FALSE)","v":5},{"$f":"\"            Завязать узел или выполнить задание           \"     &  CHAR(10) &           VLOOKUP(A25,Узлы!A1:C20,2,FALSE)","v":"            Завязать узел или выполнить задание           \nБуксирный"},null,"Перечислить инструмент для такелажных работ"]
[{"$f":" VLOOKUP(IF(($E$4+RANDBETWEEN(1,20))<20,RANDBETWEEN(1,20),RANDBETWEEN(1,20)),Узлы!D1:E20,1,FALSE)","v":12},{"$f":"\"        Пояснить определение           \"     &  CHAR(10) &           VLOOKUP(A26,Узлы!D1:E20,2,FALSE)","v":"        Пояснить определение           \nШлаг "}]
[null,"Дисциплина",null,"Теория движения и управления яхтой, Метеорология"]
[{"$f":" VLOOKUP(IF(($E$4+RANDBETWEEN(1,20))<20,RANDBETWEEN(1,20),RANDBETWEEN(1,20)),Теория!A1:C20,1,FALSE)","v":7},{"$f":"\"            ответить на вопрос           \"     &  CHAR(10) &           VLOOKUP(A28,Теория!A1:C20,2,FALSE)","v":"            ответить на вопрос           \nДействие руля при переднем и заднем ходе."},null,{"$f":"\"            ответить на вопрос           \"     &  CHAR(10) &           VLOOKUP(IF(($E$4+RANDBETWEEN(1,20))<20,RANDBETWEEN(1,20),RANDBETWEEN(1,20)),Управление!D1:E20,2,FALSE)&CHAR(10) &CHAR(10) &CHAR(10) &\"Подписать силы действующие на яхту\"","v":"            ответить на вопрос           \n20.Что такое лейнлайн?\n\n\nПодписать силы действующие на яхту"}]
[null,{"$f":"\"Практические навыки  управление яхтой. Напишите что вы делаете при:     \"     &  CHAR(10) &  CHAR(10)&           VLOOKUP(IF(($E$4+RANDBETWEEN(1,20))<20,RANDBETWEEN(1,20),RANDBETWEEN(1,20)),Практика!A1:B21,2,FALSE)","v":"Практические навыки  управление яхтой. Напишите что вы делаете при:     \n\nШлюзование.\nПравила \nДействия Шкипера\nДействия Команды"},null,{"$f":"\"            ответить на вопрос           \"     &  CHAR(10) &           VLOOKUP(IF(($E$4+RANDBETWEEN(1,20))<20,RANDBETWEEN(1,20),RANDBETWEEN(1,20)),Метео!A1:B20,2,FALSE)","v":"            ответить на вопрос           \nбарометр, барограф, аненометр -  назначение"}]
[]
[null,"Дисциплина",null,"Конструкция Яхты и парусного вооружения"]
[null,"Подписать части яхты"]
[null,null,null,{"$f":"\"            ответить на вопрос           \"     &  CHAR(10) &          VLOOKUP(IF(($E$4+RANDBETWEEN(1,25))<25,RANDBETWEEN(1,25),RANDBETWEEN(1,25)),Конструкция!A1:C25,2,FALSE)","v":"            ответить на вопрос           \n- осадка, высота надводного борта,"}]
[null,{"$f":"\"            ответить на вопрос           \"     &  CHAR(10) &           VLOOKUP(IF(($E$4+RANDBETWEEN(1,20))<20,RANDBETWEEN(1,20),RANDBETWEEN(1,20)),Паруса!A1:C20,2,FALSE)","v":"            ответить на вопрос           \nЭлементы рангоута и состав их основных частей. "},null,"подписать части\n паруса"]

{"sheet":"4","index":6,"n_rows":38,"n_cols":8,"rows_kept":38,"cut":false,"hidden":false,"merged":[[36,3,36,7],[37,3,37,7],[22,3,22,7],[24,3,24,7],[25,3,25,7],[26,3,26,7],[28,3,28,5],[31,3,31,7],[1,1,1,4],[2,3,2,7],[21,3,21,7],[6,0,6,2],[32,3,32,7]]}
[null,"Экзаменационные вопросы  - РУЛЕВОЙ  ПАРУСНОЙ ЯХТЫ Базовый курс",null,null,{"$f":"LIST!H1:I1","v":"2025-03-05"},0]
[null,"КВАЛИФИКАЦИОННЫЕ ТРЕБОВАНИЯ ПОДГОТОВКИ РУЛЕВЫХ И КАПИТАНОВ ПАРУСНЫХ ЯХТ"]
[null,"Экзаменатор  - Маслов А.О.",null,{"$f":"\"Испытуемый  \"&LIST!B3","v":"Испытуемый   Имя    Черкасский Артём"}]
[null,"Билет  ",null,"РУЛЕВОЙ ПАРУСНОЙ ЯХТЫ",{"$f":"LIST!H3","v":"7"}]
[null,"Дисциплина",null,"Правила парусных Гонок"]
[]
["3         Жёлтая и Синяя яхты идут полным курсом на разных галсах. Жёлтая яхта, на порыве догоняет Синюю и в позиции 4-5   резко приводится, все время меняя курс Синяя яхта совершает поворот фордевинд  и делает всё возможное, чтобы сторониться.       В позиции 5 происходит контакт без повреждений. ",null,null,"9.  Какое правило(правила)  нарушила Синяя яхта?   "]
[null,null,null,"a","b","c","d","e"]
[null,null,null,10,11,14,15,"Никакое"]
[null,null,null,"10.       Какое правило(правила) нарушила  Жёлтая яхта?"]
[null,null,null,"a","b","c","d","e"]
[null,null,null,11,14,16,17,"Никакое"]
[null,null,null,"11.      В какой позиции применяется правило 17?  "]
[null,null,null,"a","b","c","d","e"]
[null,null,null,1,2,3,4,"Никакой "]
[null,null,null,"12.     Какая яхта (яхты) должна быть наказана?"]
[null,null,null,"a","b","c"]
[null,null,null,"Синяя","Желтая","Никакая"]
[null,null,null,"13.    Какая яхта (яхты) должна быть оправдана по правилу 64.1?"]
[null,null,null,"a","b","c"]
[null,null,null,"Синяя","Жёлтая","Никакая"]
[{"$f":"VLOOKUP(IF(($E$4+RANDBETWEEN(1,20))<20,RANDBETWEEN(1,20),RANDBETWEEN(1,20)),ППГ!A1:C20,1,FALSE)","v":15},{"$f":"\" ответить на вопрос:           \"&CHAR(10)&VLOOKUP(A22,ППГ!A1:C20,2,)&CHAR(10)&\"                                                  Да \"&\" или НЕТ (подчеркнуть)              \"","v":" ответить на вопрос:           \nЯхты находятся на одном галсе. Нос одной яхты находится позади транца, но впереди задней кромки руля другой яхты. Яхты связаны? \n                                                  Да  или НЕТ (подчеркнуть)              "},{"$f":"VLOOKUP(IF(($E$4+RANDBETWEEN(41,60))<20,RANDBETWEEN(41,60),RANDBETWEEN(41,60)),ППГ!A41:C60,1,FALSE)","v":58},{"$f":"\" ответить на вопрос:          \"&CHAR(10)&VLOOKUP(C22,ППГ!A41:C60,2,FALSE)&CHAR(10)&\"                                                                       Да \"&\" или НЕТ (подчеркнуть)\"","v":" ответить на вопрос:          \nПодветренная связанная яхта приводится выше надлежащего курса и нарушает правило 17. Наветренная яхта не отвечает на приведение, происходит контакт. Нарушила ли правила наветренная яхта?\n                                                                       Да  или НЕТ (подчеркнуть)"}]
[{"$f":"VLOOKUP(IF(($E$4+RANDBETWEEN(21,40))<20,RANDBETWEEN(21,40),RANDBETWEEN(21,40)),ППГ!A21:C40,1,FALSE)","v":35},{"$f":"VLOOKUP(A23,ППГ!A21:C40,2,)&CHAR(10)&\"                                            Да \"&\" или НЕТ (подчеркнуть) \"","v":"Обязывает ли какое-либо правило яхту идти надлежащим курсом?\n                                            Да  или НЕТ (подчеркнуть) "},{"$f":"VLOOKUP(IF(($E$4+RANDBETWEEN(61,100))<20,RANDBETWEEN(61,100),RANDBETWEEN(61,100)),ППГ!A60:C99,1,FALSE)","v":61},{"$f":"\" ответить на вопрос:          \"\n&CHAR(10)&VLOOKUP(C23,ППГ!A60:C99,2,FALSE)&CHAR(10)&\"                                           Да \"&\" или НЕТ (подчеркнуть)  \"","v":" ответить на вопрос:          \nДве яхты делают одновременно поворот. Яхта, которая делает поворот на левый галс, должна сторониться?\n                                           Да  или НЕТ (подчеркнуть)  "}]
[null,"Дисциплина",null,"Безопасность, Лоция, Навигация"]
[null,{"$f":"\"ответить на вопрос           \"     &  CHAR(10) &  CHAR(10) &          VLOOKUP(IF(($E$4+RANDBETWEEN(1,20))<20,RANDBETWEEN(1,20),RANDBETWEEN(1,20)),Безопасность!A1:C20,2,FALSE)","v":"ответить на вопрос           \n\nСпасательное оборудование яхты."},{"$f":"VLOOKUP(IF(($E$4+RANDBETWEEN(1,20))<20,RANDBETWEEN(1,20),RANDBETWEEN(1,20)),Безопасность!A1:C20,1,FALSE)","v":7},{"$f":"\"ответить на вопрос           \"     &  CHAR(10) &  CHAR(10) &          VLOOKUP(C25,Безопасность!A1:C20,2,FALSE)","v":"ответить на вопрос           \n\nСпасательные жилеты и индивидуальные средства плавучести"}]
[{"$f":" VLOOKUP(IF(($E$4+RANDBETWEEN(1,20))<20,RANDBETWEEN(1,20),RANDBETWEEN(1,20)),Навигация!A1:B20,1,FALSE)","v":18},{"$f":"\"            ответить на вопрос           \"     &  CHAR(10) &           VLOOKUP(A26,Навигация!A1:B20,2,FALSE)","v":"            ответить на вопрос           \nЧто делать если человек падает в воду, а вы идете бакштагом?"},{"$f":"VLOOKUP(IF(($E$4+RANDBETWEEN(1,20))<20,RANDBETWEEN(1,20),RANDBETWEEN(1,20)),Безопасность!A1:C20,1,FALSE)","v":6},{"$f":"\"ответить на вопрос           \"     &  CHAR(10) &  CHAR(10) &          VLOOKUP(C26,ППВВП!A1:C20,2,FALSE)","v":"ответить на вопрос           \n\nПравила Плавания по Внутренним водным путям.\nКак должен производиться обгон маломерным судном другого маломерного судна?"}]
[null,"Подписать  - что означают эти знаки",null,"На каком из пяти изображений показан осевой знак — знак оси судового хода?"]
[null,"Дисциплина",null,"Такелажное дело"]
[{"$f":" VLOOKUP(IF(($E$4+RANDBETWEEN(1,20))<20,RANDBETWEEN(1,20),RANDBETWEEN(1,20)),Узлы!A1:C20,1,FALSE)","v":16},{"$f":"\"            Завязать узел или выполнить задание           \"     &  CHAR(10) &           VLOOKUP(A29,Узлы!A1:C20,2,FALSE)","v":"            Завязать узел или выполнить задание           \nВыбленочный"},null,"Перечислить инструмент для такелажных работ"]
[{"$f":" VLOOKUP(IF(($E$4+RANDBETWEEN(1,20))<20,RANDBETWEEN(1,20),RANDBETWEEN(1,20)),Узлы!D1:E20,1,FALSE)","v":9},{"$f":"\"        Пояснить определение           \"     &  CHAR(10) &           VLOOKUP(A30,Узлы!D1:E20,2,FALSE)","v":"        Пояснить определение           \nСхватка "}]
[null,"Дисциплина",null,"Теория движения и управления яхтой, Метеорология"]
[{"$f":" VLOOKUP(IF(($E$4+RANDBETWEEN(1,20))<20,RANDBETWEEN(1,20),RANDBETWEEN(1,20)),Теория!A1:C20,1,FALSE)","v":16},{"$f":"\"            ответить на вопрос           \"     &  CHAR(10) &           VLOOKUP(A32,Теория!A1:C20,2,FALSE)","v":"            ответить на вопрос           \nЧто такое  - Крен и продольный дифферент."},null,{"$f":"\"            ответить на вопрос           \"     &  CHAR(10) &           VLOOKUP(IF(($E$4+RANDBETWEEN(1,20))<20,RANDBETWEEN(1,20),RANDBETWEEN(1,20)),Управление!D1:E20,2,FALSE)&CHAR(10) &CHAR(10) &CHAR(10) &\"Пояснить поляру парусной яхты\"","v":"            ответить на вопрос           \n15.Что такое ветер?\n\n\nПояснить поляру парусной яхты"}]
[null,{"$f":"\"Практические навыки  управление яхтой. Напишите что вы делаете при:     \"     &  CHAR(10) &  CHAR(10)&           VLOOKUP(IF(($E$4+RANDBETWEEN(1,20))<20,RANDBETWEEN(1,20),RANDBETWEEN(1,20)),Практика!A1:B21,2,FALSE)","v":"Практические навыки  управление яхтой. Напишите что вы делаете при:     \n\nПостановка спинакера  на небольшой килевой яхте в сильный ветер.\nПорядок действий"},null,{"$f":"\"            ответить на вопрос           \"     &  CHAR(10) &           VLOOKUP(IF(($E$4+RANDBETWEEN(1,20))<20,RANDBETWEEN(1,20),RANDBETWEEN(1,20)),Метео!A1:B20,2,FALSE)","v":"            ответить на вопрос           \nИзобары, чтение метеокарт"}]
[]
[null,"Дисциплина",null,"Конструкция Яхты и парусного вооружения"]
[null,"Подписать части яхты"]
[null,null,null,{"$f":"\"            ответить на вопрос           \"     &  CHAR(10) &          VLOOKUP(IF(($E$4+RANDBETWEEN(1,25))<25,RANDBETWEEN(1,25),RANDBETWEEN(1,25)),Конструкция!A1:C25,2,FALSE)","v":"            ответить на вопрос           \nКокпит: открытый, закрытый (глухой), самоотливной."}]
[null,{"$f":"\"            ответить на вопрос           \"     &  CHAR(10) &           VLOOKUP(IF(($E$4+RANDBETWEEN(1,20))<20,RANDBETWEEN(1,20),RANDBETWEEN(1,20)),Паруса!A1:C20,2,FALSE)","v":"            ответить на вопрос           \nРифы"},null,"подписать части\n паруса"]

{"sheet":"5","index":7,"n_rows":36,"n_cols":8,"rows_kept":36,"cut":false,"hidden":false,"merged":[[35,3,35,7],[9,3,9,7],[20,3,20,7],[22,3,22,7],[23,3,23,7],[24,3,24,7],[26,3,26,5],[29,3,29,7],[1,1,1,4],[2,3,2,7],[19,3,19,7],[30,3,30,7],[34,3,34,7]]}
[null,"Экзаменационные вопросы  - РУЛЕВОЙ  ПАРУСНОЙ ЯХТЫ Базовый курс",null,null,{"$f":"LIST!H1:I1","v":"2025-03-05"},0]
[null,"КВАЛИФИКАЦИОННЫЕ ТРЕБОВАНИЯ ПОДГОТОВКИ РУЛЕВЫХ И КАПИТАНОВ ПАРУСНЫХ ЯХТ"]
[null,"Экзаменатор  - Маслов А.О.",null,{"$f":"\"Испытуемый  \"&LIST!B3","v":"Испытуемый   Имя    Черкасский Артём"}]
[null,"Билет  ",null,"РУЛЕВОЙ ПАРУСНОЙ ЯХТЫ",{"$f":"LIST!H3","v":"7"}]
[null,"Дисциплина",null,"Правила парусных Гонок"]
[]
[null,"11 Идет последняя минута до стартового сигнала. Желтая яхта в позициях 1–3 на курсе выше  крутого  бейдевинда без хода. В позиции 4 Желтая подбирает паруса.  Происходит контакт между яхтами без повреждений. ",null,"44.Какая яхта обязана дать место-у -знака?"]
[null,null,null,"a","b","c"]
[null,null,null,"Синяя ","Желтая","Никакая"]
[null,null,null,"45.Какая яхта обязана дать место для прохождения препятствия?"]
[null,null,null,"a","b","c"]
[null,null,null,"Синяя ","Желтая","Никакая"]
[null,null,null,"46.Какое правило нарушила Желтая?"]
[null,null,null,"a","b","c","d","e"]
[null,null,null,11,14,15,16,"2018-02-18"]
[null,null,null,"47 Какое правило нарушила Синяя?"]
[null,"47 Какая яхта будет оправдана ",null,"a","b","c","d","e"]
[null,"по правилам 21 и/или64.1?",null,14,15,16," 18.2",19]
[null,"b желтая"]
[{"$f":"VLOOKUP(IF(($E$4+RANDBETWEEN(1,20))<20,RANDBETWEEN(1,20),RANDBETWEEN(1,20)),ППГ!A1:C20,1,FALSE)","v":9},{"$f":"\" ответить на вопрос:           \"&CHAR(10)&VLOOKUP(A20,ППГ!A1:C20,2,)&CHAR(10)&\"                                                  Да \"&\" или НЕТ (подчеркнуть)              \"","v":" ответить на вопрос:           \nДве яхты идут полным курсом на одном галсе и связаны (см.рис.). Одна из них сделала поворот фордевинд, при этом взаимное расположение корпусов не изменилось. Связаны ли яхты в позиции 2?\n                                                  Да  или НЕТ (подчеркнуть)              "},{"$f":"VLOOKUP(IF(($E$4+RANDBETWEEN(41,60))<20,RANDBETWEEN(41,60),RANDBETWEEN(41,60)),ППГ!A41:C60,1,FALSE)","v":45},{"$f":"\" ответить на вопрос:          \"&CHAR(10)&VLOOKUP(C20,ППГ!A41:C60,2,FALSE)&CHAR(10)&\"                                                                       Да \"&\" или НЕТ (подчеркнуть)\"","v":" ответить на вопрос:          \nЗона – это пространство вокруг знака в переделах трех длин корпуса яхты, имеющей большую длину?\n                                                                       Да  или НЕТ (подчеркнуть)"}]
[{"$f":"VLOOKUP(IF(($E$4+RANDBETWEEN(21,40))<20,RANDBETWEEN(21,40),RANDBETWEEN(21,40)),ППГ!A21:C40,1,FALSE)","v":28},{"$f":"VLOOKUP(A21,ППГ!A21:C40,2,)&CHAR(10)&\"                                            Да \"&\" или НЕТ (подчеркнуть) \"","v":"Является ли яхта левого галса препятствием для двух яхт правого галса, если она не сторонится их, и они обе вынуждены изменить курс, чтобы избежать столкновения с ней?\n                                            Да  или НЕТ (подчеркнуть) "},{"$f":"VLOOKUP(IF(($E$4+RANDBETWEEN(61,100))<20,RANDBETWEEN(61,100),RANDBETWEEN(61,100)),ППГ!A60:C99,1,FALSE)","v":92},{"$f":"\" ответить на вопрос:          \"\n&CHAR(10)&VLOOKUP(C21,ППГ!A60:C99,2,FALSE)&CHAR(10)&\"                                           Да \"&\" или НЕТ (подчеркнуть)  \"","v":" ответить на вопрос:          \nИмеет ли право Гон-й Комитет произвести сигнал «Общий отзыв» если допустил ошибку в стартовой процедуре?\n                                           Да  или НЕТ (подчеркнуть)  "}]
[null,"Дисциплина",null,"Безопасность, Лоция, Навигация"]
[null,{"$f":"\"ответить на вопрос           \"     &  CHAR(10) &  CHAR(10) &          VLOOKUP(IF(($E$4+RANDBETWEEN(1,20))<20,RANDBETWEEN(1,20),RANDBETWEEN(1,20)),Безопасность!A1:C20,2,FALSE)","v":"ответить на вопрос           \n\nПонятие о Специальных правилах  World Sailing. Подготовка  экипажа по безопасности."},{"$f":"VLOOKUP(IF(($E$4+RANDBETWEEN(1,20))<20,RANDBETWEEN(1,20),RANDBETWEEN(1,20)),Безопасность!A1:C20,1,FALSE)","v":8},{"$f":"\"ответить на вопрос           \"     &  CHAR(10) &  CHAR(10) &          VLOOKUP(C23,Безопасность!A1:C20,2,FALSE)","v":"ответить на вопрос           \n\nСигналы бедствия. Как подавать и как реагировать."}]
[{"$f":" VLOOKUP(IF(($E$4+RANDBETWEEN(1,20))<20,RANDBETWEEN(1,20),RANDBETWEEN(1,20)),Навигация!A1:B20,1,FALSE)","v":12},{"$f":"\"            ответить на вопрос           \"     &  CHAR(10) &           VLOOKUP(A24,Навигация!A1:B20,2,FALSE)","v":"            ответить на вопрос           \nТерминология морской лоции: Навигационное оборудование\nВеха\nБуй\nБакан\nМаяк\nСтвор\nПлавучий маяк"},{"$f":"VLOOKUP(IF(($E$4+RANDBETWEEN(1,20))<20,RANDBETWEEN(1,20),RANDBETWEEN(1,20)),Безопасность!A1:C20,1,FALSE)","v":14},{"$f":"\"ответить на вопрос           \"     &  CHAR(10) &  CHAR(10) &          VLOOKUP(C24,ППВВП!A1:C20,2,FALSE)","v":"ответить на вопрос           \n\nПравила Плавания по Внутренним водным путям.\nЧто означает в соответствии с ППВВП \nтермин 'Минимальная скорость'?"}]
[null,"Подписать  - что означают эти знаки",null,"На каком из пяти изображений показан осевой знак — знак оси судового хода?"]
[null,"Дисциплина",null,"Такелажное дело"]
[{"$f":" VLOOKUP(IF(($E$4+RANDBETWEEN(1,20))<20,RANDBETWEEN(1,20),RANDBETWEEN(1,20)),Узлы!A1:C20,1,FALSE)","v":20},{"$f":"\"            Завязать узел или выполнить задание           \"     &  CHAR(10) &           VLOOKUP(A27,Узлы!A1:C20,2,FALSE)","v":"            Завязать узел или выполнить задание           \nЗаделка концов.  "},null,"Перечислить инструмент для такелажных работ"]
[{"$f":" VLOOKUP(IF(($E$4+RANDBETWEEN(1,20))<20,RANDBETWEEN(1,20),RANDBETWEEN(1,20)),Узлы!D1:E20,1,FALSE)","v":20},{"$f":"\"        Пояснить определение           \"     &  CHAR(10) &           VLOOKUP(A28,Узлы!D1:E20,2,FALSE)","v":"        Пояснить определение           \nГардаман"}]
[null,"Дисциплина",null,"Теория движения и управления яхтой, Метеорология"]
[{"$f":" VLOOKUP(IF(($E$4+RANDBETWEEN(1,20))<20,RANDBETWEEN(1,20),RANDBETWEEN(1,20)),Теория!A1:C20,1,FALSE)","v":8},{"$f":"\"            ответить на вопрос           \"     &  CHAR(10) &           VLOOKUP(A30,Теория!A1:C20,2,FALSE)","v":"            ответить на вопрос           \nВодоизмещающий режим и Глиссироваие"},null,{"$f":"\"            ответить на вопрос           \"     &  CHAR(10) &           VLOOKUP(IF(($E$4+RANDBETWEEN(1,20))<20,RANDBETWEEN(1,20),RANDBETWEEN(1,20)),Управление!D1:E20,2,FALSE)&CHAR(10) &CHAR(10) &CHAR(10) &\"Пояснить силы действующие при глиссировании парусной яхты\"","v":"            ответить на вопрос           \n14.Способы выхода из левентика?\n\n\nПояснить силы действующие при глиссировании парусной яхты"}]
[null,{"$f":"\"Практические навыки  управление яхтой. Напишите что вы делаете при:     \"     &  CHAR(10) &  CHAR(10)&           VLOOKUP(IF(($E$4+RANDBETWEEN(1,20))<20,RANDBETWEEN(1,20),RANDBETWEEN(1,20)),Практика!A1:B21,2,FALSE)","v":"Практические навыки  управление яхтой. Напишите что вы делаете при:     \n\nПомощь опрокинувшимся швертботам и катамаранам.\nОписать Ваши действия и действия команды"},null,{"$f":"\"            ответить на вопрос           \"     &  CHAR(10) &           VLOOKUP(IF(($E$4+RANDBETWEEN(1,20))<20,RANDBETWEEN(1,20),RANDBETWEEN(1,20)),Метео!A1:B20,2,FALSE)","v":"            ответить на вопрос           \nПризнаки устойчивой хорошей погоды. "}]
[]
[null,"Дисциплина",null,"Конструкция Яхты и парусного вооружения"]
[null,"Подписать части яхты"]
[null,null,null,{"$f":"\"            ответить на вопрос           \"     &  CHAR(10) &          VLOOKUP(IF(($E$4+RANDBETWEEN(1,25))<25,RANDBETWEEN(1,25),RANDBETWEEN(1,25)),Конструкция!A1:C25,2,FALSE)","v":"            ответить на вопрос           \nЛюки, их назначение, расположение, устройство, крепление."}]
[null,{"$f":"\"            ответить на вопрос           \"     &  CHAR(10) &           VLOOKUP(IF(($E$4+RANDBETWEEN(1,20))<20,RANDBETWEEN(1,20),RANDBETWEEN(1,20)),Паруса!A1:C20,2,FALSE)","v":"            ответить на вопрос           \nЭлементы рангоута и состав их основных частей. "},null,"подписать части\n паруса"]

{"sheet":"6","index":8,"n_rows":36,"n_cols":8,"rows_kept":36,"cut":false,"hidden":false,"merged":[[35,3,35,7],[23,3,23,7],[24,3,24,7],[26,3,26,5],[29,3,29,7],[30,3,30,7],[34,3,34,7],[22,3,22,7],[1,1,1,4],[2,3,2,7],[9,3,9,7],[19,3,19,7],[20,3,20,7]]}
[null,"Экзаменационные вопросы  - РУЛЕВОЙ  ПАРУСНОЙ ЯХТЫ Базовый курс",null,null,{"$f":"LIST!H1:I1","v":"2025-03-05"},0]
[null,"КВАЛИФИКАЦИОННЫЕ ТРЕБОВАНИЯ ПОДГОТОВКИ РУЛЕВЫХ И КАПИТАНОВ ПАРУСНЫХ ЯХТ"]
[null,"Экзаменатор  - Маслов А.О.",null,{"$f":"\"Испытуемый  \"&LIST!B3","v":"Испытуемый   Имя    Черкасский Артём"}]
[null,"Билет  ",null,"РУЛЕВОЙ ПАРУСНОЙ ЯХТЫ",{"$f":"LIST!H3","v":"7"}]
[null,"Дисциплина",null,"Правила парусных Гонок"]
[]
[null,"11 Идет последняя минута до стартового сигнала. Желтая яхта в позициях 1–3 на курсе выше  крутого  бейдевинда без хода. В позиции 4 Желтая подбирает паруса.  Происходит контакт между яхтами без повреждений. ",null,"44.Какая яхта обязана дать место-у -знака?"]
[null,null,null,"a","b","c"]
[null,null,null,"Синяя ","Желтая","Никакая"]
[null,null,null,"45.Какая яхта обязана дать место для прохождения препятствия?"]
[null,null,null,"a","b","c"]
[null,null,null,"Синяя ","Желтая","Никакая"]
[null,null,null,"46.Какое правило нарушила Желтая?"]
[null,null,null,"a","b","c","d","e"]
[null,null,null,11,14,15,16,"2018-02-18"]
[null,null,null,"47 Какое правило нарушила Синяя?"]
[null,"47 Какая яхта будет оправдана ",null,"a","b","c","d","e"]
[null,"по правилам 21 и/или64.1?",null,14,15,16," 18.2",19]
[null,"b желтая"]
[{"$f":"VLOOKUP(IF(($E$4+RANDBETWEEN(1,20))<20,RANDBETWEEN(1,20),RANDBETWEEN(1,20)),ППГ!A1:C20,1,FALSE)","v":2},{"$f":"\" ответить на вопрос:           \"&CHAR(10)&VLOOKUP(A20,ППГ!A1:C20,2,)&CHAR(10)&\"                                                  Да \"&\" или НЕТ (подчеркнуть)              \"","v":" ответить на вопрос:           \nИмеют ли случаи ИСАФ статус правил? \n                                                  Да  или НЕТ (подчеркнуть)              "},{"$f":"VLOOKUP(IF(($E$4+RANDBETWEEN(41,60))<20,RANDBETWEEN(41,60),RANDBETWEEN(41,60)),ППГ!A41:C60,1,FALSE)","v":52},{"$f":"\" ответить на вопрос:          \"&CHAR(10)&VLOOKUP(C20,ППГ!A41:C60,2,FALSE)&CHAR(10)&\"                                                                       Да \"&\" или НЕТ (подчеркнуть)\"","v":" ответить на вопрос:          \nПрименяются ли ППГ между яхтой в гонке и катером Прoтестовый Комитет?\n                                                                       Да  или НЕТ (подчеркнуть)"}]
[{"$f":"VLOOKUP(IF(($E$4+RANDBETWEEN(21,40))<20,RANDBETWEEN(21,40),RANDBETWEEN(21,40)),ППГ!A21:C40,1,FALSE)","v":23},{"$f":"VLOOKUP(A21,ППГ!A21:C40,2,)&CHAR(10)&\"                                            Да \"&\" или НЕТ (подчеркнуть) \"","v":"Является ли катер Прoтестовый Комитет, привязанный к стартовому судну Гон-й Комитет частью знака?\n                                            Да  или НЕТ (подчеркнуть) "},{"$f":"VLOOKUP(IF(($E$4+RANDBETWEEN(61,100))<20,RANDBETWEEN(61,100),RANDBETWEEN(61,100)),ППГ!A60:C99,1,FALSE)","v":79},{"$f":"\" ответить на вопрос:          \"\n&CHAR(10)&VLOOKUP(C21,ППГ!A60:C99,2,FALSE)&CHAR(10)&\"                                           Да \"&\" или НЕТ (подчеркнуть)  \"","v":" ответить на вопрос:          \nФлагом класса (сигнал «Предупреждение») должен быть только символ класса?\n                                           Да  или НЕТ (подчеркнуть)  "}]
[null,"Дисциплина",null,"Безопасность, Лоция, Навигация"]
[null,{"$f":"\"ответить на вопрос           \"     &  CHAR(10) &  CHAR(10) &          VLOOKUP(IF(($E$4+RANDBETWEEN(1,20))<20,RANDBETWEEN(1,20),RANDBETWEEN(1,20)),Безопасность!A1:C20,2,FALSE)","v":"ответить на вопрос           \n\nВыживание в холодной воде. Первая помощь при гипотермии."},{"$f":"VLOOKUP(IF(($E$4+RANDBETWEEN(1,20))<20,RANDBETWEEN(1,20),RANDBETWEEN(1,20)),Безопасность!A1:C20,1,FALSE)","v":20},{"$f":"\"ответить на вопрос           \"     &  CHAR(10) &  CHAR(10) &          VLOOKUP(C23,Безопасность!A1:C20,2,FALSE)","v":"ответить на вопрос           \n\nПонятие о Специальных правилах  World Sailing. Подготовка  экипажа по безопасности."}]
[{"$f":" VLOOKUP(IF(($E$4+RANDBETWEEN(1,20))<20,RANDBETWEEN(1,20),RANDBETWEEN(1,20)),Навигация!A1:B20,1,FALSE)","v":2},{"$f":"\"            ответить на вопрос           \"     &  CHAR(10) &           VLOOKUP(A24,Навигация!A1:B20,2,FALSE)","v":"            ответить на вопрос           \nВыбор убежища в критических условиях"},{"$f":"VLOOKUP(IF(($E$4+RANDBETWEEN(1,20))<20,RANDBETWEEN(1,20),RANDBETWEEN(1,20)),Безопасность!A1:C20,1,FALSE)","v":11},{"$f":"\"ответить на вопрос           \"     &  CHAR(10) &  CHAR(10) &          VLOOKUP(C24,ППВВП!A1:C20,2,FALSE)","v":"ответить на вопрос           \n\nПравила Плавания по Внутренним водным путям.\nРасхождение парусных судов, парусных судов с катерами, с крупными судами."}]
[null,"Подписать  - что означают эти знаки",null,"На каком из пяти изображений показан осевой знак — знак оси судового хода?"]
[null,"Дисциплина",null,"Такелажное дело"]
[{"$f":" VLOOKUP(IF(($E$4+RANDBETWEEN(1,20))<20,RANDBETWEEN(1,20),RANDBETWEEN(1,20)),Узлы!A1:C20,1,FALSE)","v":11},{"$f":"\"            Завязать узел или выполнить задание           \"     &  CHAR(10) &           VLOOKUP(A27,Узлы!A1:C20,2,FALSE)","v":"            Завязать узел или выполнить задание           \nБухтование"},null,"Перечислить инструмент для такелажных работ"]
[{"$f":" VLOOKUP(IF(($E$4+RANDBETWEEN(1,20))<20,RANDBETWEEN(1,20),RANDBETWEEN(1,20)),Узлы!D1:E20,1,FALSE)","v":16},{"$f":"\"        Пояснить определение           \"     &  CHAR(10) &           VLOOKUP(A28,Узлы!D1:E20,2,FALSE)","v":"        Пояснить определение           \nПарусная игла"}]
[null,"Дисциплина",null,"Теория движения и управления яхтой, Метеорология"]
[{"$f":" VLOOKUP(IF(($E$4+RANDBETWEEN(1,20))<20,RANDBETWEEN(1,20),RANDBETWEEN(1,20)),Теория!A1:C20,1,FALSE)","v":5},{"$f":"\"            ответить на вопрос           \"     &  CHAR(10) &           VLOOKUP(A30,Теория!A1:C20,2,FALSE)","v":"            ответить на вопрос           \nДиаграмма остойчивости. Причина опрокидывания яхт на разных курсах. "},null,{"$f":"\"            ответить на вопрос           \"     &  CHAR(10) &           VLOOKUP(IF(($E$4+RANDBETWEEN(1,20))<20,RANDBETWEEN(1,20),RANDBETWEEN(1,20)),Управление!D1:E20,2,FALSE)&CHAR(10) &CHAR(10) &CHAR(10) &\"Пояснить силы действующие на парусную яхту\"","v":"            ответить на вопрос           \n2.Что такое галс? Какие бывают галсы?\n\n\nПояснить силы действующие на парусную яхту"}]
[null,{"$f":"\"Практические навыки  управление яхтой. Напишите что вы делаете при:     \"     &  CHAR(10) &  CHAR(10)&           VLOOKUP(IF(($E$4+RANDBETWEEN(1,20))<20,RANDBETWEEN(1,20),RANDBETWEEN(1,20)),Практика!A1:B21,2,FALSE)","v":"Практические навыки  управление яхтой. Напишите что вы делаете при:     \n\nУборка Парусов в гавани при разных направлениях ветра"},null,{"$f":"\"            ответить на вопрос           \"     &  CHAR(10) &           VLOOKUP(IF(($E$4+RANDBETWEEN(1,20))<20,RANDBETWEEN(1,20),RANDBETWEEN(1,20)),Метео!A1:B20,2,FALSE)","v":"            ответить на вопрос           \nМестные ветры: бризы, вертикальная подоблачная циркуляция воздушных масс, термики."}]
[]
[null,"Дисциплина",null,"Конструкция Яхты и парусного вооружения"]
[null,"Подписать части яхты"]
[null,null,null,{"$f":"\"            ответить на вопрос           \"     &  CHAR(10) &          VLOOKUP(IF(($E$4+RANDBETWEEN(1,25))<25,RANDBETWEEN(1,25),RANDBETWEEN(1,25)),Конструкция!A1:C25,2,FALSE)","v":"            ответить на вопрос           \nПутенсы для стоячего такелажа, их крепление к стоячему такелажу."}]
[null,{"$f":"\"            ответить на вопрос           \"     &  CHAR(10) &           VLOOKUP(IF(($E$4+RANDBETWEEN(1,20))<20,RANDBETWEEN(1,20),RANDBETWEEN(1,20)),Паруса!A1:C20,2,FALSE)","v":"            ответить на вопрос           \nПаруса, Основные, Дополнительные, Штормовые."},null,"подписать части\n паруса"]

{"sheet":"7","index":9,"n_rows":38,"n_cols":8,"rows_kept":38,"cut":false,"hidden":false,"merged":[[37,3,37,7],[25,3,25,7],[26,3,26,7],[28,3,28,5],[31,3,31,7],[32,3,32,7],[36,3,36,7],[24,3,24,7],[1,1,1,4],[2,3,2,7],[6,0,6,2],[21,3,21,7],[22,3,22,7]]}
[null,"Экзаменационные вопросы  - РУЛЕВОЙ  ПАРУСНОЙ ЯХТЫ Базовый курс",null,null,{"$f":"LIST!H1:I1","v":"2025-03-05"},0]
[null,"КВАЛИФИКАЦИОННЫЕ ТРЕБОВАНИЯ ПОДГОТОВКИ РУЛЕВЫХ И КАПИТАНОВ ПАРУСНЫХ ЯХТ"]
[null,"Экзаменатор  - Маслов А.О.",null,{"$f":"\"Испытуемый  \"&LIST!B3","v":"Испытуемый   Имя    Черкасский Артём"}]
[null,"Билет  ",null,"РУЛЕВОЙ ПАРУСНОЙ ЯХТЫ",{"$f":"LIST!H3","v":"7"}]
[null,"Дисциплина",null,"Правила парусных Гонок"]
[]
["3         Жёлтая и Синяя яхты идут полным курсом на разных галсах. Жёлтая яхта, на порыве догоняет Синюю и в позиции 4-5   резко приводится, все время меняя курс Синяя яхта совершает поворот фордевинд  и делает всё возможное, чтобы сторониться.       В позиции 5 происходит контакт без повреждений. ",null,null,"9.  Какое правило(правила)  нарушила Синяя яхта?   "]
[null,null,null,"a","b","c","d","e"]
[null,null,null,10,11,14,15,"Никакое"]
[null,null,null,"10.       Какое правило(правила) нарушила  Жёлтая яхта?"]
[null,null,null,"a","b","c","d","e"]
[null,null,null,11,14,16,17,"Никакое"]
[null,null,null,"11.      В какой позиции применяется правило 17?  "]
[null,null,null,"a","b","c","d","e"]
[null,null,null,1,2,3,4,"Никакой "]
[null,null,null,"12.     Какая яхта (яхты) должна быть наказана?"]
[null,null,null,"a","b","c"]
[null,null,null,"Синяя","Желтая","Никакая"]
[null,null,null,"13.    Какая яхта (яхты) должна быть оправдана по правилу 64.1?"]
[null,null,null,"a","b","c"]
[null,null,null,"Синяя","Жёлтая","Никакая"]
[{"$f":"VLOOKUP(IF(($E$4+RANDBETWEEN(1,20))<20,RANDBETWEEN(1,20),RANDBETWEEN(1,20)),ППГ!A1:C20,1,FALSE)","v":17},{"$f":"\" ответить на вопрос:           \"&CHAR(10)&VLOOKUP(A22,ППГ!A1:C20,2,)&CHAR(10)&\"                                                  Да \"&\" или НЕТ (подчеркнуть)              \"","v":" ответить на вопрос:           \nДолжна ли яхта полностью пересечь финишную линию для того чтобы финишировать?\n                                                  Да  или НЕТ (подчеркнуть)              "},{"$f":"VLOOKUP(IF(($E$4+RANDBETWEEN(41,60))<20,RANDBETWEEN(41,60),RANDBETWEEN(41,60)),ППГ!A41:C60,1,FALSE)","v":50},{"$f":"\" ответить на вопрос:          \"&CHAR(10)&VLOOKUP(C22,ППГ!A41:C60,2,FALSE)&CHAR(10)&\"                                                                       Да \"&\" или НЕТ (подчеркнуть)\"","v":" ответить на вопрос:          \nЕсли во время сигнала «Старт» яхта находилась на стороне дистанции и знала об этом, но Гон-й Комитет ошибочно не подал сигнал индивидуального отзыва, должна ли яхта вернуться и стартовать правильно? \n                                                                       Да  или НЕТ (подчеркнуть)"}]
[{"$f":"VLOOKUP(IF(($E$4+RANDBETWEEN(21,40))<20,RANDBETWEEN(21,40),RANDBETWEEN(21,40)),ППГ!A21:C40,1,FALSE)","v":30},{"$f":"VLOOKUP(A23,ППГ!A21:C40,2,)&CHAR(10)&\"                                            Да \"&\" или НЕТ (подчеркнуть) \"","v":"Может ли Проводящая Организация являться стороной в рассмотрении? \n                                            Да  или НЕТ (подчеркнуть) "},{"$f":"VLOOKUP(IF(($E$4+RANDBETWEEN(61,100))<20,RANDBETWEEN(61,100),RANDBETWEEN(61,100)),ППГ!A60:C99,1,FALSE)","v":82},{"$f":"\" ответить на вопрос:          \"\n&CHAR(10)&VLOOKUP(C23,ППГ!A60:C99,2,FALSE)&CHAR(10)&\"                                           Да \"&\" или НЕТ (подчеркнуть)  \"","v":" ответить на вопрос:          \nНарушает ли яхта правило «верёвочки», если при огибании знака в предписанном направлении ее сносит течением и в результате ее путь вокруг знака представляет собой «петлю»? \n                                           Да  или НЕТ (подчеркнуть)  "}]
[null,"Дисциплина",null,"Безопасность, Лоция, Навигация"]
[null,{"$f":"\"ответить на вопрос           \"     &  CHAR(10) &  CHAR(10) &          VLOOKUP(IF(($E$4+RANDBETWEEN(1,20))<20,RANDBETWEEN(1,20),RANDBETWEEN(1,20)),Безопасность!A1:C20,2,FALSE)","v":"ответить на вопрос           \n\nСпасательные жилеты и индивидуальные средства плавучести"},{"$f":"VLOOKUP(IF(($E$4+RANDBETWEEN(1,20))<20,RANDBETWEEN(1,20),RANDBETWEEN(1,20)),Безопасность!A1:C20,1,FALSE)","v":11},{"$f":"\"ответить на вопрос           \"     &  CHAR(10) &  CHAR(10) &          VLOOKUP(C25,Безопасность!A1:C20,2,FALSE)","v":"ответить на вопрос           \n\nДействия при падении человека за борт. Поиск, средства обнаружения и спасения человека за бортом."}]
[{"$f":" VLOOKUP(IF(($E$4+RANDBETWEEN(1,20))<20,RANDBETWEEN(1,20),RANDBETWEEN(1,20)),Навигация!A1:B20,1,FALSE)","v":17},{"$f":"\"            ответить на вопрос           \"     &  CHAR(10) &           VLOOKUP(A26,Навигация!A1:B20,2,FALSE)","v":"            ответить на вопрос           \nЧто делать если человек падает в воду,  а вы идете в лавировку?"},{"$f":"VLOOKUP(IF(($E$4+RANDBETWEEN(1,20))<20,RANDBETWEEN(1,20),RANDBETWEEN(1,20)),Безопасность!A1:C20,1,FALSE)","v":8},{"$f":"\"ответить на вопрос           \"     &  CHAR(10) &  CHAR(10) &          VLOOKUP(C26,ППВВП!A1:C20,2,FALSE)","v":"ответить на вопрос           \n\nПравила Плавания по Внутренним водным путям.\nЛатеральная и Кардинальная системы ограждения опасностей. \nОсновные особенности и отличия"}]
[null,"Подписать  - что означают эти знаки",null,"На каком из пяти изображений показан осевой знак — знак оси судового хода?"]
[null,"Дисциплина",null,"Такелажное дело"]
[{"$f":" VLOOKUP(IF(($E$4+RANDBETWEEN(1,20))<20,RANDBETWEEN(1,20),RANDBETWEEN(1,20)),Узлы!A1:C20,1,FALSE)","v":4},{"$f":"\"            Завязать узел или выполнить задание           \"     &  CHAR(10) &           VLOOKUP(A29,Узлы!A1:C20,2,FALSE)","v":"            Завязать узел или выполнить задание           \nБеседочный ( булинь)"},null,"Перечислить инструмент для такелажных работ"]
[{"$f":" VLOOKUP(IF(($E$4+RANDBETWEEN(1,20))<20,RANDBETWEEN(1,20),RANDBETWEEN(1,20)),Узлы!D1:E20,1,FALSE)","v":18},{"$f":"\"        Пояснить определение           \"     &  CHAR(10) &           VLOOKUP(A30,Узлы!D1:E20,2,FALSE)","v":"        Пояснить определение           \nФал"}]
[null,"Дисциплина",null,"Теория движения и управления яхтой, Метеорология"]
[{"$f":" VLOOKUP(IF(($E$4+RANDBETWEEN(1,20))<20,RANDBETWEEN(1,20),RANDBETWEEN(1,20)),Теория!A1:C20,1,FALSE)","v":3},{"$f":"\"            ответить на вопрос           \"     &  CHAR(10) &           VLOOKUP(A32,Теория!A1:C20,2,FALSE)","v":"            ответить на вопрос           \nостойчивость (поперечная и продольная) килевых яхт. Схема "},null,{"$f":"\"            ответить на вопрос           \"     &  CHAR(10) &           VLOOKUP(IF(($E$4+RANDBETWEEN(1,20))<20,RANDBETWEEN(1,20),RANDBETWEEN(1,20)),Управление!D1:E20,2,FALSE)&CHAR(10) &CHAR(10) &CHAR(10) &\"Пояснить поляру парусной яхты\"","v":"            ответить на вопрос           \n17.Что такое крен? Его влияние на скорость\n\n\nПояснить поляру парусной яхты"}]
[null,{"$f":"\"Практические навыки  управление яхтой. Напишите что вы делаете при:     \"     &  CHAR(10) &  CHAR(10)&           VLOOKUP(IF(($E$4+RANDBETWEEN(1,20))<20,RANDBETWEEN(1,20),RANDBETWEEN(1,20)),Практика!A1:B21,2,FALSE)","v":"Практические навыки  управление яхтой. Напишите что вы делаете при:     \n\nСнятие яхты с якоря под парусами.\nПорядок действий и маневры рулевого"},null,{"$f":"\"            ответить на вопрос           \"     &  CHAR(10) &           VLOOKUP(IF(($E$4+RANDBETWEEN(1,20))<20,RANDBETWEEN(1,20),RANDBETWEEN(1,20)),Метео!A1:B20,2,FALSE)","v":"            ответить на вопрос           \nВлияние берега на изменение ветра."}]
[]
[null,"Дисциплина",null,"Конструкция Яхты и парусного вооружения"]
[null,"Подписать части яхты"]
[null,null,null,{"$f":"\"            ответить на вопрос           \"     &  CHAR(10) &          VLOOKUP(IF(($E$4+RANDBETWEEN(1,25))<25,RANDBETWEEN(1,25),RANDBETWEEN(1,25)),Конструкция!A1:C25,2,FALSE)","v":"            ответить на вопрос           \n Адмиралтейский якорь"}]
[null,{"$f":"\"            ответить на вопрос           \"     &  CHAR(10) &           VLOOKUP(IF(($E$4+RANDBETWEEN(1,20))<20,RANDBETWEEN(1,20),RANDBETWEEN(1,20)),Паруса!A1:C20,2,FALSE)","v":"            ответить на вопрос           \nКрепление их к мачте и к корпусу судна: путенсы, талрепы, рычажные устройства, лебёдки."},null,"подписать части\n паруса"]

{"sheet":"8","index":10,"n_rows":35,"n_cols":8,"rows_kept":35,"cut":false,"hidden":false,"merged":[[26,3,26,5],[28,3,28,7],[29,3,29,7],[33,3,33,7],[34,3,34,7],[25,3,25,5],[1,1,1,4],[2,3,2,7],[6,3,6,7],[9,3,9,7],[12,3,12,7],[15,3,15,7],[18,3,18,7],[19,3,19,7],[21,3,21,7],[22,3,22,7],[23,3,23,7]]}
[null,"Экзаменационные вопросы  - РУЛЕВОЙ  ПАРУСНОЙ ЯХТЫ Базовый курс",null,null,{"$f":"LIST!H1:I1","v":"2025-03-05"},0]
[null,"КВАЛИФИКАЦИОННЫЕ ТРЕБОВАНИЯ ПОДГОТОВКИ РУЛЕВЫХ И КАПИТАНОВ ПАРУСНЫХ ЯХТ"]
[null,"Экзаменатор  - Маслов А.О.",null,{"$f":"\"Испытуемый  \"&LIST!B3","v":"Испытуемый   Имя    Черкасский Артём"}]
[null,"Билет  ",null,"РУЛЕВОЙ ПАРУСНОЙ ЯХТЫ",{"$f":"LIST!H3","v":"7"}]
[null,"Дисциплина",null,"Правила парусных Гонок"]
[]
[null," 6 Синяя и Жёлтая яхты,  связанные, идут на левом галсе пересекающимися курсами с Красной яхтой. В позиции 2 Жёлтая яхта окликом запрашивает место для поворота от препятствия. Синяя яхта, чуть позже, в позиции 3, также требует место, как внутренняя яхта. После этого она уваливается под корму Красной яхты,  Жёлтая также вынуждена увалиться, чтобы избежать Синей.",null,"24. Какая яхта имеет право дороги по отношению  к другой яхте?   "]
[null,null,null,"a","b","c","d","e"]
[null,null,null,"Синяя к Жёлт","Жёлт к Синей","Крас к Синей","Красн к Жёлт","Синк красy"]
[null,null,null,"25.    Какое правилонарушила Желтая яхта?"]
[null,null,null,"a","b","c","d","e"]
[null,null,null,10,14," 19.2"," 20.01","Никакое"]
[null,null,null,"26.    Какое правило нарушила Синяя яхта?"]
[null,null,null,"a","b","c","d","e"]
[null,null,null,11,14," 19.2"," 20.02","Никакое"]
[null,null,null,"27.    Какая яхта (яхты) должна быть наказана?"]
[null,null,null,"a","b","c","d"]
[null,null,null,"Синяя","Жёлт","Красн","Никакая "]
[{"$f":"VLOOKUP(IF(($E$4+RANDBETWEEN(1,20))<20,RANDBETWEEN(1,20),RANDBETWEEN(1,20)),ППГ!A1:C20,1,FALSE)","v":8},{"$f":"\" ответить на вопрос:           \"&CHAR(10)&VLOOKUP(A19,ППГ!A1:C20,2,)&CHAR(10)&\"                                                  Да \"&\" или НЕТ (подчеркнуть)              \"","v":" ответить на вопрос:           \nИмеет ли право Прoтестовый Комитет прекратить гонку? \n                                                  Да  или НЕТ (подчеркнуть)              "},{"$f":"VLOOKUP(IF(($E$4+RANDBETWEEN(41,60))<20,RANDBETWEEN(41,60),RANDBETWEEN(41,60)),ППГ!A41:C60,1,FALSE)","v":43},{"$f":"\" ответить на вопрос:          \"&CHAR(10)&VLOOKUP(C19,ППГ!A41:C60,2,FALSE)&CHAR(10)&\"                                                                       Да \"&\" или НЕТ (подчеркнуть)\"","v":" ответить на вопрос:          \nЯвляются ли Кодексы ИСАФ о допуске, рекламе, антидопинге и классификации спортсменов (Регламенты 19, 20, 21 и 22 ИСАФ), правилами в смысле определенном ППГ? \n                                                                       Да  или НЕТ (подчеркнуть)"}]
[{"$f":"VLOOKUP(IF(($E$4+RANDBETWEEN(21,40))<20,RANDBETWEEN(21,40),RANDBETWEEN(21,40)),ППГ!A21:C40,1,FALSE)","v":40},{"$f":"VLOOKUP(A20,ППГ!A21:C40,2,)&CHAR(10)&\"                                            Да \"&\" или НЕТ (подчеркнуть) \"","v":"Яхта находится в гонке, если после сигнала «Подготовительный» ее член экипажа выпал за борт?\n                                            Да  или НЕТ (подчеркнуть) "},{"$f":"VLOOKUP(IF(($E$4+RANDBETWEEN(61,100))<20,RANDBETWEEN(61,100),RANDBETWEEN(61,100)),ППГ!A60:C99,1,FALSE)","v":73},{"$f":"\" ответить на вопрос:          \"\n&CHAR(10)&VLOOKUP(C20,ППГ!A60:C99,2,FALSE)&CHAR(10)&\"                                           Да \"&\" или НЕТ (подчеркнуть)  \"","v":" ответить на вопрос:          \nЯхта правого галса, возвращающаяся на предстартовую сторону после фальстарта, должна сторониться яхты левого галса, которая стартовала правильно? \n                                           Да  или НЕТ (подчеркнуть)  "}]
[null,"Дисциплина",null,"Безопасность, Лоция, Навигация"]
[null,{"$f":"\"ответить на вопрос           \"     &  CHAR(10) &  CHAR(10) &          VLOOKUP(IF(($E$4+RANDBETWEEN(1,20))<20,RANDBETWEEN(1,20),RANDBETWEEN(1,20)),Безопасность!A1:C20,2,FALSE)","v":"ответить на вопрос           \n\nИнструктаж экипажа перед выходом в море."},{"$f":"VLOOKUP(IF(($E$4+RANDBETWEEN(1,20))<20,RANDBETWEEN(1,20),RANDBETWEEN(1,20)),Безопасность!A1:C20,1,FALSE)","v":17},{"$f":"\"ответить на вопрос           \"     &  CHAR(10) &  CHAR(10) &          VLOOKUP(C22,Безопасность!A1:C20,2,FALSE)","v":"ответить на вопрос           \n\nПротивопожарные средства на яхтах. Наиболее частые причины пожаров."}]
[{"$f":" VLOOKUP(IF(($E$4+RANDBETWEEN(1,20))<20,RANDBETWEEN(1,20),RANDBETWEEN(1,20)),Навигация!A1:B20,1,FALSE)","v":14},{"$f":"\"            ответить на вопрос           \"     &  CHAR(10) &           VLOOKUP(A23,Навигация!A1:B20,2,FALSE)","v":"            ответить на вопрос           \nТерминология морской лоции:\nПОРТ\nРейд\nГавань\nБассейн\nАванпорт\n"},{"$f":"VLOOKUP(IF(($E$4+RANDBETWEEN(1,20))<20,RANDBETWEEN(1,20),RANDBETWEEN(1,20)),Безопасность!A1:C20,1,FALSE)","v":14},{"$f":"\"ответить на вопрос           \"     &  CHAR(10) &  CHAR(10) &          VLOOKUP(C23,ППВВП!A1:C20,2,FALSE)","v":"ответить на вопрос           \n\nПравила Плавания по Внутренним водным путям.\nЧто означает в соответствии с ППВВП \nтермин 'Минимальная скорость'?"}]
[null,"Подписать  - что означают эти знаки",null,"На каком из пяти изображений показан осевой знак — знак оси судового хода?"]
[null,"Дисциплина",null,"Такелажное дело"]
[{"$f":" VLOOKUP(IF(($E$4+RANDBETWEEN(1,20))<20,RANDBETWEEN(1,20),RANDBETWEEN(1,20)),Узлы!A1:C20,1,FALSE)","v":18},{"$f":"\"            Завязать узел или выполнить задание           \"     &  CHAR(10) &           VLOOKUP(A26,Узлы!A1:C20,2,FALSE)","v":"            Завязать узел или выполнить задание           \nРифовый"},null,"Перечислить инструмент для такелажных работ"]
[{"$f":" VLOOKUP(IF(($E$4+RANDBETWEEN(1,20))<20,RANDBETWEEN(1,20),RANDBETWEEN(1,20)),Узлы!D1:E20,1,FALSE)","v":13},{"$f":"\"        Пояснить определение           \"     &  CHAR(10) &           VLOOKUP(A27,Узлы!D1:E20,2,FALSE)","v":"        Пояснить определение           \nШтерт"},null,"Подписать название узлов"]
[null,"Дисциплина",null,"Теория движения и управления яхтой, Метеорология"]
[{"$f":" VLOOKUP(IF(($E$4+RANDBETWEEN(1,20))<20,RANDBETWEEN(1,20),RANDBETWEEN(1,20)),Теория!A1:C20,1,FALSE)","v":11},{"$f":"\"            ответить на вопрос           \"     &  CHAR(10) &           VLOOKUP(A29,Теория!A1:C20,2,FALSE)","v":"            ответить на вопрос           \nУгол для установки грота в зависимости от направления и силы  ветра. "},null,{"$f":"\"            ответить на вопрос           \"     &  CHAR(10) &           VLOOKUP(IF(($E$4+RANDBETWEEN(1,20))<20,RANDBETWEEN(1,20),RANDBETWEEN(1,20)),Управление!D1:E20,2,FALSE)&CHAR(10) &CHAR(10) &CHAR(10) &\"Пояснить диаграмму ????? ( как называется?)\"","v":"            ответить на вопрос           \n8.Что такое привестись?\n\n\nПояснить диаграмму ????? ( как называется?)"}]
[null,{"$f":"\"Практические навыки  управление яхтой. Напишите что вы делаете при:     \"     &  CHAR(10) &  CHAR(10)&           VLOOKUP(IF(($E$4+RANDBETWEEN(1,20))<20,RANDBETWEEN(1,20),RANDBETWEEN(1,20)),Практика!A1:B21,2,FALSE)","v":"Практические навыки  управление яхтой. Напишите что вы делаете при:     \n\nБуксировка яхт.\nСпособы закладки буксирного конца"},null,{"$f":"\"            ответить на вопрос           \"     &  CHAR(10) &           VLOOKUP(IF(($E$4+RANDBETWEEN(1,20))<20,RANDBETWEEN(1,20),RANDBETWEEN(1,20)),Метео!A1:B20,2,FALSE)","v":"            ответить на вопрос           \nМестные и морские приметы для предсказания погоды."}]
[]
[null,"Дисциплина",null,"Конструкция Яхты и парусного вооружения"]
[null,"Подписать части яхты"]
[null,null,null,{"$f":"\"            ответить на вопрос           \"     &  CHAR(10) &          VLOOKUP(IF(($E$4+RANDBETWEEN(1,25))<25,RANDBETWEEN(1,25),RANDBETWEEN(1,25)),Конструкция!A1:C25,2,FALSE)","v":"            ответить на вопрос           \nОсновные размерения парусной язты"}]
[null,{"$f":"\"            ответить на вопрос           \"     &  CHAR(10) &           VLOOKUP(IF(($E$4+RANDBETWEEN(1,20))<20,RANDBETWEEN(1,20),RANDBETWEEN(1,20)),Паруса!A1:C20,2,FALSE)","v":"            ответить на вопрос           \nПаруса, элементы конструкции"},null,"подписать части\n паруса"]

{"sheet":"9","index":11,"n_rows":36,"n_cols":8,"rows_kept":36,"cut":false,"hidden":false,"merged":[[35,3,35,7],[23,3,23,7],[24,3,24,7],[26,3,26,5],[29,3,29,7],[30,3,30,7],[34,3,34,7],[22,3,22,7],[1,1,1,4],[2,3,2,7],[9,3,9,7],[19,3,19,7],[20,3,20,7]]}
[null,"Экзаменационные вопросы  - РУЛЕВОЙ  ПАРУСНОЙ ЯХТЫ Базовый курс",null,null,{"$f":"LIST!H1:I1","v":"2025-03-05"},0]
[null,"КВАЛИФИКАЦИОННЫЕ ТРЕБОВАНИЯ ПОДГОТОВКИ РУЛЕВЫХ И КАПИТАНОВ ПАРУСНЫХ ЯХТ"]
[null,"Экзаменатор  - Маслов А.О.",null,{"$f":"\"Испытуемый  \"&LIST!B3","v":"Испытуемый   Имя    Черкасский Артём"}]
[null,"Билет  ",null,"РУЛЕВОЙ ПАРУСНОЙ ЯХТЫ",{"$f":"LIST!H3","v":"7"}]
[null,"Дисциплина",null,"Правила парусных Гонок"]
[]
[null,"11 Идет последняя минута до стартового сигнала. Желтая яхта в позициях 1–3 на курсе выше  крутого  бейдевинда без хода. В позиции 4 Желтая подбирает паруса.  Происходит контакт между яхтами без повреждений. ",null,"44.Какая яхта обязана дать место-у -знака?"]
[null,null,null,"a","b","c"]
[null,null,null,"Синяя ","Желтая","Никакая"]
[null,null,null,"45.Какая яхта обязана дать место для прохождения препятствия?"]
[null,null,null,"a","b","c"]
[null,null,null,"Синяя ","Желтая","Никакая"]
[null,null,null,"46.Какое правило нарушила Желтая?"]
[null,null,null,"a","b","c","d","e"]
[null,null,null,11,14,15,16,"2018-02-18"]
[null,null,null,"47 Какое правило нарушила Синяя?"]
[null,"47 Какая яхта будет оправдана ",null,"a","b","c","d","e"]
[null,"по правилам 21 и/или64.1?",null,14,15,16," 18.2",19]
[null,"b желтая"]
[{"$f":"VLOOKUP(IF(($E$4+RANDBETWEEN(1,20))<20,RANDBETWEEN(1,20),RANDBETWEEN(1,20)),ППГ!A1:C20,1,FALSE)","v":8},{"$f":"\" ответить на вопрос:           \"&CHAR(10)&VLOOKUP(A20,ППГ!A1:C20,2,)&CHAR(10)&\"                                                  Да \"&\" или НЕТ (подчеркнуть)              \"","v":" ответить на вопрос:           \nИмеет ли право Прoтестовый Комитет прекратить гонку? \n                                                  Да  или НЕТ (подчеркнуть)              "},{"$f":"VLOOKUP(IF(($E$4+RANDBETWEEN(41,60))<20,RANDBETWEEN(41,60),RANDBETWEEN(41,60)),ППГ!A41:C60,1,FALSE)","v":59},{"$f":"\" ответить на вопрос:          \"&CHAR(10)&VLOOKUP(C20,ППГ!A41:C60,2,FALSE)&CHAR(10)&\"                                                                       Да \"&\" или НЕТ (подчеркнуть)\"","v":" ответить на вопрос:          \nЯхта, идущая чисто впереди не меняя курса, но резко снизившая скорость, должна дать место яхте, идущей чисто позади, чтобы та могла сторониться? \n                                                                       Да  или НЕТ (подчеркнуть)"}]
[{"$f":"VLOOKUP(IF(($E$4+RANDBETWEEN(21,40))<20,RANDBETWEEN(21,40),RANDBETWEEN(21,40)),ППГ!A21:C40,1,FALSE)","v":34},{"$f":"VLOOKUP(A21,ППГ!A21:C40,2,)&CHAR(10)&\"                                            Да \"&\" или НЕТ (подчеркнуть) \"","v":"При прохождении ворот надлежащим курсом для яхты является огибание ближайшего знака ворот?\n                                            Да  или НЕТ (подчеркнуть) "},{"$f":"VLOOKUP(IF(($E$4+RANDBETWEEN(61,100))<20,RANDBETWEEN(61,100),RANDBETWEEN(61,100)),ППГ!A60:C99,1,FALSE)","v":71},{"$f":"\" ответить на вопрос:          \"\n&CHAR(10)&VLOOKUP(C21,ППГ!A60:C99,2,FALSE)&CHAR(10)&\"                                           Да \"&\" или НЕТ (подчеркнуть)  \"","v":" ответить на вопрос:          \nЯхта, имеющая право дороги, вошла в зону чисто впереди и преднамеренно оставила другой яхте пространство между собой и знаком, достаточное для огибания. Имеет ли она право впоследствии закрыть это пространство?\n                                           Да  или НЕТ (подчеркнуть)  "}]
[null,"Дисциплина",null,"Безопасность, Лоция, Навигация"]
[null,{"$f":"\"ответить на вопрос           \"     &  CHAR(10) &  CHAR(10) &          VLOOKUP(IF(($E$4+RANDBETWEEN(1,20))<20,RANDBETWEEN(1,20),RANDBETWEEN(1,20)),Безопасность!A1:C20,2,FALSE)","v":"ответить на вопрос           \n\nСигналы бедствия. Как подавать и как реагировать."},{"$f":"VLOOKUP(IF(($E$4+RANDBETWEEN(1,20))<20,RANDBETWEEN(1,20),RANDBETWEEN(1,20)),Безопасность!A1:C20,1,FALSE)","v":11},{"$f":"\"ответить на вопрос           \"     &  CHAR(10) &  CHAR(10) &          VLOOKUP(C23,Безопасность!A1:C20,2,FALSE)","v":"ответить на вопрос           \n\nДействия при падении человека за борт. Поиск, средства обнаружения и спасения человека за бортом."}]
[{"$f":" VLOOKUP(IF(($E$4+RANDBETWEEN(1,20))<20,RANDBETWEEN(1,20),RANDBETWEEN(1,20)),Навигация!A1:B20,1,FALSE)","v":9},{"$f":"\"            ответить на вопрос           \"     &  CHAR(10) &           VLOOKUP(A24,Навигация!A1:B20,2,FALSE)","v":"            ответить на вопрос           \nПри подходе к пирсу в навальный ветер – ваши действия, нарисуйте схематично"},{"$f":"VLOOKUP(IF(($E$4+RANDBETWEEN(1,20))<20,RANDBETWEEN(1,20),RANDBETWEEN(1,20)),Безопасность!A1:C20,1,FALSE)","v":11},{"$f":"\"ответить на вопрос           \"     &  CHAR(10) &  CHAR(10) &          VLOOKUP(C24,ППВВП!A1:C20,2,FALSE)","v":"ответить на вопрос           \n\nПравила Плавания по Внутренним водным путям.\nРасхождение парусных судов, парусных судов с катерами, с крупными судами."}]
[null,"Подписать  - что означают эти знаки",null,"На каком из пяти изображений показан осевой знак — знак оси судового хода?"]
[null,"Дисциплина",null,"Такелажное дело"]
[{"$f":" VLOOKUP(IF(($E$4+RANDBETWEEN(1,20))<20,RANDBETWEEN(1,20),RANDBETWEEN(1,20)),Узлы!A1:C20,1,FALSE)","v":6},{"$f":"\"            Завязать узел или выполнить задание           \"     &  CHAR(10) &           VLOOKUP(A27,Узлы!A1:C20,2,FALSE)","v":"            Завязать узел или выполнить задание           \nСтопорный"},null,"Перечислить инструмент для такелажных работ"]
[{"$f":" VLOOKUP(IF(($E$4+RANDBETWEEN(1,20))<20,RANDBETWEEN(1,20),RANDBETWEEN(1,20)),Узлы!D1:E20,1,FALSE)","v":9},{"$f":"\"        Пояснить определение           \"     &  CHAR(10) &           VLOOKUP(A28,Узлы!D1:E20,2,FALSE)","v":"        Пояснить определение           \nСхватка "}]
[null,"Дисциплина",null,"Теория движения и управления яхтой, Метеорология"]
[{"$f":" VLOOKUP(IF(($E$4+RANDBETWEEN(1,20))<20,RANDBETWEEN(1,20),RANDBETWEEN(1,20)),Теория!A1:C20,1,FALSE)","v":8},{"$f":"\"            ответить на вопрос           \"     &  CHAR(10) &           VLOOKUP(A30,Теория!A1:C20,2,FALSE)","v":"            ответить на вопрос           \nВодоизмещающий режим и Глиссироваие"},null,{"$f":"\"            ответить на вопрос           \"     &  CHAR(10) &           VLOOKUP(IF(($E$4+RANDBETWEEN(1,20))<20,RANDBETWEEN(1,20),RANDBETWEEN(1,20)),Управление!D1:E20,2,FALSE)&CHAR(10) &CHAR(10) &CHAR(10) &\"Пояснить силы действующие при глиссировании парусной яхты\"","v":"            ответить на вопрос           \n1.Что такое курс? Какие бывают курсы яхт?\n\n\nПояснить силы действующие при глиссировании парусной яхты"}]
[null,{"$f":"\"Практические навыки  управление яхтой. Напишите что вы делаете при:     \"     &  CHAR(10) &  CHAR(10)&           VLOOKUP(IF(($E$4+RANDBETWEEN(1,20))<20,RANDBETWEEN(1,20),RANDBETWEEN(1,20)),Практика!A1:B21,2,FALSE)","v":"Практические навыки  управление яхтой. Напишите что вы делаете при:     \n\nВыполнение поворота фордевинд со спинакером на килевой яхтеПоворот, фордевинд."},null,{"$f":"\"            ответить на вопрос           \"     &  CHAR(10) &           VLOOKUP(IF(($E$4+RANDBETWEEN(1,20))<20,RANDBETWEEN(1,20),RANDBETWEEN(1,20)),Метео!A1:B20,2,FALSE)","v":"            ответить на вопрос           \nШквал. Признаки приближения, "}]
[]
[null,"Дисциплина",null,"Конструкция Яхты и парусного вооружения"]
[null,"Подписать части яхты"]
[null,null,null,{"$f":"\"            ответить на вопрос           \"     &  CHAR(10) &          VLOOKUP(IF(($E$4+RANDBETWEEN(1,25))<25,RANDBETWEEN(1,25),RANDBETWEEN(1,25)),Конструкция!A1:C25,2,FALSE)","v":"            ответить на вопрос           \nПонятие о классификации и правилах постройки: суда – монотипы, формульные, свободного класса."}]
[null,{"$f":"\"            ответить на вопрос           \"     &  CHAR(10) &           VLOOKUP(IF(($E$4+RANDBETWEEN(1,20))<20,RANDBETWEEN(1,20),RANDBETWEEN(1,20)),Паруса!A1:C20,2,FALSE)","v":"            ответить на вопрос           \nТакелаж. "},null,"подписать части\n паруса"]

{"sheet":"ППГ","index":12,"n_rows":329,"n_cols":3,"rows_kept":329,"cut":false,"hidden":false,"merged":[]}
[1,"Могут ли быть изменены ППГ ранее 01.01.2017 года?","Введение. ( Пересмотр правил)"]
[2,"Имеют ли случаи ИСАФ статус правил? ","Введение. (Случаи и Решения). Определение «Правило»"]
[3,"Можно ли при рассмотрении протеста ссылаться на Случаи ИСАФ, как на авторитетную трактовку применяемого правила? ","Введение (Случаи и Решения). Определение «Правило»"]
[4,"Обозначает ли термин «судно» так же и парусную яхту?","Введение. (Терминология)"]
[5,"Может ли Гон-й Комитет состоять из одного человека?","Введение. (Терминология)"]
[6,"Если правила приложений ППГ противоречат правилам Части 2, то правила приложений имеют преимущество?","Введение. (Приложения)"]
[7,"Если судно Гон-й Комитет, стоящее на якоре, перед стартом поднимает флаг «L» МСС, то он подзывает яхты для сообщения какой-либо информации?","Правило «Сигналы гонки»"]
[8,"Имеет ли право Прoтестовый Комитет прекратить гонку? ","Определение «Прекращать»"]
[9,"Две яхты идут полным курсом на одном галсе и связаны (см.рис.). Одна из них сделала поворот фордевинд, при этом взаимное расположение корпусов не изменилось. Связаны ли яхты в позиции 2?","Определение \n«Связаны»"]
[10,"Термин связаны применяется к яхтам, идущим полным курсом на разных галсах, только в том случае, когда применяются правила 18 и 19?","Определение «Связаны»"]
[11,"Термин связаны применяется только к яхтам, находящимся на одном галсе? ","Определение «Связаны»"]
[12,"Яхты идут одним галсом, но существенно разными курсами (бейдевинд и фордевинд). Яхты связаны?","Определение «Связаны»"]
[13,"Яхты находятся на разных галсах вне зоны знака. Одна их них идет в бейдевинд, а другая в бакштаг. Яхты связаны? ","Определение \n«Связаны»"]
[14,"Яхты находится на разных галсах в зоне знака. Одна их них идет в бейдевинд, а другая в бакштаг. Яхты связаны?","Определение \n«Связаны»"]
[15,"Яхты находятся на одном галсе. Нос одной яхты находится позади транца, но впереди задней кромки руля другой яхты. Яхты связаны? ","Определение \n«Связаны»"]
[16,"Яхты идут в лавировку против ветра на одном галсе. Одна из яхт без необходимости выдвинула бушприт, который находится впереди траверза задней точки корпуса другой яхты. Яхты связаны?  ","Определение «Связаны»"]
[17,"Должна ли яхта полностью пересечь финишную линию для того чтобы финишировать?","Определение «Финиш». Правило 28.1"]
[18,"Если яхта финиширует на полном курсе под спинакером со стороны дистанции, но её спинакер не находится в нормальном положении, то яхта будет считаться финишировавшей только тогда, когда любая часть ее корпуса либо любая часть ее экипажа или оборудования в нормальном положении пересечет финишную линию? ","Определение «Финиш»"]
[19,"Если яхта пересекла финишную линию со стороны дистанции, но она продолжает проходить еще один круг, чтобы закончить дистанцию, то она финишировала?","Определение «Финиш»"]
[20,"Имеет ли яхта наветренную и подветренную стороны, если находится в положении левентик? ","Определение «Подветренная и наветренная»"]
[21,"Когда яхта идет «чужим галсом», то ее подветренная сторона та, на которой находится ее грот?","Определение «Подветренная и наветренная»"]
[22,"Нарушает ли яхта правило 31, если во время гонки она касается якорного конца знака, подлежащего огибанию?","Определение «Знак»"]
[23,"Является ли катер Прoтестовый Комитет, привязанный к стартовому судну Гон-й Комитет частью знака?","Определение «Знак»"]
[24,"Имеет ли право синяя яхта синяя яхта на место для поворота оверштаг? ","Определение «место-у-знака» \nПравило 18.2"]
[25,"Может ли яхта в гонке являться препятствием для других яхт? ","Определение «Препятствие»"]
[26,"Яхта, которая огибает знак, не меняя галса чисто впереди двух связанных яхт на том же галсе, является препятствием для этих яхт (см.рис.) ","Определение \n«Препятствие»"]
[27,"На курсе фордевинд две яхты левого галса медленно сходятся с яхтой правого галса. Является ли в этом случае яхта правого галса протяженным препятствием? ","Определение «Препятствие»"]
[28,"Является ли яхта левого галса препятствием для двух яхт правого галса, если она не сторонится их, и они обе вынуждены изменить курс, чтобы избежать столкновения с ней?","Определение «Препятствие»"]
[29,"Может ли Гон-й Комитет являться стороной в рассмотрении? ","Определение «Сторона»"]
[30,"Может ли Проводящая Организация являться стороной в рассмотрении? ","Определение «Сторона»  62.1(а)"]
[31,"Подан сигнал «Старт», но яхта еще не стартовала. Есть ли у нее надлежащий курс? ","Определение «Надлежащий курс»"]
[32," До сигнала «Старт» подветренная яхта, связавшись из положения чисто позади, идет выше курса крутой бейдевинд, вынуждая наветренную яхту пересечь стартовую линию. Нарушает ли подветренная яхта правило 17? Обсудить вопрос и правильность ответа","Определение «Надлежащий курс»\nПравило 17"]
[33,"Может ли Прoтестовый Комитет являться стороной в рассмотрении? ","Определение «Сторона»"]
[34,"При прохождении ворот надлежащим курсом для яхты является огибание ближайшего знака ворот?","Определение «Надлежащий курс»"]
[35,"Обязывает ли какое-либо правило яхту идти надлежащим курсом?","Случай ИСАФ 9"]
[36,"Могут ли яхты, идущие рядом по одной дистанции, иметь различные надлежащие курсы?","Определение «Надлежащий курс» Случай ИСАФ 14"]
[37,"Находится ли яхта в гонке, если она финишировала, но не освободила финишную линию и знаки?","Определение «Гонка»"]
[38,"Яхта находится в гонке с момента своего сигнала «Старт»? ","Определение «Гонка»"]
[39,"Является ли нарушением касание яхтой стартового знака в момент сигнала «Предупреждение» для ее класса? ","Определение «Гонка». Правило 31"]
[40,"Яхта находится в гонке, если после сигнала «Подготовительный» ее член экипажа выпал за борт?","Определение «Гонка»"]
[41,"Описание сигналов и изображения флагов в разделе «Сигналы гонки» – это правила? ","Определение «Правило»"]
[42,"Применяются ли правила класса, если в Гон.Инструкция ничего об этом не сказано? ","Определение «Правило»"]
[43,"Являются ли Кодексы ИСАФ о допуске, рекламе, антидопинге и классификации спортсменов (Регламенты 19, 20, 21 и 22 ИСАФ), правилами в смысле определенном ППГ? ","Определение «Правило»"]
[44,"Зона – это пространство вокруг знака в переделах трех длин корпуса яхты, ближайшей к знаку?","Определение «Зона»"]
[45,"Зона – это пространство вокруг знака в переделах трех длин корпуса яхты, имеющей большую длину?","Определение «Зона»"]
[46,"Если яхта нарушила правила и знает об этом, но на нее не подан протест, она обязана выполнить наказание?","Основной принцип"]
[47,"Увидев яхту со сломанной мачтой, яхта А изменила свой курс, чтобы оказать помощь, но помощь не понадобилась. Может ли быть ей исправлен результат в этом случае? ","Правило 1. Правило 62.1(с)"]
[48,"Нарушает ли правила яхта левого галса, умышленно делающая оклик «Правый галс!»?","Правило 2"]
[49,"Исключается ли дисквалификация по правилу 2 из очков яхты в серии? ","Правило 2"]
[50,"Если во время сигнала «Старт» яхта находилась на стороне дистанции и знала об этом, но Гон-й Комитет ошибочно не подал сигнал индивидуального отзыва, должна ли яхта вернуться и стартовать правильно? ","Правило 2, Случай ИСАФ 31"]
[51,"Нарушает ли правила член экипажа подветренной яхты, если преднамеренно касается рукой борта наветренной яхты? ","Правило 2,\nПравило 13"]
[52,"Применяются ли ППГ между яхтой в гонке и катером Прoтестовый Комитет?","Преамбула к Части 2"]
[53,"Применяются ли МППСС между яхтой в гонке и катером Прoтестовый Комитет?","Преамбула к Части 2"]
[54,"Может ли Гон.Инструкция предписать, что вместо Части 2 ППГ на соревновании будут действовать МППСС? ","Преамбула к Части 2"]
[55,"Должна ли соблюдать правила Части 2 ППГ финишировавшая яхта, возвращающаяся в яхт-клуб через зону гонок?","Преамбула к Части 2"]
[56,"Когда правило 18.4 применяется для яхт на разных галсах, то оно отменяет правило 10?","Преамбула к Части 2. Правила 10 и 18.4"]
[57," После подъема оранжевого флага до сигнала «Предупреждение» для своего класса яхты приближаются к судну для зрителей, стоящему на якоре на предстартовой стороне стартовой линии. Должны ли они соблюдать требования правила 19?","Преамбула к Части 2"]
[58,"Подветренная связанная яхта приводится выше надлежащего курса и нарушает правило 17. Наветренная яхта не отвечает на приведение, происходит контакт. Нарушила ли правила наветренная яхта?","Правило 11"]
[59,"Яхта, идущая чисто впереди не меняя курса, но резко снизившая скорость, должна дать место яхте, идущей чисто позади, чтобы та могла сторониться? ","Правило 12"]
[60,"Яхта прошла положение левентик, легла на курс крутой бейдевинд, но ее паруса не наполнились ветром. Закончила ли яхта поворот?","Правило 13"]
[61,"Две яхты делают одновременно поворот. Яхта, которая делает поворот на левый галс, должна сторониться?","Правило 13"]
[62,"Применяется ли правило 11 к яхте, которая прошла положение левентик, но еще не оказалась на курсе крутой бейдевинд?","Правило 13"]
[63,"Если яхта прошла положение левентик и оказалась на правом галсе, но еще не легла на курс крутой бейдевинд, то другая яхта, идущая на левом галсе, должна её сторониться?","Правило 13"]
[64,"Нарушила ли правило 14 яхта, имеющая право дороги, которая могла избежать контакта, но ничего для этого не сделала, даже если не был причинен ущерб или вред здоровью?","Правило 14"]
[65,"Нарушила ли правило 14 яхта, имеющая право дороги, сделавшая все возможное, чтобы избежать контакта, но в результате столкновения на другой яхте член экипажа получил травму? ","Правило 14"]
[66,"Изменяет ли курс яхта, если ее движение вперед  меняется на движение назад?","Правило 16"]
[67,"Применяются ли правила раздела С Части 2 ППГ у стартового знака, расположенного на пирсе? ","Преамбула к разделу С части 2"]
[68," За минуту до сигнала «Старт» две яхты проходят со стороны дистанции через стартовую линию на предстартовую сторону возле стартового судна. Применяется ли правило 18 между ними? ","Преамбула к \nразделу С части 2\nПравило 18.1(b)"]
[69,"За минуту до сигнала «Старт» две яхты проходят со стороны дистанции через стартовую линию на предстартовую сторону возле стартового судна. Применяется ли правило 19 между ними?"," Преамбула к разделу С части 2 \nПравило 19.1, 19.2"]
[70,"Применяется ли правило 18 между яхтами, огибающими знак разными бортами?","Правило 18.1, \nСлучай ISAF 26"]
[71,"Яхта, имеющая право дороги, вошла в зону чисто впереди и преднамеренно оставила другой яхте пространство между собой и знаком, достаточное для огибания. Имеет ли она право впоследствии закрыть это пространство?","Правило 18.2(b)(с) Случай ИСАФ 63 "]
[72,"Применяется ли правило 19 между яхтами, проходящими препятствие разными бортами?","Правило 19"]
[73,"Яхта правого галса, возвращающаяся на предстартовую сторону после фальстарта, должна сторониться яхты левого галса, которая стартовала правильно? ","Правило 22.1"]
[74,"Если яхте необходимо место для прохождения знака или препятствия, обязана ли она окликом запрашивать это место? ","Случай ISAF 41"]
[75,"Если яхта запрашивает окликом место для поворота оверштаг от препятствия, не имея на это права, то окликнутая яхта имеет право не реагировать на такой оклик?","Правило 20.2(b), \nCлучай ISAF 33"]
[76,"Имеет ли право яхта, выполняющая наказание, выполнять его в зоне знака, если при этом она сторонится других яхт? ","Правило 22.2"]
[77,"Яхта правого галса привелась до положения левентик и начала дрейфовать задним ходом с неработающими парусами.  Должна ли она сторониться яхты левого галса?","Правило 22.3"]
[78,"Имеет ли право Гон-й Комитет в качестве сигналов вместо флагов использовать щиты с изображениями флагов? ","Правило 25.3"]
[79,"Флагом класса (сигнал «Предупреждение») должен быть только символ класса?","Правило 26, J2.1(6),L6"]
[80,"Сигнал «Подготовительный» убирается  за 1 минуту до сигнала «Старт» с одним продолжительным звуковым сигналом? ","Правило 26"]
[81,"Флаг «Папа» - это сигнал предупреждение?","Правило 26"]
[82,"Нарушает ли яхта правило «верёвочки», если при огибании знака в предписанном направлении ее сносит течением и в результате ее путь вокруг знака представляет собой «петлю»? ","Правило \n28.2 (а),(b)"]
[83,"Яхта нарушила правило «Флаг Z», не вернулась на предстартовую сторону стартовой линии и ушла в гонку. Будет ли она считаться стартовавшей? ","Правило 28.1, \nОпределение «Старт»"]
[84,"Яхта во время старта из-за нарушения правил другой яхтой не смогла пройти с предписанной стороны стартового знака и подала протест на эту яхту. Обязана ли она вернуться и стартовать правильно?","Правило 28.1, Определение «Старт»"]
[85,"Должен ли Гон-й Комитет опускать и поднимать флаг «Х» для каждой яхты, которая возвратилась на предстартовую сторону стартовой линии после фальстарта? ","Правило 29.1"]
[86,"Последний старт стартовой процедуры. После сигнала «Старт» подан сигнал индивидуального отзыва. Фальстартовавшая яхта явно  не собирается возвращаться на предстартовую сторону. Должен ли в таком случае флаг «Х» оставаться поднятым 4 минуты?","Правило 29.1"]
[87,"Гон.Инструкция предписывает интервал между стартами 3 мин. Первый старт стартовой процедуры. После сигнала «Старт» подан сигнал индивидуального отзыва.  Фальстартовавшая яхта явно не собирается возвращаться на предстартовую сторону.  Должен ли в таком случает флаг Х оставаться поднятым  4 минуты?","Правило 29.1"]
[88,"Если действует правило «Флаг I», то должен ли подаваться сигнал индивидуального отзыва для яхты, которая нарушила это правило?","Правило 29.1"]
[89,"Действует правило «Флаг I». Яхта нарушила это правило за 50 секунд до старта. Должен ли Гон-й Комитет подать сигнал индивидуального отзыва сразу же, как только увидел это нарушение? ","Правило 29.1"]
[90,"Если действует правило «Черный флаг», то должен ли подаваться сигнал индивидуального отзыва для яхты, которая нарушила это правило?","Правило 29.1"]
[91,"Если в момент сигнала «Старт» несколько яхт были на стороне дистанции от стартовой линии, и Гон-й Комитет не смог их всех установить, то обязан ли он дать сигнал общего отзыва?","Правило 29.2"]
[92,"Имеет ли право Гон-й Комитет произвести сигнал «Общий отзыв» если допустил ошибку в стартовой процедуре?","Правило 29.2"]
[93,"Требуется ли специальное указание в Гон. Инструкция для применения правила «Флаг I» ?","Правило 30.1 Правило 26"]
[94,"Требуется ли специальное указание в Гон.Инструкция для применения правила «Черный флаг» ?","Правило 30.3 Правило 26"]
[95,"Если применялось правило «Черный флаг» и гонка была прекращена после старта, должен ли Гон-й Комитет выставить номера всех яхт, нарушивших правило «Черный флаг», до следующего сигнала «Предупреждение» этой же гонки? ","Правило 30.3"]
[96,"Если применялось правило «Черный флаг» и гонка была отложена до сигнала «Старт», должен ли Гон-й Комитет выставить номера всех яхт, нарушивших правило «Черный флаг», до следующего сигнала «Предупреждение» этой же гонки? ","Правило 30.4"]
[97,"Если применялось правило «Черный флаг», и гонка не была отложена или прекращена, то сразу после старта должен ли Гон-й Комитет выставить номера всех яхт, нарушивших это правило?","Правило 30.4"]
[98,"Может ли быть наказана яхта за касание финишного знака, когда она уже не находится в гонке? ","Правило 31"]
[99,"Яхта касается стартового знака после сигнала «Предупреждение», но до сигнала «Подготовительный». \nНарушила ли она правило 31?","Правило 31"]
[100,"Яхта касается стартового знака после сигнала «Подготовительный», но до сигнала «Старт». Нарушила ли она правило 31?","Правило 31"]
["91                                                                                                                                                                                                                                                                                                                     ","Флаг «Первый заменяющий», сопровождаемый двумя звуковыми сигналами, означает, что гонка отложена?","Правило 29.2"]
[]
["102                                                                                                                                                                                                                                                                                                                 ","После того как лидирующая яхта обогнула знак №1, может ли Гон-й Комитет прекратить гонку?","Правило 32.1"]
[]
["103                                                                                                                                                                                                                                                                                                                 ","Имеет ли право Гон-й Комитет изменить направление участка дистанции или его длину, если об этом не сказано в Гон.Инструкция?","Правило 33"]
[]
["104                                                                                                                                                                                                                                                                                                                 ","При изменении следующего участка дистанции Гон-й Комитет показал флаг «С» и произвел 1 звуковой сигнал. Достаточно ли этих действий Гон-й Комитет для полного соответствия требованиям правил?","Правило 33 (а)"]
[]
["105                                                                                                                                                                                                                                                                                                                 ","В случае отсутствия знака, подлежащего огибанию, имеет ли право Гон-й Комитет поставить на его место судейский катер с флагом «М» и подавать повторяющиеся звуковые сигналы?","Правило 34(b)"]
[]
["106                                                                                                                                                                                                                                                                                                                 ","Имеет ли право Гон-й Комитет заменить отсутствующий знак объектом, не описанным в Гон.Инструкция  и не обозначенным флагом «М», сделав только объявление по рации о такой замене? ","Правило 34,90.2(с),"]
[]
["107                                                                                                                                                                                                                                                                                                                 "," Установлено ли контрольное время прохождения дистанции, если оно не указано в Гон.Инструкция? ","Правило 35"]
["108                                                                                                                                                                                                                                                                                                                 ","Яхтсмен, который подсказывает во время гонки другой яхте как использовать береговое течение, нарушает правило 41? ","Правило 41"]
[]
["109                                                                                                                                                                                                                                                                                                                 ","Яхта не финишировала, пройдя мимо финишной линии. затем она подошла к тренеру, который посоветовал ей вернуться и финишировать правильно. После этого яхта финишировала правильно. Нарушила ли она правило 41? ","Правило 41"]
[]
["110                                                                                                                                                                                                                                                                                                                 ","Яхта не финишировала, пройдя мимо финишной линии. Судьи крикнули ей, что она не финишировала. Она вернулась и финишировала правильно. Нарушила ли она правило 41? ","Правило 41"]
[]
["111                                                                                                                                                                                                                                                                                                                 ","Имеет ли право спортсмен на яхте без лееров нести на себе емкость для напитков? ","Правило 43.1(а) Случай ИСАФ 89"]
[]
["112                                                                                                                                                                                                                                                                                                                 ","Имеет ли право спортсмен носить одежду весом свыше 8-ми кг на яхте, оборудованной леерами? ","Правило 43.2"]
[]
["113                                                                                                                                                                                                                                                                                                                 ","Приближаясь к наветренному знаку, яхта нарушает правило 10 и при выполнении «Наказания в два оборота» касается знака. Обязана ли она выполнить еще одно наказание?","Правило 44.1(а)."]
[]
["114                                                                                                                                                                                                                                                                                                                 ","Яхта, которая в одном инциденте нарушила правило Части 2 ППГ и коснулась знака, может оправдаться, выполнив только «Наказание в два оборота»? ","Правило 44.1 (а)"]
[]
["115                                                                                                                                                                                                                                                                                                                 ","Если в результате нарушения яхтой правил, другая яхта получила серьезные повреждения и из-за этого немедленно отправилась на берег, имеет ли право яхта, нарушившая правила, выполнив «Наказание в два оборота», продолжить гонку? ","Правило 44.1 (b)"]
[]
["116                                                                                                                                                                                                                                                                                                                 ","Яхта, нарушившая правила во время финиша, должна вернуться полностью на сторону дистанции прежде, чем выполнить наказание?","Правило 44.2"]
[]
["117                                                                                                                                                                                                                                                                                                                 ","Должна ли яхта, выполняющая наказание штрафными оборотами возле финишной линии, полностью пройти на сторону дистанции от финишной линии, прежде чем финишировать?","Правило 44.2"]
[]
["118                                                                                                                                                                                                                                                                                                                 ","Имеет ли право яхта выполнить «Наказание в один оборот», одновременно огибая знак, при условии, что она никому не мешает?","Правило 44.2 Случай ИСАФ 108"]
[null," "]
["119                                                                                                                                                                                                                                                                                                                 ","Нарушает ли правила яхта, которая во время своего сигнала «Подготовительный» пришвартована к пирсу?","Правило 45"]
[]
["120                                                                                                                                                                                                                                                                                                                 ","Нарушает ли правила яхта, которая во время своего сигнала «Подготовительный» стоит на якоре?","Правило 45"]
[]
["121                                                                                                                                                                                                                                                                                                                 ","Имеет ли право рулевой передать управление яхтой в гонке другому члену экипажа? ","Случай ИСАФ 40"]
[]
["122                                                                                                                                                                                                                                                                                                                 ","Если член экипажа, получивший травму, покидает яхту, то нарушает ли яхта правила ППГ, если продолжает гонку? ","Правило 47.2"]
[]
["123                                                                                                                                                                                                                                                                                                                 ","Если в Гон.Инструкция нет указаний о применении МППСС или других правил судоходства, яхта, не подающая звуковые сигналы в густом тумане, когда безопасность того требует, нарушает правила? ","Правило 48.1 Случай ИСАФ 109"]
[]
["124                                                                                                                                                                                                                                                                                                                 ","Разрешается ли спортсмену держать шкот переднего паруса или спинакера за бортом?","Правило 50.3(а) Случай ИСАФ 4"]
[]
["125                                                                                                                                                                                                                                                                                                                 ","Яхта подала на одном бланке и протест на другую яхту, и требование исправить результат. Имеет ли право Прoтестовый Комитет на этом основании признать протест или требование недействительными?","Правила 60.1, 61.2 и 62.2"]
[]
["126                                                                                                                                                                                                                                                                                                                 ","Имеет ли  яхта право протестовать против Гон-й Комитет?","Правило 60.1"]
[]
["127                                                                                                                                                                                                                                                                                                                 ","Имеет ли яхта право протестовать против другой яхты за возможное нарушение правила Части 2 ППГ, если она не является участником или очевидцем инцидента?","Правило 60.1(а)"]
[]
["128                                                                                                                                                                                                                                                                                                                 ","Если инспектор оборудования на соревновании подаст рапорт в Гон-й Комитет о том, что яхта не соответствует правилам класса, то должен ли Гон-й Комитет протестовать против яхты ?","Правила 60.2, 78.3"]
[]
["129                                                                                                                                                                                                                                                                                                                 ","Имеет ли право Гон-й Комитет протестовать против яхты на основании информации, полученной от другой яхты, участвующей в соревновании?","Правило 60.2(а)"]
[]
["130                                                                                                                                                                                                                                                                                                                 ","Имеет ли право Гон-й Комитет, наблюдавший инцидент в зоне гонок, протестовать против яхты за нарушение правил Части 2 ППГ?","Правило 60.2(а)"]
[]
["131                                                                                                                                                                                                                                                                                                                 ","Имеет ли Гон-й Комитет право протестовать против яхты за нарушение правила Части 2, если узнал об этом из требования исправить результат? ","Правило 60.2(а)"]
[]
["132                                                                                                                                                                                                                                                                                                                 ","Если яхта, участник гонки, сообщает Гон-й Комитет, что другая яхта коснулась знака, то имеет ли Гон-й Комитет право протестовать против этой яхты за нарушение пр.31? ","Правило 60.2(а)"]
[]
["133                                                                                                                                                                                                                                                                                                                 ","Может ли Гон-й Комитет потребовать исправить результат яхты, основываясь на информации, полученной от члена экипажа этой яхты?","Правило 60.2(b)."]
[]
["134                                                                                                                                                                                                                                                                                                                 ","Гон-й Комитет после гонки понял, что совершил существенную ошибку. Имеет ли он право подать в Прoтестовый Комитет требование исправить результат всем яхтам, вовлеченным в эту ситуацию? ","Правило 60.2(b)"]
[]
["135                                                                                                                                                                                                                                                                                                                 ","Если Гон-й Комитет наблюдал, что спортсмен грубо нарушил правило или нормы поведения, имеет ли он право сообщить об этом в Прoтестовый Комитет, требуя дальнейших действий по правилу 69?","Правило 60.2(с)"]
[]
["136                                                                                                                                                                                                                                                                                                                 ","Если протест признан недействительным, но Прoтестовый Комитет полагает, что в результате этого инцидента яхтам могли быть нанесены серьезные повреждения, имеет ли он право протестовать против яхты (яхт), вовлеченных в этот инцидент?","Правило 60.3 (а) (1)"]
[]
["137                                                                                                                                                                                                                                                                                                                 ","Если Прoтестовый Комитет решит, что яхта, не являющаяся стороной протеста, но участвовавшая в инциденте, нарушила правила, то имеет ли  он право  протестовать против такой яхты?","Правило 60.3 (а) (1)"]
[]
["138                                                                                                                                                                                                                                                                                                                 ","Любая яхта, управляющаяся одним человеком, освобождается от требования показывать красный флаг, если она собирается протестовать?","Правило 61.1"]
[]
["139                                                                                                                                                                                                                                                                                                                 ","Будет ли признан протест действительным, если яхта не сделала оклик «Протест» сразу после столкновения, в результате которого она получила повреждение корпуса, обнаруженное только на берегу?","Правило 61.1(а)(4)"]
["140                                                                                                                                                                                                                                                                                                                 ","Должна ли яхта, намеревающаяся протестовать в связи с инцидентом, который она наблюдала в зоне гонок, сообщать на финише Гон-й Комитет номер яхты, на которую она намеревается протестовать? ","Правило 61.1(а)"]
[]
[141,"Если судья Гон-й Комитет видит, что яхта касается знака, и Гон-й Комитет собирается протестовать, то в этом случае судья Гон-й Комитет должен немедленно сделать оклик «Протест»?","Правило 61.1 (b)"]
[]
["142                                                                                                                                                                                                                                                                                                                 ","Должна ли яхта, имеющая право дороги, требовать окликом, чтобы ее сторонились?"]
[]
["143                                                                                                                                                                                                                                                                                                                 ","Обязан ли Гон-й Комитет, протестующий против яхты в связи с инцидентом, который он наблюдал на воде, информировать эту яхту в течение времени подачи протестов, несмотря на то, что Прoтестовый Комитет опубликует информацию о времени и месте разбора протеста?","Правило 61.1(b)"]
[]
["144                                                                                                                                                                                                                                                                                                                 ","Если Гон-й Комитет собирается протестовать против яхты за касание знака, то должен ли он информировать ее после гонки в течение времени подачи протестов?","Правило 61.1(b)"]
[]
["145                                                                                                                                                                                                                                                                                                                 ","Если Гон-й Комитет намеревается протестовать против яхты по правилам класса, он должен подать протест не позднее двух часов после того как он получил рапорт мерителя?","Правило 61.3"]
[]
["146                                                                                                                                                                                                                                                                                                                 ","Гон-й Комитет допустил ошибку в назначении очков яхтам. После правильного пересчета очков яхта переместилась с первого места на третье. Является ли такой пересчет очков основанием для яхты подать требование исправить результат?","Правило 62.1"]
[]
["147                                                                                                                                                                                                                                                                                                                 ","Может ли быть исправлен результат яхте, отмеченной как OCS,  если Гон-й Комитет не показал флаг «Х»? ","Правило 62.1(а)Случай ИСАФ 79"]
[]
["148                                                                                                                                                                                                                                                                                                                 ","Всегда ли время подачи требования об исправлении результата такое же, как и время подачи протеста?","Правило 62.2"]
[]
["149                                                                                                                                                                                                                                                                                                                 ","Если яхта намеревается требовать исправления результата из-за действий Гон-й Комитет в зоне гонок, должна ли она поднять протестовый флаг настолько быстро, насколько это возможно?","Правило 62.2"]
[]
["150                                                                                                                                                                                                                                                                                                                 ","Если Гон-й Комитет публикует результаты гонок после окончания времени подачи протестов, и участник видит, что он ошибочно отмечен как OCS, и сразу же подает требование об исправлении результата, то такое требование считается поданным вовремя? ","Правило 62.2"]
[]
["151                                                                                                                                                                                                                                                                                                                 ","Если яхта не выполнила требования правила 28 «Прохождение дистанции», то имеет ли Гон-й Комитет право дисквалифицировать ее без рассмотрения?","Правило 63.1, А5"]
[]
["152                                                                                                                                                                                                                                                                                                                 ","Имеет ли право Прoтестовый Комитет наказать яхту за нарушение правил класса без протеста, а только по рапорту мерителя?","Правило 63.1"]
[]
["153                                                                                                                                                                                                                                                                                                                 ","Имеет ли яхта право отозвать свой поданный в офис регаты протест без разрешения Прoтестовый Комитет?","Правило 63.1"]
[]
["154                                                                                                                                                                                                                                                                                                                 ","Обязательно ли заявление яхты об отзыве протеста должно быть удовлетворено Прoтестовый Комитет? ","Правило 63.1"]
[]
["155                                                                                                                                                                                                                                                                                                                 ","Имеет  ли право член Прoтестовый Комитет присутствовать в течение всего рассмотрения протеста, если он являлся свидетелем и давал показания по этому инциденту? ","Правило 63.3(а)"]
[]
["156                                                                                                                                                                                                                                                                                                                 ","Может ли протест быть рассмотрен без протестующего и опротестованного, если они оба не явились на рассмотрение без уважительной причины? ","Правило 63.3(b)"]
[]
["157                                                                                                                                                                                                                                                                                                                 ","Протесты по правилам класса, поданные Гон-й Комитет, всегда признаются действительными?","Правило 63.5"]
[]
["158                                                                                                                                                                                                                                                                                                                 ","Протест был признан недействительным, но Прoтестовый Комитет полагал, что в результате этого инцидента яхтам могли быть нанесены серьезные повреждения, и подал протест против одной из яхт. В процессе рассмотрения выяснилось, что повреждения яхты были незначительными. Имеет ли Прoтестовый Комитет право продолжить рассмотрение?","Правило 63.5"]
[]
["159                                                                                                                                                                                                                                                                                                                 ","Если член Прoтестовый Комитет наблюдал инцидент, о котором идет речь в рассмотрении, должен ли он сообщить об этом сторонам? ","Правило 63.6"]
[]
["160                                                                                                                                                                                                                                                                                                                 ","Если член Прoтестовый Комитет наблюдал инцидент, о котором идет речь в рассмотрении, ИМЕЕТ ли он ПРАВО давать показания?","Правило 63.6"]
[]
["161                                                                                                                                                                                                                                                                                                                 ","Всегда ли правило в Гон.Инструкция имеет преимущество в случае противоречия с каким-либо правилом в Положении о соревновании?","Правило 63.7"]
[]
["162                                                                                                                                                                                                                                                                                                                 ","Может ли при рассмотрении протеста быть дисквалифицирована яхта, не являющаяся стороной в рассмотрении?","Правило 64.1(а)"]
[]
["163                                                                                                                                                                                                                                                                                                                 ","Если Прoтестовый Комитет исправляет результат яхты, то обязательно должны  быть изменены очки, полученные в гонке другими яхтами?","Правила 64.2, А6.2"]
[]
["164                                                                                                                                                                                                                                                                                                                 ","Расходы по обмеру, связанному с протестом по правилам обмера, всегда должны оплачиваться протестующим?","Правило 64.3(d)"]
[]
["165                                                                                                                                                                                                                                                                                                                 ","Имеет ли право получить письменную копию решения сторона, которая не была наказана при рассмотрении протеста? ","Правило 65.2"]
[]
["166                                                                                                                                                                                                                                                                                                                 ","Может ли применятся правило 69 к Тренеру Спортсмена?","Правило 69.1(а)\nДисциплинарный Кодекс 35"]
[]
["167                                                                                                                                                                                                                                                                                                                 ","Может ли применятся правило 69 к Тренеру Спортсмена?","Правило 69.1(а)"]
[]
["168                                                                                                                                                                                                                                                                                                                 ","Прoтестовый Комитет имеет право начать слушание по правилу 69 только в том случае, если получит письменное сообщение о возможном проступке?","Правило 69.2(а)"]
[]
["169                                                                                                                                                                                                                                                                                                                 ","Имеет ли право Проводящая Организация дисквалифицировать спортсмена  за серьезный проступок?","Правило 69.2(с) A5"]
[]
["170                                                                                                                                                                                                                                                                                                                 ","Имеет ли право Гон-й Комитет дисквалифицировать спортсмена  за серьезный проступок? ","Правило 69.2 (с)"]
[null,null,"A5"]
["171                                                                                                                                                                                                                                                                                                                 ","Должен ли Прoтестовый Комитет сообщить о дисквалификации спортсмена по правилу 69 в его национальную организацию? ","Правило 69.2 (d)"]
[]
["172                                                                                                                                                                                                                                                                                                                 ","Должен ли Прoтестовый Комитет сообщить о предупреждении, вынесенном спортсмену по правилу 69, в его национальную организацию? ","Правило 69.2 (d)"]
[]
["173                                                                                                                                                                                                                                                                                                                 ","Имеет ли право яхта подать апелляцию на решение по протесту в рассмотрении которого она участвовала в качестве свидетеля?","Правило 70.1"]
[]
["174                                                                                                                                                                                                                                                                                                                 ","Если Гон-й Комитет был стороной в рассмотрении протеста, имеет ли он право подать апелляцию на решение по протесту?","Правило 70.1(а)"]
[]
["175                                                                                                                                                                                                                                                                                                                 ","Если яхте было отказано в рассмотрении протеста, имеет ли она право на апелляцию? ","Правило 70.1 (b)"]
[]
["176                                                                                                                                                                                                                                                                                                                 ","Подлежит ли апелляции решение международного жюри, назначенного в соответствии с требованиями приложения N?","Правило 70.5"]
[]
["177                                                                                                                                                                                                                                                                                                                 ","Имеет ли право Проводящая Организация или Гон-й Комитет отменить допуск яхты к соревнованию после старта первой гонки?","Правило 76.1"]
[]
["178                                                                                                                                                                                                                                                                                                                 ","Обязаны ли Проводящая Организация, Гон-й Комитет и Прoтестовый Комитет проводить и судить гонки по правилам, определенным в ППГ?","Правило 85"]
[]
["179                                                                                                                                                                                                                                                                                                                 ","Может ли Гон.Инструкция изменить любое правило, если в ней будет указано само правило и изменения к нему?","Правило 86.1(b)"]
[]
["180                                                                                                                                                                                                                                                                                                                 "," Положение о соревновании публикуется Гон-й Комитет?","Правило 89.2 (а)"]
[]
["181                                                                                                                                                                                                                                                                                                                 ","Гоночная инструкция публикуется Гон-й Комитет?","Правило 90.2(а)"]
[]
["182                                                                                                                                                                                                                                                                                                                 ","Любые изменения Гон.Инструкция должны быть одобрены проводящей организацией?","Правило 90.2(а)(с)"]
[]
["183                                                                                                                                                                                                                                                                                                                 ","Любые изменения Гон.Инструкция должны быть одобрены Прoтестовый Комитет?","Правило 90.2(а)(с)"]
[]
["184                                                                                                                                                                                                                                                                                                                 ","Имеет ли право Гон-й Комитет изменить Гон.Инструкция, не вывешивая письменное изменение на доске официальных объявлений, если устно сообщит об изменении на собрании рулевых перед гонкой?","Правило 90.2(с)"]
[]
["185                                                                                                                                                                                                                                                                                                                 ","За подведение результатов соревнования отвечает Проводящая Организация?","Правило 90.3(а)"]
[]
["186                                                                                                                                                                                                                                                                                                                 ","За подведение результатов соревнования отвечает Гон-й Комитет?","Правило 90.3(а)"]
[]
["187                                                                                                                                                                                                                                                                                                                 ","За подведение результатов соревнования отвечает Прoтестовый Комитет?","Правило 90.3(а)"]
[]
["188                                                                                                                                                                                                                                                                                                                 ","Если Гон.Инструкция не предписывает другого, применяется Линейная система подсчета очков?","Правило 90.3(а)"]
[]
["189                                                                                                                                                                                                                                                                                                                 ","Имеет ли право член Гон-й Комитет быть и членом Прoтестовый Комитет в одном и том же соревновании?","Нет запрещающего правила Правило 91"]
[]
["190                                                                                                                                                                                                                                                                                                                 ","Должно ли быть указано в Гон.Инструкция количество гонок, которые необходимо провести, чтобы соревнование состоялось?","Правило А1\nПравило J1.2"]
[]
["191                                                                                                                                                                                                                                                                                                                 ","Если в серии гонок яхта имеет два одинаковых худших результата, то исключается последний худший результат?","Правило А2"]
[]
["192                                                                                                                                                                                                                                                                                                                 ","Яхта,  не финишировала согласно определению «Финиш». Имеет ли право Гон-й Комитет назначить ей очки DNF без рассмотрения? ","Правило А4.2"]
["193                                                                                                                                                                                                                                                                                                                 ","Яхта, не финишировавшая в гонке, должна получить число очков на одно больше, чем последняя финишировавшая яхта? ","Правило А4.2 Допущенные к гонке +1"]
[]
["194                                                                                                                                                                                                                                                                                                                 ","Яхта финишировала, но Гон-й Комитет видел, что яхта прошла знак дистанции (не финишный)  с неправильной стороны, и отметил её в финишном протоколе, как DNF. Такое действие Гон-й Комитет соответствует правилам?  ","Правило А5"]
[]
["195                                                                                                                                                                                                                                                                                                                 ","Яхта стартовала, прошла правильно дистанцию, финишировала и сразу же коснулась финишного знака. Имеет ли право  Гон-й Комитет отметить ее как DNF? ","Правило А5"]
[]
["196                                                                                                                                                                                                                                                                                                                 ","Если яхта дисквалифицирована или вышла из гонки  после финиша, то каждая яхта, финишировавшей после нее, перемещается на одно место выше? ","Правило А6.1  ( на одно место выше)"]
[]
["197                                                                                                                                                                                                                                                                                                                 ","Если Прoтестовый Комитет установил, что яхта нарушила правило Приложения G, то имеет ли он право дать ей время для исправления нарушения? ","Правило G4  ( обозначение на парусах)"]
[]
["198                                                                                                                                                                                                                                                                                                                 ","Является ли рассмотрение, проводимое Прoтестовый Комитет по правилу 69, рассмотрением протеста?","Правило М5.1"]
[]
[]
[199,"Яхта, которая снижает скорость продвижения вперед за счет повторяющихся движений рулем, нарушает правило 42? ","Правило 42.3(f)"]
[]
[200,"Может ли Гон.Инструкция изменять правило 42?","Правило 86.1(b)"]
[]
[201,"Яхта нарушает правило 42 только в том случае, если своими действиями, перечисленными в правиле 42.2, она продвигается вперед?","Правило 42.2 Интерпретации правила 42. \nBASIC 5"]
[]
[202,"Применяется Приложение Р. Может ли яхта протестовать против другой яхты за нарушение правила 42?","Правило 60.1 (а)"]
[]
[203,"Является ли пампингом медленное повторяющееся потравливание и подбирание паруса, не связанное с изменением ветра?","Правило 42.2 (а). Интерпретации правила 42 PUMP1"]
[]
[204,"«Повторяющиеся» значит: более одного раза в одном месте одного и того же участка дистанции?","Интерпретации правила 42. Термин «Повторяющиеся»"]
[]
[205,"Разрешен ли один флик на парусе в результате резкой остановки потравленного шкота?","Интерпретации правила 42 PUMP 4"]
[]
[206,"Разрешен ли один ролл, явно продвигающий яхту,  сравнимый с эфектом гребка веслом когда разрешен одиночный памп по правилу 42.3(с)?","Правило 42.3(с), Интерпретации пр.42 BASIC 4"]
[]
[207,"Разрешены ли движения руля без усилий в обе стороны, которые не продвигают яхту вперед или не препятствуют ее движению назад?","Правило 42.2(d)"]
[]
[208,"Разрешено ли подбирание паруса, сделанное для попытки начать серфинг или глиссирование в пограничных условиях, если попытка не удалась?","Интерпретации пр.42 PUMP7"]
[]
[209,"Всегда ли одинаковы условия для серфинга или глиссирования для всех яхт в зоне гонок? ","Интерпретации пр.42, PUMP11"]
[]
[210,"Может ли быть исправлен результат яхте, если применялось Приложение Р, и судья наказал яхту, не учитывая при этом сигнал Гон-й Комитет или правило класса?","Правило Р4"]
[]
[211,"Разрешено ли закренивание яхты под ветер для содействия ее последующему приведению? ","Правило 42.3(а). Интерпретации пр.42 ROCK 6"]
[]
[212,"Имеет ли право Прoтестовый Комитет наказать яхту за то, что она находится в «зоне желтого света»?","Интерпретации правила 42. Термин «Зона желтого света»"]
[]
[213,"Применялось Приложение Р. Скорость ветра была выше скорости, определенной в правилах класса для применения флага «О», но Гон-й Комитет не показал флаг «О».Может ли в этом случае быть исправлен результат яхте, получившей наказание за пампинг на полном курсе?","Правила Р4, Р5(а),(b)"]
[]
[214,"Разрешено ли сделать один ролл при условии, что он явно не продвигает яхту  с таким же эффектом как от гребка веслом? ","Интерпретации пр.42 BASIC4, ROCK 2"]
[]
[215,"Если яхта находится выше курса крутой бейдевинд и совершает силовые движения рулем для того, чтобы удержаться на этом курсе, но при этом противодействует парусом – она нарушает правило? ","Правило 42.3(d). Интерпретации пр.42 SCULL3"]
[]
[216,"Приложение Р не применяется. Яхта признана нарушившей правило 42 в одной гонке в разных инцидентах. Должна ли она за второе нарушение получить DNE (результат не исключается как худший)? ","Правила 63.1, 64.1, А5"]

{"sheet":"Безопасность","index":13,"n_rows":68,"n_cols":8,"rows_kept":68,"cut":false,"hidden":false,"merged":[]}
[1,"Факторы, влияющие на безопасность яхты в море.",null,null,1,null,1,"1.1 Помощь находящимся в опасности "]
[2,"Источники прогноза погоды.\n Признаки подхода шквала.",null,null,2,null,2,"1.2 Спасательные принадлежности и индивидуальные средства обеспечения плавучести "]
[3,"Источники прогноза погоды. Действия при ухудшении погодных условий.",null,null,3,null,3,"2 ЧЕСТНАЯ СПОРТИВНАЯ БОРЬБА "]
[4,"Порядок проверки оборудования и снабжения яхты перед выходом в море.",null,null,4,null,4,"РЕШЕНИЕ УЧАСТВОВАТЬ В ГОНКЕ"]
[5,"Инструктаж экипажа перед выходом в море.",null,null,5,null,5,"5.Антидопинг"]
[6,"Спасательное оборудование яхты.",null,null,6,null,6,"40.Индивидуальные средства обеспечения плавучести"]
[7,"Спасательные жилеты и индивидуальные средства плавучести",null,null,7,null,7,"41.Посторонняя помощь"]
[8,"Сигналы бедствия. Как подавать и как реагировать.",null,null,8,null,8,"55.Выбрасывание мусора"]
[9,"Организация поисково-спасательных операций. \nОказание помощи другому судну.",null,null,21,"Проблемы при спасении «человека за бортом»; ",31,"Выживание в холодной воде; "]
[10,"Меры предотвращения падения человека за борт. \nТребования к леерам, штормовым (страховочным) леерам, страховочным обвязкам и линям.",null,null,22,"Действия человека в воде ",32,"Классификация воздействия холода; Оценка, уход и лечение; Утопление. "]
[11,"Действия при падении человека за борт. Поиск, средства обнаружения и спасения человека за бортом.",null,null,23,"Маневрирование для возвращения к человеку за бортом; ",33,"Ответственность экипажа; "]
[12,"Безопасная одежда  и обувь. Травмы на яхтах, первая помощь при травмах.",null,null,24,"Опасность близости судна к человеку за бортом; ",34,"Ответственность экипажа; "]
[13,"Гипотермия. Что нельзя делать и что нужно делать при гипотермии.",null,null,25,"Подъём человека из воды; ",35,"Инфекционные заболевания; "]
[14,"Выживание в холодной воде. Первая помощь при гипотермии.",null,null,26,"Использование индивидуальных радиомаяков для подачи сигнала о помощи; Методики спасения для гоночных яхт с полным экипажем",36,"Обезвоживание; "]
[15,"Наиболее вероятные аварийные ситуации, действия в аварийных ситуациях.",null,null,49,"Обеспечение безопасности яхты; ",37,"Калорийное истощение, низкий уровень сахара в крови; "]
[16,"Штормовые паруса и паруса для тяжелой погоды.\nНазвания отличия от основных парусов",null,null,28,"Терморегуляция человека; ",38,"Растяжения и разрывы связок; "]
[17,"Противопожарные средства на яхтах. Наиболее частые причины пожаров.",null,null,29,"Причины переохлаждения; ",39,"Обработка ран, обеззараживание; "]
[18,"Национальные и международные требования к яхтам в сфере безопасности.",null,null,30,"Фазы гипотермии в холодной воде; ",40,"Ожоги; "]
[19,"Понятие о Специальных правилах  World Sailing. Категории гонок.",null,null,47,"Подготовка и оценка состояния яхты и экипажа; ",41,"Солнечный удар; "]
[20,"Понятие о Специальных правилах  World Sailing. Подготовка  экипажа по безопасности.",null,null,48,null,42,"Травма головы; "]
[21,"Специальные правила  World Sailing для прибрежных гонок.",null,null,null,null,43,"Сердечный приступ; "]
[22,"Понятие о ГМССБ. Подача сигнала бедствия по УКВ.",null,null,null,null,44,"Шок; "]
[23,"Методы управления при тяжёлой погоде; ",null,null,null,null,45,"Анафилактический шок"]
[50,"Подготовка камбуза; "]
[51,"Ответственное отношение к сотоварищам; "]
[52,"Уточнение плана действий; "]
[53,"Состояние моря; "]
[54,"Методы управления при тяжёлой погоде; "]
[55]
[56,"Поиск убежища; "]
[57,"Действия после шторма. "]
[59,"Уменьшение нагрузки на вооружение; "]
[60,"Уменьшение площади парусов; "]
[61,"Дополнительное раскрепление мачты; "]
[62,"Рифление грота; "]
[63,"Оснастка и постановка штормовых передних парусов и триселя"]
[65,"Средства морской связи; "]
[66,"Подача сигнала бедствия; "]
[67,"УКВ-радиостанции и антенны; "]
[68,"Знание местных каналов УКВ; "]
[69,"Цифровой избирательный вызов (ЦИВ) и АИС; "]
[70,"ГМССБ и зачем она нужна; "]
[71,"Сигнализация «человек за бортом»; "]
[72,"Сравнение сотовой телефонии с УКВ-радиосвязью; "]
[73,"Аварийный радиобуй; "]
[74,"Однополосная амплитудная модуляция; "]
[75,"Спутниковые системы голосовой связи и передачи данных. "]
[null," "]
[null,"Моральные аспекты безопасности; "]
[null,"Реагирование на сигналы бедствия; "]
[null,"Оценка вашей возможности оказать помощь; "]
[null,"Типичная последовательность этапов спасательной операции; "]
[null,"Виды помощи, которую вы в состоянии оказать; "]
[null,"Маневрирование вблизи тонущего судна;Действия при пожаре на другом судне;Буксировка и движение на буксире. "]
[null,"Факторы эффективности спасательных жилетов; "]
[null,"Системы классификации спасательных жилетов; "]
[null,"Плюсы и минусы различных систем наполнения газом;  "]
[null,"Обслуживание надувных спасательных жилетов; "]
[null," Использование страховочных обвязок, страховочных линей и страховочных лееров/точек пристёгивания; "]
[null,"Индивидуальные сигнальные устройства"]
[null,"Индивидуальные сигнальные устройства"]
[null,"Причины возникновения и распространения пожара на борту; "]
[null,"Классификация пожаров; "]
[null,"Пожарная сигнализация; "]
[null,"Газовые и спиртовые камбузные плиты; Типы огнетушителей и правила их применения; Методики пожаротушения"]
[null,"Предотвращение паления человек за борт; "]
[null,"Проблемы при спасении «человека за бортом»; "]
[null,"Предотвращение падения человек за борт; "]

{"sheet":"Конструкция","index":14,"n_rows":49,"n_cols":2,"rows_kept":49,"cut":false,"hidden":false,"merged":[]}
[1,"Типы  рулей."]
[2,"Типы якорей"]
[3,"Определение размеров и длины якорных канатов и цепей. "]
[4,"Основные размерения парусной язты"]
[5,"- осадка, высота надводного борта,"]
[6,"Подпалубное пространство: трюм, слани, каюта, форпик, ахтерпик."]
[7,"Швартовное устройство. Швартовные концы, их проводка и крепление"]
[8,"Кокпит: открытый, закрытый (глухой), самоотливной."]
[9,"Надстройки над палубой: рубка."]
[10,"Переборки, их назначение и крепление, пиллерсы."]
[11,"Люки, их назначение, расположение, устройство, крепление."]
[12,"Путенсы для стоячего такелажа, их крепление к стоячему такелажу."]
[13,"Водоотливнык устройства"]
[14,"Релинги, леера."]
[15,"Шверт. Устройство швертового колодца"]
[16,"Киль, Фальшкиль"]
[17,"Буксировка яхты. Буксирное устройство, буксирные концы."]
[18," Адмиралтейский якорь"]
[19,"Понятие о классификации и правилах постройки: суда – монотипы, формульные, свободного класса."]
[20,"Релинги, леера."]
[21,"- ватерлиния, длина по ватерлинии,"]
[22,"Шверт, швертовый колодец, шверт-тали. "]
[23,"- длина наибольшая,"]
[24,"- мидель, диаметральная плоскость,"]
[25,"Устройства откренивания"]
[26,"Типы  рулей."]
[27,"Типы якорей"]
[28,"Определение размеров и длины якорных канатов и цепей. "]
[29,"Основные размерения парусной язты"]
[30,"- осадка, высота надводного борта,"]
[31,"Подпалубное пространство: трюм, слани, каюта, форпик, ахтерпик."]
[32,"Швартовное устройство. Швартовные концы, их проводка и крепление"]
[33,"Кокпит: открытый, закрытый (глухой), самоотливной."]
[34,"Надстройки над палубой: рубка."]
[35,"Переборки, их назначение и крепление, пиллерсы."]
[36,"Люки, их назначение, расположение, устройство, крепление."]
[37,"Путенсы для стоячего такелажа, их крепление к стоячему такелажу."]
[38,"Водоотливнык устройства"]
[39,"Релинги, леера."]
[40,"Шверт. Устройство швертового колодца"]
[41,"Киль, Фальшкиль"]
[42,"Буксировка яхты. Буксирное устройство, буксирные концы."]
[43," Адмиралтейский якорь"]
[44,"Понятие о классификации и правилах постройки: суда – монотипы, формульные, свободного класса."]
[45,"Релинги, леера."]
[46,"- ватерлиния, длина по ватерлинии,"]
[47,"Шверт, швертовый колодец, шверт-тали. "]
[48,"- длина наибольшая,"]
[49,"- мидель, диаметральная плоскость,"]

{"sheet":"Паруса","index":15,"n_rows":30,"n_cols":2,"rows_kept":30,"cut":false,"hidden":false,"merged":[]}
[1,"Паруса, Основные, Дополнительные, Штормовые."]
[2,"Рифы"]
[3,"Части мачт: топ, шпор,"]
[4,"Устройства для применения и проводки такелажа:( дельные вещи)"]
[5,"Устройства для крепления парусов к рангоуту: ликпазы, рельсы "]
[6,"Стоячий такелаж"]
[7,"Крепление их к мачте и к корпусу судна: путенсы, талрепы, рычажные устройства, лебёдки."]
[8,"Лебёдки, тали. Их назначение, части, выигрыш в силе."]
[9,"Различные типы блоков, их устройство."]
[10,"Устройство для крепления бегучего такелажа:"]
[11,"Части паруса: углы и шкаторины, ликтрос, боуты, фаловая дощечка, рифбанты, люверсы, кренгельсы, латкарманы, рифштерты, рифшкентели, рифкренгельсы, булинь. "]
[12,"Крепление парусов к рангоуту: "]
[13,"Материалы для парусов,"]
[14,"Паруса, элементы конструкции"]
[15,"Материалы парусов."]
[16,"Конструкция паруса."]
[17,"Крепление парусов к рангоуту и такелажу."]
[18,"Элементы рангоута и состав их основных частей. "]
[19,"Материалы и конструкции рангоута и его основных частей. "]
[20,"Такелаж. "]
[21,"Бегучий такелаж. Части бегучего такелажа бермудского такелажа. Назначение снастей. "]
[22,"Проводка и крепление такелажа "]
[23,"Различные типы блоков, их устройство."]
[24,"Части паруса: углы и шкаторины, ликтрос, боуты, фаловая дощечка, рифбанты, люверсы, кренгельсы, латкарманы, рифштерты, рифшкентели, рифкренгельсы, булинь. "]
[25,"Бегучий такелаж. Части бегучего такелажа бермудского такелажа. Назначение снастей. "]
[26]
[27]
[28]
[29]
[30]

{"sheet":"Управление","index":16,"n_rows":60,"n_cols":5,"rows_kept":60,"cut":false,"hidden":false,"merged":[]}
[1,"Буксировка",null,1,"1.Что такое курс? Какие бывают курсы яхт?"]
[2,"Взятие и отдача рифов. ",null,2,"2.Что такое галс? Какие бывают галсы?"]
[3,"Влияние других яхт на скорость яхты на лавировке. Термины впереди, на ветру, под ветром, позади.",null,3,"3.Какие курсы называются «Полные курсы», а какие «Острые курсы»?"]
[4,"Выполнение поворотов при сильном волнении. ",null,4,"4.Что такое поворот?"]
[5,"Курсовый угол. Уваливание, приведение к ветру. Перемена галса. Поворот оверштаг, фордевинд.",null,5,"5.Что такое поворот оверштаг?"]
[6,"Курсы яхты: компасный курс, курс относительно ветра. ",null,6,"6.Что такое поворот фордевинд?"]
[7,"Лавировка в сильный ветер ",null,7,"7.Что такое увалиться?"]
[8,"Настройка стаксель-шкотов. ",null,8,"8.Что такое привестись?"]
[9,"Полные курсы: бакштаг острый и полный, фордевинд. Положение левентик.",null,9,"9.Что такое правый галс?"]
[10,"Острые курсы: бейдевинд крутой и полный; галфвинд. ",null,10,"10. Что такое левый галс?"]
[11,"Отработка отходов – заходов ветра, предвидение изменения силы и направления ветра.",null,11,"11.Что такое лавировка?"]
[12,"Плавание в свежую и штормовую погоду. ",null,12,"12.Особенности управления яхтой на лавировке?"]
[13,"Поворот оверштаг, команды. ",null,13,"13.Особенности управления яхтой на полном курсе?"]
[14,"Поворот через фордевинд, команды.",null,14,"14.Способы выхода из левентика?"]
[15,"Подветренная и наветренная стороны яхты. Положения на ветру, под ветром. Прямо по носу, прямо по корме, впереди с наветра (подветра), сзади с наветра (подветра), на траверзе с наветра (подветра).",null,15,"15.Что такое ветер?"]
[16,"Подготовка яхты к выходу в плавание.",null,16,"16.Что такое течение?"]
[17,"Подход к стенке (бочке) и отход от неё",null,17,"17.Что такое крен? Его влияние на скорость"]
[18,"Полные курсы. Брочинг.",null,18,"18.Что такое ДП?"]
[19,"Полные курсы. Дополнительные паруса. Спинакер, генаккер  его установка и работа на разных курсах, и при разной силе ветра.",null,19,"19.Что такое деферент?"]
[20,"Полные курсы. Поворот фордевинд в слабый, сильный ветер, на волне. ",null,20,"20.Что такое лейнлайн?"]
[21,"Постановка и уборка парусов (грота и стакселя) на стоянке и на ходу. ",null,null,"21.Истинный и вымпельный ветер"]
[22,"Правила безопасности для команды при работах с парусами.",null,null,"22.Что такое дрейф? Причины дрейфа?"]
[23,"Правила безопасности при приближении шквала ",null,null,"23.Скалинг?"]
[24,"Действия  по снятию судна с мели.",null,null,"24.Пампинг?"]
[25,"Прохождение мостов. ",null,null,"25.Рокинг?"]
[26,"Работа на порывах ветра. Продольный дифферент. ",null,null,"26.Учинг?"]
[27,"Действие капитана и экипажа при различных аварийных ситуациях: обрыв вант, штага, ахтерштага, бакштагов; поломки рангоута, рулевого устройства; разрыва парусов; пробоины в корпусе.",null,null,"27.Бодипампинг?"]
[28,"Съёмка судна с мели."]
[29,"Термины. Слабина, выбрать (подобрать), выбрать в тугую (обтянуть), травить (потравить), заложить, закрепить, отдать (отдать якорь), раздёрнуть."]
[30,"Управление яхтой под спинакером. "]
[31,"Швартовка судна"]
[32,"Шквал. Встреча шквала "]
[33,"Спасательные приборы. \nМетоды и сроки проверки спасательных приборов на годность применения. Правила их использования и их местоположение на яхте."]
[34,"Оказание первой помощи при травмах. Остановка кровотечения (жгуты, повязки), наложение шин при переломах"]
[35,"Первая помощь человеку, упавшему за борт: освобождение лёгких от воды, разные способы искусственного дыхания"]
[36]
[37]
[38]
[39]
[40]
[41]
[42]
[43]
[44]
[45]
[46]
[47]
[48]
[49]
[50]
[51]
[52]
[53]
[54]
[55]
[56]
[57]
[58]
[59]
[60]

{"sheet":"ППВВП","index":17,"n_rows":23,"n_cols":3,"rows_kept":23,"cut":false,"hidden":false,"merged":[]}
[1,"Правила Плавания по Внутренним водным путям. \nКак обозначается судовой ход на внутренних водных путях РФ на реках? ","1.      Каким устройством измеряется скорость яхты и в каких единицах    измерения."]
[2,"Правила Плавания по Внутренним водным путям. \nТипы створных знаков","2.       Каким образом  на карте нанесена «широтная» сетка, и где на карте расположена её шкала?"]
[3,"Правила Плавания по Внутренним водным путям. Типы створных знаков","3.      Как учитывается восточное магнитное склонение при исчислении истинного курса от компасного."]
[4,"Правила Плавания по Внутренним водным путям.\nЗвуковые и Световые Сигналы, подаваемые судами с механическим двигателем.","4.      Что такое годовое изменение (прецессия) магнитного склонения."]
[5,"Правила Плавания по Внутренним водным путям.\nЗнак запрещения якорной стоянки на внутренних водных путях РФ.","5.      Как определить место судна на  море (на морской карте) используя береговые ориентиры: маяки, возвышенности, отдельные здания, мысы береговой (островной) линии."]
[6,"Правила Плавания по Внутренним водным путям.\nКак должен производиться обгон маломерным судном другого маломерного судна?","6.      Как предварительно вычислить время прохождения маршрута."]
[7,"Правила Плавания по Внутренним водным путям.\nКакими знаками отмечают судовой ход (морской фарватер – канал) при движении со стороны моря в порт по латеральной системе ограждения МАМС зона А.","7.       Какими знаками на море отмечаются зоны хозяйственной деятельности: креветочные фермы, садки для рыбы,  "]
[8,"Правила Плавания по Внутренним водным путям.\nЛатеральная и Кардинальная системы ограждения опасностей. \nОсновные особенности и отличия","8.      Сколько угловых минут в угловой мере компасного градуса."]
[9,"Правила Плавания по Внутренним водным путям.\nЛатеральная и координальная системы ограждения опасностей","9.      Как измерить расстояние на карте?"]
[10,"Правила Плавания по Внутренним водным путям.\nОгни на малых судах. \nНарисоватьогни  углы дейстивия","10.  Какими знаками отмечают судовой ход (морской фарватер – канал) при движении со стороны моря в порт по латеральной системе ограждения МАМС зона А."]
[11,"Правила Плавания по Внутренним водным путям.\nРасхождение парусных судов, парусных судов с катерами, с крупными судами.","11.  Каким образом выглядит верхняя часть западной вехи кардинальной системы ограждения навигационных опасностей."]
[12,"Правила Плавания по Внутренним водным путям.\nТермин - Парусное судно","12.  Как обозначается глубина на морских картах. Что такое изобаты?"]
[13,"Правила Плавания по Внутренним водным путям.\nХодовые и стояночные огни яхт. \nНарисовать и пояснить","13.  Как обозначается судовой ход на внутренних водных путях РФ на реках?"]
[14,"Правила Плавания по Внутренним водным путям.\nЧто означает в соответствии с ППВВП \nтермин 'Минимальная скорость'?","14.  Что такое створные знаки на внутренних водных путях РФ."]
[15,"Правила Плавания по Внутренним водным путям.\nЧто означает в соответствии с ППВВП термин \n'Судно на ходу'?","15.  Знак запрещения якорной стоянки на внутренних водных путях РФ."]
[16,"Правила Плавания по Внутренним водным путям.\nЧто означает в соответствии с ППВВП термин 'Минимальная скорость'?"]
[17,"Правила Плавания по Внутренним водным путям.\nЧто означает в соответствии с ППВВП термин Определения  \n- 'Ограниченная Видимость'?"]
[18,"Правила Плавания по Внутренним водным путям.\nЧто означает в соответствии с ППВВП термин Определения  \n'Судовой ход'?"]
[19,"Правила Плавания по Внутренним водным путям.\nЧто означает в соответствии с ППВВП термин Определения \n -  'Безопасная скорость'?"]
[20,"Правила Плавания по Внутренним водным путям.\nЧто такое створные знаки на внутренних водных путях РФ.\nПеречислить виды створных знаков"]
[21]
[]
[null,"Правила Плавания по Внутренним водным путям.\nКаким образом выглядит верхняя часть западной вехи кардинальной системы ограждения навигационных опасностей."]

{"sheet":"Навигация","index":18,"n_rows":53,"n_cols":15,"rows_kept":53,"cut":false,"hidden":false,"merged":[]}
[1,"Основы морского права.\nОпределение - Открытое Море\nОпределение - Запретная зона"]
[2,"Выбор убежища в критических условиях"]
[3,"Геннакер ушел под воду и намотался на перо руля, ваши действия?"]
[4,"Лоция местного бассейна.  \nКак обозначается судовой ход на внутренних водных путях РФ на реках?"]
[5,"Осмотр и проверка мотора перед запуском"]
[6,"Осмотр и проверка яхты перед выходом"]
[7,"Основы морского права.\nОпределение - Внутренние воды"]
[8,"Основы морского права.\nОпределение - Территориальные воды"]
[9,"При подходе к пирсу в навальный ветер – ваши действия, нарисуйте схематично"]
[10,"Терминология морской лоции, Навигационные опасности\nРиф\nМель\nОтмель\nБанка\nБар"]
[11,"Терминология морской лоции, Навигационные опасности\nРиф\nМель\nОтмель\nБанка\nБар"]
[12,"Терминология морской лоции: Навигационное оборудование\nВеха\nБуй\nБакан\nМаяк\nСтвор\nПлавучий маяк"]
[13,"Терминология морской лоции:\nДамба\nМол\nВолнолом\nПирс\nПричал\nПал\n"]
[14,"Терминология морской лоции:\nПОРТ\nРейд\nГавань\nБассейн\nАванпорт\n"]
[15,"Терминология морской лоции:\nЧто такое морская лоция? Определение"]
[16,"Что делать если на скорости 10 узлов лодки соприкосаются бортами?"]
[17,"Что делать если человек падает в воду,  а вы идете в лавировку?"]
[18,"Что делать если человек падает в воду, а вы идете бакштагом?"]
[19,"Что такое кардинальная система ограждения навигационных опасностей? "]
[20,"Что такое латеральная  система ограждения навигационных опасностей? ","7."]
[21]
[22]
[23]
[24]
[25]
[26]
[27]
[28]
[29]
[30,null,null,null,null,null,null,null,null,null,null,null,null,null,"Навигация"]
[31]
[32]
[33]
[34]
[35]
[36]
[37]
[38]
[39]
[40]
[41]
[42]
[43]
[44]
[45]
[46]
[47]
[48]
[49]
[50]
[51]
[52]
[53]

{"sheet":"Узлы","index":19,"n_rows":20,"n_cols":6,"rows_kept":20,"cut":false,"hidden":false,"merged":[]}
[1,"прямой, восьмерка",null,1,"Бухта","Бухта - упаковка нового троса в форме полого цилиндра; трос или снасть, свернутая кругами, восьмеркой или свободными шлагами."]
[2,"Выбленочный",null,2,"Ворса ","Ворса - куски старых расплетенных пеньковых или любых других растительных тросов."]
[3,"простой",null,3,"Вырубить ","Вырубить - отрезать от бухты кусок троса."]
[4,"Беседочный ( булинь)",null,4,"Калышка ","Калышка - случайный, вредный завиток на тросе или снасти, возникающий от перекручивания."]
[5,"Буксирный",null,5,"Колышка ","Колышка - петля на тросе, являющаяся частью узла."]
[6,"Стопорный",null,6,"Конец ","Конец - кусок троса, вырубленный из бухты."]
[7,"Восьмерка",null,7,"Коренной конец","Коренной конец - закрепленный конец троса."]
[8,"Шкотовый",null,8,"Стропка ","Стропка - петля, сделанная из тонкого троса, на блоке или ручке какого-либо инструмента."]
[9,"Основные узлы, их применение.",null,9,"Схватка ","Схватка - временное крепление ворсой или штертом двух"]
[10,"Штык, ",null,10,"Трос","Трос - специальной выделки веревка."]
[11,"Бухтование",null,11,"Ходовой конец ","Ходовой конец - конец троса, находящийся в руках."]
[12,"Заделка концов.  Марка",null,12,"Шлаг ","Шлаг - оборот троса или снасти вокруг чего-либо; свободная петля троса."]
[13,"Марка простая и прошивная.",null,13,"Штерт","Штерт, кончик - короткий конец тонкого троса (линя)."]
[14,"Брамшкотовый",null,14,"Свайка"]
[15,"Двойная беседка",null,15,"Гардаман"]
[16,"Выбленочный",null,16,"Парусная игла"]
[17,"Марка простая и прошивная.",null,17,"Шкот"]
[18,"Рифовый",null,18,"Фал"]
[19,"Удавка",null,19,"оттяжка"]
[20,"Заделка концов.  ",null,20,"Гардаман"]

{"sheet":"Теория","index":20,"n_rows":41,"n_cols":5,"rows_kept":41,"cut":false,"hidden":false,"merged":[]}
[1,"Главные размерения яхты. Схема главных размерений"]
[2,"остойчивость (поперечная и продольная) швертботов Схема"]
[3,"остойчивость (поперечная и продольная) килевых яхт. Схема "]
[4,"Истинный и Вымпельный Ветер. "]
[5,"Диаграмма остойчивости. Причина опрокидывания яхт на разных курсах. "]
[6,"Устойчивость на курсе, поворотливость, маневренность (управляемость)."]
[7,"Действие руля при переднем и заднем ходе."]
[8,"Водоизмещающий режим и Глиссироваие"]
[9,"Влияние формы корпуса,  руля, шверта, киля  на  управляемость яхты"]
[10,"Движение яхты против ветра"]
[11,"Угол для установки грота в зависимости от направления и силы  ветра. "]
[12," Основные характеристикиДлина/ширина габаритная, по палубе, по КВЛ, осадка, водоизмещение, вместимость,  площадь парусности и т.п.)"]
[13,"Приёмы изменения формы, профиля и площади парусов."]
[14,"Виды сопротивлений при движении яхты"]
[15,"Взаимодействие грота и стакселя."]
[16,"Что такое  - Крен и продольный дифферент."]
[17,"Плавучесть и непотопляемость. Общие понятия  и принципы обеспечения непотопляемости"]
[18,"Перечень мореходных качеств судна. Общие понятия о режимах движения и управляемости на разных режимах."]
[19,"Силы, действующие на корпус и паруса яхты на ходу."]
[20,"Выбор оптимального угла лавировки."]
[null," Тяга, сопротивление и дрейф",null,21]
[null,null,null,22]
[null,null,null,23,"Центровка и управляемость яхты. Общие понятия"]
[null,null,null,24,"Типы корпусов,  влияние формы корпуса на мореходность и упрявляемость"]
[null,null,null,25,"Основные сведения из аэродинамики, применимые к парусу. Терминология"]
[null,null,null,26,"Силы, действующие на корпус и паруса яхты на ходу. Тяга, сопротивление и дрейф"]
[null,null,null,27,"Виды сопротивления. Общие понятия о режимах движения и управляемости на разных режимах."]
[null,null,null,28]
[null,null,null,29]
[null,null,null,30]
[null,null,null,31]
[null,null,null,32]
[null,null,null,33]
[null,null,null,34]
[null,null,null,35]
[null,null,null,36]
[null,null,null,37]
[null,null,null,38]
[null,null,null,39]
[null,null,null,40]
[null,null,null,41]

{"sheet":"Метео","index":21,"n_rows":26,"n_cols":3,"rows_kept":26,"cut":false,"hidden":false,"merged":[]}
[1,"Характеристики атмосферы,  ","Ветровые волны, разгон ветра, его длина. "]
[2,"барометр, барограф, аненометр -  назначение","Величина волны в зависимости от времени воздействия ветра."]
[3,"Изобары, чтение метеокарт","Ветровые волны, разгон ветра, его длина. "]
[4,"Атмосферные фронты: тёплый, холодный, их характеристики.","Величина волны в зависимости от времени воздействия ветра."]
[5,"Типы облаков. ","Ветер постоянный, ровный, порывистый, шквальный."]
[6,"Шквал. Признаки приближения, ","Скорости и направления ветра в депрессии (циклоне) и антициклоне."]
[7,"Формирование и развитие туманов","Скорости и направления ветра в депрессии (циклоне) и антициклоне."]
[8,"Признаки устойчивой хорошей погоды. ","Рефракция и дифракция волн."]
[9,"Признаки прихода депрессии, прохождения депрессии. ","Ветровые волны, разгон ветра, его длина. "]
[10,"Суточный ход барометра. ","Величина волны в зависимости от времени воздействия ветра."]
[11,"Местные и морские приметы для предсказания погоды.","Ветровые волны, разгон ветра, его длина. "]
[12,"Ветер. Причины его образования. Направление. Единицы скорости. Анемометр.","Величина волны в зависимости от времени воздействия ветра."]
[13,"Роза ветров, обозначение.","Ветер постоянный, ровный, порывистый, шквальный."]
[14,"Шкала Бофорта. Назначение. ","Скорости и направления ветра в депрессии (циклоне) и антициклоне."]
[15,"Местные ветры: бризы, вертикальная подоблачная циркуляция воздушных масс, термики.","Рефракция и дифракция волн."]
[16,"Влияние берега на изменение ветра.","Ветровые волны, разгон ветра, его длина. "]
[17,"Течения: морские, отливные, приливные, речные, ветровые, поверхностные.","Величина волны в зависимости от времени воздействия ветра."]
[18,"Элементы волны: гребень, вершина, ложбина, подошва, высота, длина, крутизна, период, скорость, направление распространения.","Ветровые волны, разгон ветра, его длина. "]
[19,"Поверхностные течения на волне, их влияния на курсы швертботов и килевых яхт.","Величина волны в зависимости от времени воздействия ветра."]
[20,"Типы волн","Ветер постоянный, ровный, порывистый, шквальный."]
[null,null,"Скорости и направления ветра в депрессии (циклоне) и антициклоне."]
[null,null,"циклоны (депрессия), антициклоны, ложбина, гребень, седловина. "]
[null,null,"атмосфера, температура, давление атмосферы, влажность воздуха, облачность, осадки, видимость, ветер."]
[null,null,"барические системы:  "]
[null,null,"Облака нижнего яруса, вертикального развития, среднего яруса , верхнего яруса."]
[null,null,"Рябь, зыбь, мёртвая зыбь, ненормальные волны, прибойные волны, стоячие и отражённые волны."]

{"sheet":"Сигналы","index":22,"n_rows":39,"n_cols":3,"rows_kept":39,"cut":false,"hidden":false,"merged":[]}
[1,"AP","Прекращать. Гонка, которую прекращает гоночный или протестовый комитет, считается недействительной, но она может быть повторена."]
[2,"AP над H","Чисто позади и чисто впереди; связаны. Яхта находится чисто позади другой яхты, когда её корпус и оборудование в нормальном положении находятся позади траверза самой задней точки корпуса или оборудования другой яхты (в нормальном положении). Другая яхта находится чисто впереди. Яхты связаны, если ни одна из них не находится чисто позади другой. Они, однако, так же связаны, если яхта, находящаяся между ними, связана с обеими. Эти термины всегда применимы к яхтам, находящимся на одном галсе. Они не применяются к яхтам, находящимся на противоположных галсах, за исключением случаев, когда применяется правило 18  или когда обе яхты идут под углом более 90° к направлению истинного ветра."]
[3,"AP над A","Выходить на знак. Яхта выходит на знак, если она находится в такой позиции, что может, не изменяя галса, пройти знак с наветренной стороны и оставить его с предписанной стороны."]
[4,"N","Финиш. Яхта финиширует, когда любая часть её корпуса, экипажа или оборудования в их нормальном положении  пересекает финишную линию в направлении от последнего знака или впервые, или после выполнения наказания согласно правилу 44.2, либо после исправления по правилу 28.1 ошибки, сделанной у финишной линии."]
[5,"N над Н","Заинтересованная сторона. Любое лицо, которое может выиграть либо потерять вследствие решения протестового комитета или явно лично заинтересованное в таком решении."]
[6,"N над A","Сторониться. Яхта сторонится  другой яхты, если та может идти своим курсом без необходимости предпринимать избегающие действия, и когда яхты связаны на одном галсе, если подветренная яхта может изменить курс в любом направлении без немедленного касания наветренной яхты."]
[7,"P","Подветренная и наветренная. Подветренная сторона яхты - это сторона, противоположная той, на которую дует ветер, или которая была противоположной до того, как яхта оказалась в положении носом против ветра. Однако, если яхта идет по ветру, и ветер дует со стороны, на которой она несёт свой грот, или чисто в корму, то подветренной стороной считается сторона, на которой находится грот. Другая сторона яхты - наветренная. Когда две яхты находятся на одном и том же галсе и связаны, то подветренной считают ту яхту, которая находится на подветренной стороне другой яхты. Другая яхта является наветренной."]
[8,"I","Знак. Объект, который гоночная инструкция требует оставлять с предписанной стороны от яхты, и судно гоночного комитета, окруженное свободной водой и от которого проходит стартовая или финишная линия. Якорный канат и любые предметы, случайно или временно присоединенные к знаку, не считаются его частью."]
[9,"Z","Место у знака. Место, нужное яхте, чтобы идти к знаку, и затем место, нужное ей, чтобы идти надлежащим курсом у знака. Однако место у знака не включает место для поворота оверштаг; исключением является ситуация, когда яхта внутренняя и связана с наветренной стороны с яхтой, обязанной предоставить место у знака.   "]
[10,"U","Препятствие. Объект, который яхта, находясь от него на расстоянии длины своего корпуса и идя прямо на него, не могла бы обойти без существенного изменения курса. Препятствием является также, который можно безопасно пройти только с одной стороны. Гоночная инструкция может предписать, что определенные зоны акватории должны рассматриваться как препятствия. Однако яхта, находящаяся в гонке, не является препятствием для других яхт, если они не должны сторониться её или предоставлять место или место у знака, или избегать ее, согласно правилу 22. Судно на ходу, включая яхту, находящуюся в гонке, никогда не является препятствием большой протяжённости."]
[11,"Черный флаг","Сторона. Стороны, участвующие в рассмотрении: протестующая; опротестованная; яхта, требующая исправления результата; яхта или спортсмен, которые могут быть наказаны по правилу 69.1; гоночный комитет или проводящая организация при рассмотрении по правилу 62.1(а)."]
[12,"Черный флаг","Откладывать. Отложенной называют гонку, старт которой не будет дан в назначенное время, но которая может быть проведена или прекращена позже."]
[13,"Первый заменяющий","Надлежащий курс. Курс, которым яхта могла бы идти  к финишу как можно быстрее в отсутствии других яхт, о которых идёт речь в правилах, использующих этот термин. Яхта не имеет надлежащего курса до сигнала «Старт открыт» для неё."]
[14,"S","Протест. Заявление яхты, гоночного комитета или протестового комитета по правилу 61.2 о том, что какая-то яхта нарушила правила."]
[15,"C","Гонка. Яхта находится в гонке с момента сигнала «Подготовительный» для неё и до тех пор, когда она финишировала и отошла от финишной линии и финишных знаков или вышла из гонки, или когда гонка была отложена или прекращена, или был дан сигнал общего отзыва."]
[16,"Зеленый флаг","Место. Пространство, необходимое яхте для маневрирования без задержки в соответствии с хорошей морской практикой в существующих условиях."]
[17,"Красный флаг","720 и 360 град"]
[18,"L","Старт. Яхта стартует, когда она, будучи полностью на предстартовой стороне стартовой линии в момент или после сигнала \"Старт открыт\" для неё и выполнив, если нужно, требования правила 30.1, пересекает стартовую линию любой частью своего корпуса, экипажа или оборудования в направлении первого знака."]
[19,"M","Галс, правый галс или левый галс. Яхта находится на галсе, правом или левом, в соответствии с тем, какая сторона у нее наветренная."]
[20,"Y","Зона. Пространство вокруг знака в пределах трёх длин корпуса яхты, ближайшей к нему. Яхта находится в зоне, если любая часть её корпуса находится в зоне."]
[null,"Синий флаг"]
[]
[]
[]
[]
[]
[]
[]
[]
[null,1]
[null,2]
[null,3]
[null,4]
[null,5]
[null,6]
[null,7]
[]
[null," -"]
[null," +"]

{"sheet":"Цифры","index":23,"n_rows":39,"n_cols":3,"rows_kept":39,"cut":false,"hidden":false,"merged":[]}
[1,1,"Прекращать. Гонка, которую прекращает гоночный или протестовый комитет, считается недействительной, но она может быть повторена."]
[2,2,"Чисто позади и чисто впереди; связаны. Яхта находится чисто позади другой яхты, когда её корпус и оборудование в нормальном положении находятся позади траверза самой задней точки корпуса или оборудования другой яхты (в нормальном положении). Другая яхта находится чисто впереди. Яхты связаны, если ни одна из них не находится чисто позади другой. Они, однако, так же связаны, если яхта, находящаяся между ними, связана с обеими. Эти термины всегда применимы к яхтам, находящимся на одном галсе. Они не применяются к яхтам, находящимся на противоположных галсах, за исключением случаев, когда применяется правило 18  или когда обе яхты идут под углом более 90° к направлению истинного ветра."]
[3,3,"Выходить на знак. Яхта выходит на знак, если она находится в такой позиции, что может, не изменяя галса, пройти знак с наветренной стороны и оставить его с предписанной стороны."]
[4,4,"Финиш. Яхта финиширует, когда любая часть её корпуса, экипажа или оборудования в их нормальном положении  пересекает финишную линию в направлении от последнего знака или впервые, или после выполнения наказания согласно правилу 44.2, либо после исправления по правилу 28.1 ошибки, сделанной у финишной линии."]
[5,5,"Заинтересованная сторона. Любое лицо, которое может выиграть либо потерять вследствие решения протестового комитета или явно лично заинтересованное в таком решении."]
[6,6,"Сторониться. Яхта сторонится  другой яхты, если та может идти своим курсом без необходимости предпринимать избегающие действия, и когда яхты связаны на одном галсе, если подветренная яхта может изменить курс в любом направлении без немедленного касания наветренной яхты."]
[7,1,"Подветренная и наветренная. Подветренная сторона яхты - это сторона, противоположная той, на которую дует ветер, или которая была противоположной до того, как яхта оказалась в положении носом против ветра. Однако, если яхта идет по ветру, и ветер дует со стороны, на которой она несёт свой грот, или чисто в корму, то подветренной стороной считается сторона, на которой находится грот. Другая сторона яхты - наветренная. Когда две яхты находятся на одном и том же галсе и связаны, то подветренной считают ту яхту, которая находится на подветренной стороне другой яхты. Другая яхта является наветренной."]
[8,2,"Знак. Объект, который гоночная инструкция требует оставлять с предписанной стороны от яхты, и судно гоночного комитета, окруженное свободной водой и от которого проходит стартовая или финишная линия. Якорный канат и любые предметы, случайно или временно присоединенные к знаку, не считаются его частью."]
[9,3,"Место у знака. Место, нужное яхте, чтобы идти к знаку, и затем место, нужное ей, чтобы идти надлежащим курсом у знака. Однако место у знака не включает место для поворота оверштаг; исключением является ситуация, когда яхта внутренняя и связана с наветренной стороны с яхтой, обязанной предоставить место у знака.   "]
[10,4,"Препятствие. Объект, который яхта, находясь от него на расстоянии длины своего корпуса и идя прямо на него, не могла бы обойти без существенного изменения курса. Препятствием является также, который можно безопасно пройти только с одной стороны. Гоночная инструкция может предписать, что определенные зоны акватории должны рассматриваться как препятствия. Однако яхта, находящаяся в гонке, не является препятствием для других яхт, если они не должны сторониться её или предоставлять место или место у знака, или избегать ее, согласно правилу 22. Судно на ходу, включая яхту, находящуюся в гонке, никогда не является препятствием большой протяжённости."]
[11,5,"Сторона. Стороны, участвующие в рассмотрении: протестующая; опротестованная; яхта, требующая исправления результата; яхта или спортсмен, которые могут быть наказаны по правилу 69.1; гоночный комитет или проводящая организация при рассмотрении по правилу 62.1(а)."]
[12,6,"Откладывать. Отложенной называют гонку, старт которой не будет дан в назначенное время, но которая может быть проведена или прекращена позже."]
[13,1,"Надлежащий курс. Курс, которым яхта могла бы идти  к финишу как можно быстрее в отсутствии других яхт, о которых идёт речь в правилах, использующих этот термин. Яхта не имеет надлежащего курса до сигнала «Старт открыт» для неё."]
[14,2,"Протест. Заявление яхты, гоночного комитета или протестового комитета по правилу 61.2 о том, что какая-то яхта нарушила правила."]
[15,3,"Гонка. Яхта находится в гонке с момента сигнала «Подготовительный» для неё и до тех пор, когда она финишировала и отошла от финишной линии и финишных знаков или вышла из гонки, или когда гонка была отложена или прекращена, или был дан сигнал общего отзыва."]
[16,4,"Место. Пространство, необходимое яхте для маневрирования без задержки в соответствии с хорошей морской практикой в существующих условиях."]
[17,5,"720 и 360 град"]
[18,6,"Старт. Яхта стартует, когда она, будучи полностью на предстартовой стороне стартовой линии в момент или после сигнала \"Старт открыт\" для неё и выполнив, если нужно, требования правила 30.1, пересекает стартовую линию любой частью своего корпуса, экипажа или оборудования в направлении первого знака."]
[19,1,"Галс, правый галс или левый галс. Яхта находится на галсе, правом или левом, в соответствии с тем, какая сторона у нее наветренная."]
[20,2,"Зона. Пространство вокруг знака в пределах трёх длин корпуса яхты, ближайшей к нему. Яхта находится в зоне, если любая часть её корпуса находится в зоне."]
[null,3]
[null,4]
[null,5]
[null,6]
[]
[]
[]
[]
[]
[]
[]
[]
[]
[]
[]
[null,7]
[]
[null," -"]
[null," +"]

{"sheet":"Правила","index":24,"n_rows":62,"n_cols":9,"rows_kept":62,"cut":false,"hidden":false,"merged":[]}
[1,"Прекращать. ","Прекращать. Гонка, которую прекращает гоночный или протестовый комитет, считается недействительной, но она может быть повторена.",1,"Дать опредление термину \"Гонка\" "]
[2,"Чисто позади и чисто впереди; связаны.","Чисто позади и чисто впереди; связаны. Яхта находится чисто позади другой яхты, когда её корпус и оборудование в нормальном положении находятся позади траверза самой задней точки корпуса или оборудования другой яхты (в нормальном положении). Другая яхта находится чисто впереди. Яхты связаны, если ни одна из них не находится чисто позади другой. Они, однако, так же связаны, если яхта, находящаяся между ними, связана с обеими. Эти термины всегда применимы к яхтам, находящимся на одном галсе. Они не применяются к яхтам, находящимся на противоположных галсах, за исключением случаев, когда применяется правило 18  или когда обе яхты идут под углом более 90° к направлению истинного ветра.",2,"Какая из яхт имеет право дороги ? (подветренный-наветренный)"]
[3,"Выходить на знак. ","Выходить на знак. Яхта выходит на знак, если она находится в такой позиции, что может, не изменяя галса, пройти знак с наветренной стороны и оставить его с предписанной стороны.",3,"Что такое знак?"]
[4,"Финиш. ","Финиш. Яхта финиширует, когда любая часть её корпуса, экипажа или оборудования в их нормальном положении  пересекает финишную линию в направлении от последнего знака или впервые, или после выполнения наказания согласно правилу 44.2, либо после исправления по правилу 28.1 ошибки, сделанной у финишной линии.",4,"Какая из яхт имеет право дороги ? правый-левый галс -галфвинд"]
[5,"Заинтересованная сторона. ","Заинтересованная сторона. Любое лицо, которое может выиграть либо потерять вследствие решения протестового комитета или явно лично заинтересованное в таком решении.",5,"С какого момента яхта считается стартовавшей?"]
[6,"Сторониться. ","Сторониться. Яхта сторонится  другой яхты, если та может идти своим курсом без необходимости предпринимать избегающие действия, и когда яхты связаны на одном галсе, если подветренная яхта может изменить курс в любом направлении без немедленного касания наветренной яхты.",6,"Кто нарушил правила? чисто впереди -чисто позади ",null,null,null,"чисто впереди -чисто позади "]
[7,"Подветренная и наветренная. ","Подветренная и наветренная. Подветренная сторона яхты - это сторона, противоположная той, на которую дует ветер, или которая была противоположной до того, как яхта оказалась в положении носом против ветра. Однако, если яхта идет по ветру, и ветер дует со стороны, на которой она несёт свой грот, или чисто в корму, то подветренной стороной считается сторона, на которой находится грот. Другая сторона яхты - наветренная. Когда две яхты находятся на одном и том же галсе и связаны, то подветренной считают ту яхту, которая находится на подветренной стороне другой яхты. Другая яхта является наветренной.",7,"Какая яхта считается финишировавшей?"]
[8,"Знак. ","Знак. Объект, который гоночная инструкция требует оставлять с предписанной стороны от яхты, и судно гоночного комитета, окруженное свободной водой и от которого проходит стартовая или финишная линия. Якорный канат и любые предметы, случайно или временно присоединенные к знаку, не считаются его частью.",8,"С кем связана яхта б ?   связанность ",null,null,null,"связанность "]
[9,"Место у знака. ","Место у знака. Место, нужное яхте, чтобы идти к знаку, и затем место, нужное ей, чтобы идти надлежащим курсом у знака. Однако место у знака не включает место для поворота оверштаг; исключением является ситуация, когда яхта внутренняя и связана с наветренной стороны с яхтой, обязанной предоставить место у знака.   ",9,"Что может являться знаком?"]
[10,"Препятствие. ","Препятствие. Объект, который яхта, находясь от него на расстоянии длины своего корпуса и идя прямо на него, не могла бы обойти без существенного изменения курса. Препятствием является также, который можно безопасно пройти только с одной стороны. Гоночная инструкция может предписать, что определенные зоны акватории должны рассматриваться как препятствия. Однако яхта, находящаяся в гонке, не является препятствием для других яхт, если они не должны сторониться её или предоставлять место или место у знака, или избегать ее, согласно правилу 22. Судно на ходу, включая яхту, находящуюся в гонке, никогда не является препятствием большой протяжённости.",10,"Является ли перевернутая яхта препятствием?"]
[11,"Сторона. ","Сторона. Стороны, участвующие в рассмотрении: протестующая; опротестованная; яхта, требующая исправления результата; яхта или спортсмен, которые могут быть наказаны по правилу 69.1; гоночный комитет или проводящая организация при рассмотрении по правилу 62.1(а).",11,"Что такое гонка?"]
[12,"Откладывать. ","Откладывать. Отложенной называют гонку, старт которой не будет дан в назначенное время, но которая может быть проведена или прекращена позже.",12,"Кто имеет преимущество при огибании?"]
[13,"Надлежащий курс. ","Надлежащий курс. Курс, которым яхта могла бы идти  к финишу как можно быстрее в отсутствии других яхт, о которых идёт речь в правилах, использующих этот термин. Яхта не имеет надлежащего курса до сигнала «Старт открыт» для неё.",13,"Если яхта зацепилась за подводный якорный конец судейского судна , является ли это навалом ? "]
[14,"Протест. ","Протест. Заявление яхты, гоночного комитета или протестового комитета по правилу 61.2 о том, что какая-то яхта нарушила правила.",14,"Кто имеет право дороги ? правый-левый галс, зона знака",null,null,null,"правый-левый галс, зона знака"]
[15,"Гонка. ","Гонка. Яхта находится в гонке с момента сигнала «Подготовительный» для неё и до тех пор, когда она финишировала и отошла от финишной линии и финишных знаков или вышла из гонки, или когда гонка была отложена или прекращена, или был дан сигнал общего отзыва.",15,"Дистанция и ее виды "]
[16,"Место. ","Место. Пространство, необходимое яхте для маневрирования без задержки в соответствии с хорошей морской практикой в существующих условиях.",16,"Кто имеет право дороги ? ",null,null,null,"Связанность , место у знака"]
[17,"Выполнение наказания","720 и 360 град",17,"Что такое контрольное время гонки?"]
[18,"Старт. ","Старт. Яхта стартует, когда она, будучи полностью на предстартовой стороне стартовой линии в момент или после сигнала \"Старт открыт\" для неё и выполнив, если нужно, требования правила 30.1, пересекает стартовую линию любой частью своего корпуса, экипажа или оборудования в направлении первого знака.",18,"При нанрушении правила 42 (средства движения) и замечании членов протестового комитета на воде (ампаеров) , сколько штрафных оборотов надо сделать?"]
[19,"Галс, правый галс или левый галс. ","Галс, правый галс или левый галс. Яхта находится на галсе, правом или левом, в соответствии с тем, какая сторона у нее наветренная.",19,"В каких случаях старт может быть отложен?"]
[20,"Зона. ","Зона. Пространство вокруг знака в пределах трёх длин корпуса яхты, ближайшей к нему. Яхта находится в зоне, если любая часть её корпуса находится в зоне.",20,"Яхты А и С связаны ? "]
[21,"Прекращать. ","Прекращать. Гонка, которую прекращает гоночный или протестовый комитет, считается недействительной, но она может быть повторена.",21,"В каких случаях старт гонка может быть прекращена?"]
[22,"Чисто позади и чисто впереди; связаны.","Чисто позади и чисто впереди; связаны. Яхта находится чисто позади другой яхты, когда её корпус и оборудование в нормальном положении находятся позади траверза самой задней точки корпуса или оборудования другой яхты (в нормальном положении). Другая яхта находится чисто впереди. Яхты связаны, если ни одна из них не находится чисто позади другой. Они, однако, так же связаны, если яхта, находящаяся между ними, связана с обеими. Эти термины всегда применимы к яхтам, находящимся на одном галсе. Они не применяются к яхтам, находящимся на противоположных галсах, за исключением случаев, когда применяется правило 18  или когда обе яхты идут под углом более 90° к направлению истинного ветра.",22,"Кто имеет право дороги? правый-левый",null,null,null,"правый-левый"]
[23,"Выходить на знак. ","Выходить на знак. Яхта выходит на знак, если она находится в такой позиции, что может, не изменяя галса, пройти знак с наветренной стороны и оставить его с предписанной стороны.",23,"Какое судно называется судейским?"]
[24,"Финиш. ","Финиш. Яхта финиширует, когда любая часть её корпуса, экипажа или оборудования в их нормальном положении  пересекает финишную линию в направлении от последнего знака или впервые, или после выполнения наказания согласно правилу 44.2, либо после исправления по правилу 28.1 ошибки, сделанной у финишной линии.",24,"Кто имеет право дороги и почему?"]
[25,"Заинтересованная сторона. ","Заинтересованная сторона. Любое лицо, которое может выиграть либо потерять вследствие решения протестового комитета или явно лично заинтересованное в таком решении.",25,"Описать стартовую процедуру."]
[26,"Сторониться. ","Сторониться. Яхта сторонится  другой яхты, если та может идти своим курсом без необходимости предпринимать избегающие действия, и когда яхты связаны на одном галсе, если подветренная яхта может изменить курс в любом направлении без немедленного касания наветренной яхты.",26,"Кто имеет право дороги ? правый-левый , полный курс",null,null,null,"правый-левый , полный курс"]
[27,"Подветренная и наветренная. ","Подветренная и наветренная. Подветренная сторона яхты - это сторона, противоположная той, на которую дует ветер, или которая была противоположной до того, как яхта оказалась в положении носом против ветра. Однако, если яхта идет по ветру, и ветер дует со стороны, на которой она несёт свой грот, или чисто в корму, то подветренной стороной считается сторона, на которой находится грот. Другая сторона яхты - наветренная. Когда две яхты находятся на одном и том же галсе и связаны, то подветренной считают ту яхту, которая находится на подветренной стороне другой яхты. Другая яхта является наветренной.",27,"Разрешено ли спортсмену снимать спасательный жилет между гонками ?"]
[28,"Знак. ","Знак. Объект, который гоночная инструкция требует оставлять с предписанной стороны от яхты, и судно гоночного комитета, окруженное свободной водой и от которого проходит стартовая или финишная линия. Якорный канат и любые предметы, случайно или временно присоединенные к знаку, не считаются его частью.",28,"Яхта В обязана уступить дорогу ?  на одном галсе , чисто впереди-чисто позади",null,null,null,"на одном галсе , чисто впереди-чисто позади"]
[29,"Место у знака. ","Место у знака. Место, нужное яхте, чтобы идти к знаку, и затем место, нужное ей, чтобы идти надлежащим курсом у знака. Однако место у знака не включает место для поворота оверштаг; исключением является ситуация, когда яхта внутренняя и связана с наветренной стороны с яхтой, обязанной предоставить место у знака.   ",29,"По какой яхте определяется зона 3х длин ?"]
[30,"Препятствие. ","Препятствие. Объект, который яхта, находясь от него на расстоянии длины своего корпуса и идя прямо на него, не могла бы обойти без существенного изменения курса. Препятствием является также, который можно безопасно пройти только с одной стороны. Гоночная инструкция может предписать, что определенные зоны акватории должны рассматриваться как препятствия. Однако яхта, находящаяся в гонке, не является препятствием для других яхт, если они не должны сторониться её или предоставлять место или место у знака, или избегать ее, согласно правилу 22. Судно на ходу, включая яхту, находящуюся в гонке, никогда не является препятствием большой протяжённости.",30,"Разрешено ли оспаривать решения ампаеров? "]
[31,"Сторона. ","Сторона. Стороны, участвующие в рассмотрении: протестующая; опротестованная; яхта, требующая исправления результата; яхта или спортсмен, которые могут быть наказаны по правилу 69.1; гоночный комитет или проводящая организация при рассмотрении по правилу 62.1(а).",31,"Дать опредление термину \"Гонка\" "]
[32,"Откладывать. ","Откладывать. Отложенной называют гонку, старт которой не будет дан в назначенное время, но которая может быть проведена или прекращена позже.",32,"Дать опредление термину \"Гонка\" "]
[33,"Надлежащий курс. ","Надлежащий курс. Курс, которым яхта могла бы идти  к финишу как можно быстрее в отсутствии других яхт, о которых идёт речь в правилах, использующих этот термин. Яхта не имеет надлежащего курса до сигнала «Старт открыт» для неё.",33,"Какая из яхт имеет право дороги ? (подветренный-наветренный)"]
[34,"Протест. ","Протест. Заявление яхты, гоночного комитета или протестового комитета по правилу 61.2 о том, что какая-то яхта нарушила правила.",34,"Что такое знак?"]
[35,"Гонка. ","Гонка. Яхта находится в гонке с момента сигнала «Подготовительный» для неё и до тех пор, когда она финишировала и отошла от финишной линии и финишных знаков или вышла из гонки, или когда гонка была отложена или прекращена, или был дан сигнал общего отзыва.",35,"Какая из яхт имеет право дороги ? правый-левый галс -галфвинд"]
[36,"Место. ","Место. Пространство, необходимое яхте для маневрирования без задержки в соответствии с хорошей морской практикой в существующих условиях.",36,"С какого момента яхта считается стартовавшей?"]
[37,"Выполнение наказания","720 и 360 град",37,"Кто нарушил правила? чисто впереди -чисто позади "]
[38,"Старт. ","Старт. Яхта стартует, когда она, будучи полностью на предстартовой стороне стартовой линии в момент или после сигнала \"Старт открыт\" для неё и выполнив, если нужно, требования правила 30.1, пересекает стартовую линию любой частью своего корпуса, экипажа или оборудования в направлении первого знака.",38,"Какая яхта считается финишировавшей?"]
[39,"Галс, правый галс или левый галс. ","Галс, правый галс или левый галс. Яхта находится на галсе, правом или левом, в соответствии с тем, какая сторона у нее наветренная.",39,"С кем связана яхта б ?   связанность "]
[40,"Зона. ","Зона. Пространство вокруг знака в пределах трёх длин корпуса яхты, ближайшей к нему. Яхта находится в зоне, если любая часть её корпуса находится в зоне.",40,"Что может являться знаком?"]
[null,null,null,41,"Является ли перевернутая яхта препятствием?"]
[null,null,null,42,"Что такое гонка?"]
[null,null,null,43,"Кто имеет преимущество при огибании?"]
[null,null,null,44,"Если яхта зацепилась за подводный якорный конец судейского судна , является ли это навалом ? "]
[null,null,null,45,"Кто имеет право дороги ? правый-левый галс, зона знака"]
[null,null,null,46,"Дистанция и ее виды "]
[null,null,null,47,"Кто имеет право дороги ? "]
[null,null,null,48,"Что такое контрольное время гонки?"]
[null,null,null,49,"При нанрушении правила 42 (средства движения) и замечании членов протестового комитета на воде (ампаеров) , сколько штрафных оборотов надо сделать?"]
[null,null,null,50,"В каких случаях старт может быть отложен?"]
[null,null,null,51,"Яхты А и С связаны ? "]
[null,null,null,52,"В каких случаях старт гонка может быть прекращена?"]
[null,null,null,53,"Кто имеет право дороги? правый-левый"]
[null,null,null,54,"Какое судно называется судейским?"]
[null,null,null,55,"Кто имеет право дороги и почему?"]
[null,null,null,56,"Описать стартовую процедуру."]
[null,null,null,57,"Кто имеет право дороги ? правый-левый , полный курс"]
[null,null,null,58,"Разрешено ли спортсмену снимать спасательный жилет между гонками ?"]
[null,null,null,59,"Яхта В обязана уступить дорогу ?  на одном галсе , чисто впереди-чисто позади"]
[null,null,null,60,"По какой яхте определяется зона 3х длин ?"]
[null,null,null,null,"Разрешено ли оспаривать решения ампаеров? "]
[null,null,null,null,"Дать опредление термину \"Гонка\" "]

{"sheet":"Право дороги","index":25,"n_rows":40,"n_cols":3,"rows_kept":40,"cut":false,"hidden":false,"merged":[]}
[1,"Право дороги Правило 10  НА ПРОТИВОПОЛОЖНЫХ ГАЛСАХ ","Прекращать. Гонка, которую прекращает гоночный или протестовый комитет, считается недействительной, но она может быть повторена."]
[2,"Право дороги Правило 11  НА ОДНОМ ГАЛСЕ. СВЯЗАННЫ","Чисто позади и чисто впереди; связаны. Яхта находится чисто позади другой яхты, когда её корпус и оборудование в нормальном положении находятся позади траверза самой задней точки корпуса или оборудования другой яхты (в нормальном положении). Другая яхта находится чисто впереди. Яхты связаны, если ни одна из них не находится чисто позади другой. Они, однако, так же связаны, если яхта, находящаяся между ними, связана с обеими. Эти термины всегда применимы к яхтам, находящимся на одном галсе. Они не применяются к яхтам, находящимся на противоположных галсах, за исключением случаев, когда применяется правило 18  или когда обе яхты идут под углом более 90° к направлению истинного ветра."]
[3,"Право дороги Правило 12  НА ОДНОМ ГАЛСЕ.  НЕ СВЯЗАННЫ","Выходить на знак. Яхта выходит на знак, если она находится в такой позиции, что может, не изменяя галса, пройти знак с наветренной стороны и оставить его с предписанной стороны."]
[4,"Право дороги Правило 14  ВО ВРЕМЯ ПОВОРОТА ОВЕРШТАГ","Финиш. Яхта финиширует, когда любая часть её корпуса, экипажа или оборудования в их нормальном положении  пересекает финишную линию в направлении от последнего знака или впервые, или после выполнения наказания согласно правилу 44.2, либо после исправления по правилу 28.1 ошибки, сделанной у финишной линии."]
[5," Правило 14 Избегания Контакта","Заинтересованная сторона. Любое лицо, которое может выиграть либо потерять вследствие решения протестового комитета или явно лично заинтересованное в таком решении."]
[6,"Правило 15 Получение Права дороги","Сторониться. Яхта сторонится  другой яхты, если та может идти своим курсом без необходимости предпринимать избегающие действия, и когда яхты связаны на одном галсе, если подветренная яхта может изменить курс в любом направлении без немедленного касания наветренной яхты."]
[7,"Правило 16 Изменения Курса","Подветренная и наветренная. Подветренная сторона яхты - это сторона, противоположная той, на которую дует ветер, или которая была противоположной до того, как яхта оказалась в положении носом против ветра. Однако, если яхта идет по ветру, и ветер дует со стороны, на которой она несёт свой грот, или чисто в корму, то подветренной стороной считается сторона, на которой находится грот. Другая сторона яхты - наветренная. Когда две яхты находятся на одном и том же галсе и связаны, то подветренной считают ту яхту, которая находится на подветренной стороне другой яхты. Другая яхта является наветренной."]
[8,"Общие ограничения. Правило 17 На одном галсе. Надлежащий курс","Знак. Объект, который гоночная инструкция требует оставлять с предписанной стороны от яхты, и судно гоночного комитета, окруженное свободной водой и от которого проходит стартовая или финишная линия. Якорный канат и любые предметы, случайно или временно присоединенные к знаку, не считаются его частью."]
[9,"Право дороги Правило 10  НА ПРОТИВОПОЛОЖНЫХ ГАЛСАХ ","Место у знака. Место, нужное яхте, чтобы идти к знаку, и затем место, нужное ей, чтобы идти надлежащим курсом у знака. Однако место у знака не включает место для поворота оверштаг; исключением является ситуация, когда яхта внутренняя и связана с наветренной стороны с яхтой, обязанной предоставить место у знака.   "]
[10,"Право дороги Правило 11  НА ОДНОМ ГАЛСЕ. СВЯЗАННЫ","Препятствие. Объект, который яхта, находясь от него на расстоянии длины своего корпуса и идя прямо на него, не могла бы обойти без существенного изменения курса. Препятствием является также, который можно безопасно пройти только с одной стороны. Гоночная инструкция может предписать, что определенные зоны акватории должны рассматриваться как препятствия. Однако яхта, находящаяся в гонке, не является препятствием для других яхт, если они не должны сторониться её или предоставлять место или место у знака, или избегать ее, согласно правилу 22. Судно на ходу, включая яхту, находящуюся в гонке, никогда не является препятствием большой протяжённости."]
[11,"Право дороги Правило 12  НА ОДНОМ ГАЛСЕ.  НЕ СВЯЗАННЫ","Сторона. Стороны, участвующие в рассмотрении: протестующая; опротестованная; яхта, требующая исправления результата; яхта или спортсмен, которые могут быть наказаны по правилу 69.1; гоночный комитет или проводящая организация при рассмотрении по правилу 62.1(а)."]
[12,"Право дороги Правило 14  ВО ВРЕМЯ ПОВОРОТА ОВЕРШТАГ","Откладывать. Отложенной называют гонку, старт которой не будет дан в назначенное время, но которая может быть проведена или прекращена позже."]
[13,"Общие ограничения. Правило 14 Избегания Контакта","Надлежащий курс. Курс, которым яхта могла бы идти  к финишу как можно быстрее в отсутствии других яхт, о которых идёт речь в правилах, использующих этот термин. Яхта не имеет надлежащего курса до сигнала «Старт открыт» для неё."]
[14,"Общие ограничения. Правило 15 Получение Права дороги","Протест. Заявление яхты, гоночного комитета или протестового комитета по правилу 61.2 о том, что какая-то яхта нарушила правила."]
[15,"Общие ограничения. Правило 16 Изменения Курса","Гонка. Яхта находится в гонке с момента сигнала «Подготовительный» для неё и до тех пор, когда она финишировала и отошла от финишной линии и финишных знаков или вышла из гонки, или когда гонка была отложена или прекращена, или был дан сигнал общего отзыва."]
[16,"Общие ограничения. Правило 17 На одном галсе. Надлежащий курс","Место. Пространство, необходимое яхте для маневрирования без задержки в соответствии с хорошей морской практикой в существующих условиях."]
[17,"Право дороги Правило 10  НА ПРОТИВОПОЛОЖНЫХ ГАЛСАХ ","720 и 360 град"]
[18,"Право дороги Правило 11  НА ОДНОМ ГАЛСЕ. СВЯЗАННЫ","Старт. Яхта стартует, когда она, будучи полностью на предстартовой стороне стартовой линии в момент или после сигнала \"Старт открыт\" для неё и выполнив, если нужно, требования правила 30.1, пересекает стартовую линию любой частью своего корпуса, экипажа или оборудования в направлении первого знака."]
[19,"Право дороги Правило 12  НА ОДНОМ ГАЛСЕ.  НЕ СВЯЗАННЫ","Галс, правый галс или левый галс. Яхта находится на галсе, правом или левом, в соответствии с тем, какая сторона у нее наветренная."]
[20,"Право дороги Правило 14  ВО ВРЕМЯ ПОВОРОТА ОВЕРШТАГ","Зона. Пространство вокруг знака в пределах трёх длин корпуса яхты, ближайшей к нему. Яхта находится в зоне, если любая часть её корпуса находится в зоне."]
[21,"Общие ограничения. Правило 14 Избегания Контакта","Прекращать. Гонка, которую прекращает гоночный или протестовый комитет, считается недействительной, но она может быть повторена."]
[22,"Общие ограничения. Правило 15 Получение Права дороги","Чисто позади и чисто впереди; связаны. Яхта находится чисто позади другой яхты, когда её корпус и оборудование в нормальном положении находятся позади траверза самой задней точки корпуса или оборудования другой яхты (в нормальном положении). Другая яхта находится чисто впереди. Яхты связаны, если ни одна из них не находится чисто позади другой. Они, однако, так же связаны, если яхта, находящаяся между ними, связана с обеими. Эти термины всегда применимы к яхтам, находящимся на одном галсе. Они не применяются к яхтам, находящимся на противоположных галсах, за исключением случаев, когда применяется правило 18  или когда обе яхты идут под углом более 90° к направлению истинного ветра."]
[23,"Общие ограничения. Правило 16 Изменения Курса","Выходить на знак. Яхта выходит на знак, если она находится в такой позиции, что может, не изменяя галса, пройти знак с наветренной стороны и оставить его с предписанной стороны."]
[24,"Общие ограничения. Правило 17 На одном галсе. Надлежащий курс","Финиш. Яхта финиширует, когда любая часть её корпуса, экипажа или оборудования в их нормальном положении  пересекает финишную линию в направлении от последнего знака или впервые, или после выполнения наказания согласно правилу 44.2, либо после исправления по правилу 28.1 ошибки, сделанной у финишной линии."]
[25,null,"Заинтересованная сторона. Любое лицо, которое может выиграть либо потерять вследствие решения протестового комитета или явно лично заинтересованное в таком решении."]
[26,null,"Сторониться. Яхта сторонится  другой яхты, если та может идти своим курсом без необходимости предпринимать избегающие действия, и когда яхты связаны на одном галсе, если подветренная яхта может изменить курс в любом направлении без немедленного касания наветренной яхты."]
[27,null,"Подветренная и наветренная. Подветренная сторона яхты - это сторона, противоположная той, на которую дует ветер, или которая была противоположной до того, как яхта оказалась в положении носом против ветра. Однако, если яхта идет по ветру, и ветер дует со стороны, на которой она несёт свой грот, или чисто в корму, то подветренной стороной считается сторона, на которой находится грот. Другая сторона яхты - наветренная. Когда две яхты находятся на одном и том же галсе и связаны, то подветренной считают ту яхту, которая находится на подветренной стороне другой яхты. Другая яхта является наветренной."]
[28,null,"Знак. Объект, который гоночная инструкция требует оставлять с предписанной стороны от яхты, и судно гоночного комитета, окруженное свободной водой и от которого проходит стартовая или финишная линия. Якорный канат и любые предметы, случайно или временно присоединенные к знаку, не считаются его частью."]
[29,null,"Место у знака. Место, нужное яхте, чтобы идти к знаку, и затем место, нужное ей, чтобы идти надлежащим курсом у знака. Однако место у знака не включает место для поворота оверштаг; исключением является ситуация, когда яхта внутренняя и связана с наветренной стороны с яхтой, обязанной предоставить место у знака.   "]
[30,null,"Препятствие. Объект, который яхта, находясь от него на расстоянии длины своего корпуса и идя прямо на него, не могла бы обойти без существенного изменения курса. Препятствием является также, который можно безопасно пройти только с одной стороны. Гоночная инструкция может предписать, что определенные зоны акватории должны рассматриваться как препятствия. Однако яхта, находящаяся в гонке, не является препятствием для других яхт, если они не должны сторониться её или предоставлять место или место у знака, или избегать ее, согласно правилу 22. Судно на ходу, включая яхту, находящуюся в гонке, никогда не является препятствием большой протяжённости."]
[31,null,"Сторона. Стороны, участвующие в рассмотрении: протестующая; опротестованная; яхта, требующая исправления результата; яхта или спортсмен, которые могут быть наказаны по правилу 69.1; гоночный комитет или проводящая организация при рассмотрении по правилу 62.1(а)."]
[32,null,"Откладывать. Отложенной называют гонку, старт которой не будет дан в назначенное время, но которая может быть проведена или прекращена позже."]
[33,null,"Надлежащий курс. Курс, которым яхта могла бы идти  к финишу как можно быстрее в отсутствии других яхт, о которых идёт речь в правилах, использующих этот термин. Яхта не имеет надлежащего курса до сигнала «Старт открыт» для неё."]
[34,null,"Протест. Заявление яхты, гоночного комитета или протестового комитета по правилу 61.2 о том, что какая-то яхта нарушила правила."]
[35,null,"Гонка. Яхта находится в гонке с момента сигнала «Подготовительный» для неё и до тех пор, когда она финишировала и отошла от финишной линии и финишных знаков или вышла из гонки, или когда гонка была отложена или прекращена, или был дан сигнал общего отзыва."]
[36,null,"Место. Пространство, необходимое яхте для маневрирования без задержки в соответствии с хорошей морской практикой в существующих условиях."]
[37,null,"720 и 360 град"]
[38,null,"Старт. Яхта стартует, когда она, будучи полностью на предстартовой стороне стартовой линии в момент или после сигнала \"Старт открыт\" для неё и выполнив, если нужно, требования правила 30.1, пересекает стартовую линию любой частью своего корпуса, экипажа или оборудования в направлении первого знака."]
[39,null,"Галс, правый галс или левый галс. Яхта находится на галсе, правом или левом, в соответствии с тем, какая сторона у нее наветренная."]
[40,null,"Зона. Пространство вокруг знака в пределах трёх длин корпуса яхты, ближайшей к нему. Яхта находится в зоне, если любая часть её корпуса находится в зоне."]

{"sheet":"Практика","index":26,"n_rows":28,"n_cols":3,"rows_kept":28,"cut":false,"hidden":false,"merged":[]}
[1,"Подготовка яхты к выходу на воду."," Отход от причала при отжимном ветре с берега"]
[2,"Постановка Парусов в гавани при разных направлениях ветра","Подход и швартовка к бочке "]
[3,"Уборка Парусов в гавани при разных направлениях ветра.\nПорядок действий","Поворот оверштаг,"]
[4,"Основные правила управления яхтов на острых курсах"]
[5,"Движение Задним ходом под парусом","Маневрирование в ситуации «Человек за бортом»."]
[6,"Выполнение поворота фордевинд со спинакером на килевой яхтеПоворот, фордевинд.","Действие капитана и экипажа при различных аварийных ситуациях: обрыв вант, штага, ахтерштага, бакштагов; поломки рангоута, рулевого устройства; разрыва парусов; пробоины в корпусе."]
[7,"Швартовка килевой яхты в гавани для разных причальных сооруженияй","Действия по осстановлению яхты после оверкиля."]
[null,"Техника настройки и работа экипажа на небольшой килевой яхте удущей под спинакером попутным курсом\nПорядок действий","Действия по осстановлению яхты после брочинга"]
[8,"Поворот фордевинд со  спинакером  на небольшой килевой яхте в чвежий ветер.\nПорядок действий"]
[9,"Постановка спинакера  на небольшой килевой яхте в сильный ветер.\nПорядок действий","Отход от причала при  навальном ветре."]
[10,"Уборка спинакера  на небольшой килевой яхте в свежий ветер.\nПорядок действий","Умение визуально определять усиления ветра "]
[11,"Уборка Парусов в гавани при разных направлениях ветра","Отход от причала при боковом ветре"]
[12,"Взятие рифов на небольшой килевой яхте.\nПорядок действий","Выполнение поворота коровий фордевинд"]
[13,"Постановка яхты с якоря под парусами.\nПорядок действий и маневры рулевого"]
[14,"Снятие яхты с якоря под парусами.\nПорядок действий и маневры рулевого","Постановка в дрейф "]
[15,"Хождение под парусами в течении.\nВетре по течению\nВетер против течения","Маневрирование в ситуации «Человек за бортом»."]
[16,"Снятие с мели.\nПорядок Ваших действий","Действие капитана и экипажа при различных аварийных ситуациях: обрыв вант, штага, ахтерштага, бакштагов; поломки рангоута, рулевого устройства; разрыва парусов; пробоины в корпусе."]
[17,"Буксировка яхт.\nСпособы закладки буксирного конца","Опрокидывание яхты. Восстановление яхты после оверкиля."]
[18,null,"Подготовка яхты к выходу на воду."]
[19,"Шлюзование.\nПравила \nДействия Шкипера\nДействия Команды","Действие капитана и экипажа при различных аварийных ситуациях: обрыв вант, "]
[20,"Помощь опрокинувшимся швертботам и катамаранам.\nОписать Ваши действия и действия команды","Подход к причалу в навальный ветер"]
[21,null,"Постановка основных парусов"]
[22,null,"уборка парусов"]
[23,null,"Снятие с мели в навальный ветер"]
[24,null,"Постановка  парусов полного курса"]
[25,null,"Подготовка к встрече шквала"]
[26,null,"Действия в тумане."]
[27,null,"Остойчивость. На малых углах и углах близких к 90 градусов"]